Organisation Name,Organisation Code,Unique Ref No,Effective Date,Directorate  where expenditure incurred,Supplier name ,Payment Date,Net Amount,Purpose of Spend,Procurement Classification (Higher Level),Procurement Classification (Lower Level),Capital/Revenue
Walsall Council,http://opendatacommunities.org/id/metropolitan-district-council/walsall,WC79-1,30/04/2017,Change and Governance,3C TECHNOLOGY LTD,07/04/2017,369.00,63800-COMPUTER EQUIPMENT AND SUPPLIES,SIT-INFRASTRUCTURE,Supplies & Services,Revenue
Walsall Council,http://opendatacommunities.org/id/metropolitan-district-council/walsall,WC79-2,30/04/2017,Change and Governance,3C TECHNOLOGY LTD,10/04/2017,877.70,63805-INSTALLATIONS-COMPUTER,SIT-INFRASTRUCTURE,Supplies & Services,Revenue
Walsall Council,http://opendatacommunities.org/id/metropolitan-district-council/walsall,WC79-3,30/04/2017,Adult Social Care,5 CARE SERVICES LTD,13/04/2017,650.00,73019-PSE'S-PRIV CONTRACTOR FEES,TRANSITIONAL CARE SUPPORT TEAM,Third Party Payments,Revenue
Walsall Council,http://opendatacommunities.org/id/metropolitan-district-council/walsall,WC79-4,30/04/2017,Childrens,5 CARE SERVICES LTD,10/04/2017,864.50,63000-PROFESSIONAL FEES AND SERVICES,DIRECTLY COMMISSIONED NURSING SERVICES,Supplies & Services,Revenue
Walsall Council,http://opendatacommunities.org/id/metropolitan-district-council/walsall,WC79-5,30/04/2017,Childrens,5 CARE SERVICES LTD,10/04/2017,"1,072.50",63000-PROFESSIONAL FEES AND SERVICES,DIRECTLY COMMISSIONED NURSING SERVICES,Supplies & Services,Revenue
Walsall Council,http://opendatacommunities.org/id/metropolitan-district-council/walsall,WC79-6,30/04/2017,Childrens,5 CARE SERVICES LTD,10/04/2017,"1,794.00",63000-PROFESSIONAL FEES AND SERVICES,DIRECTLY COMMISSIONED NURSING SERVICES,Supplies & Services,Revenue
Walsall Council,http://opendatacommunities.org/id/metropolitan-district-council/walsall,WC79-7,30/04/2017,Adult Social Care,5 CARE SERVICES LTD,13/04/2017,"2,015.00",73019-PSE'S-PRIV CONTRACTOR FEES,TRANSITIONAL CARE SUPPORT TEAM,Third Party Payments,Revenue
Walsall Council,http://opendatacommunities.org/id/metropolitan-district-council/walsall,WC79-8,30/04/2017,Adult Social Care,5 CARE SERVICES LTD,25/04/2017,"42,191.63",73372-DOMICILIARY CARE,OP COMMISSIONING,Third Party Payments,Revenue
Walsall Council,http://opendatacommunities.org/id/metropolitan-district-council/walsall,WC79-9,30/04/2017,Economy & Environment,A & P CHAMBERS LTD,24/04/2017,"49,384.00",60500-GENERAL MATERIALS,RETAINED HOUSING-HIGHWAYS,Supplies & Services,Revenue
Walsall Council,http://opendatacommunities.org/id/metropolitan-district-council/walsall,WC79-10,30/04/2017,Economy & Environment,A ASHTON,12/04/2017,300.00,"40000-REPAIRS,ALTERATIONS & MAINTENANCE-PREM",INFRASTRUCTURE MAINTENANCE,Premises,Revenue
Walsall Council,http://opendatacommunities.org/id/metropolitan-district-council/walsall,WC79-11,30/04/2017,Change and Governance,A D T FIRE AND SECURITY PLC,12/04/2017,223.34,73002-SECURITY-PRIV CONTRACTOR FEES,CENTRALISED MAINTENANCE,Third Party Payments,Revenue
Walsall Council,http://opendatacommunities.org/id/metropolitan-district-council/walsall,WC79-12,30/04/2017,Childrens,A D T FIRE AND SECURITY PLC,13/04/2017,247.90,63000-PROFESSIONAL FEES AND SERVICES,"AREA 4 PLECK, PALFREY, PADDOCK & ST MATT",Supplies & Services,Revenue
Walsall Council,http://opendatacommunities.org/id/metropolitan-district-council/walsall,WC79-13,30/04/2017,Change and Governance,A D T FIRE AND SECURITY PLC,13/04/2017,628.78,73002-SECURITY-PRIV CONTRACTOR FEES,CENTRALISED MAINTENANCE,Third Party Payments,Revenue
Walsall Council,http://opendatacommunities.org/id/metropolitan-district-council/walsall,WC79-14,30/04/2017,Change and Governance,A D T FIRE AND SECURITY PLC,20/04/2017,774.90,01006-SITE WORKS MAIN CONTRACTORS,CFR 804 FIRE SAFETY WORKS,Capital,Capital
Walsall Council,http://opendatacommunities.org/id/metropolitan-district-council/walsall,WC79-15,30/04/2017,Change and Governance,A D T FIRE AND SECURITY PLC,06/04/2017,887.66,63224-SECURITY ALARMS-NEW/REP & MAINT-PAYMENT TO CONTRACTOR,CENTRALISED MAINTENANCE,Premises,Revenue
Walsall Council,http://opendatacommunities.org/id/metropolitan-district-council/walsall,WC79-16,30/04/2017,Change and Governance,A D T FIRE AND SECURITY PLC,12/04/2017,"1,006.66",73002-SECURITY-PRIV CONTRACTOR FEES,CHALLENGE BUILDING,Third Party Payments,Revenue
Walsall Council,http://opendatacommunities.org/id/metropolitan-district-council/walsall,WC79-17,30/04/2017,Change and Governance,A D T FIRE AND SECURITY PLC,13/04/2017,"1,025.58",73002-SECURITY-PRIV CONTRACTOR FEES,CENTRALISED MAINTENANCE,Third Party Payments,Revenue
Walsall Council,http://opendatacommunities.org/id/metropolitan-district-council/walsall,WC79-18,30/04/2017,Change and Governance,A D T FIRE AND SECURITY PLC,20/04/2017,"1,088.74",73002-SECURITY-PRIV CONTRACTOR FEES,CENTRALISED MAINTENANCE,Third Party Payments,Revenue
Walsall Council,http://opendatacommunities.org/id/metropolitan-district-council/walsall,WC79-19,30/04/2017,Change and Governance,A D T FIRE AND SECURITY PLC,12/04/2017,"1,156.49",73002-SECURITY-PRIV CONTRACTOR FEES,CENTRALISED MAINTENANCE,Third Party Payments,Revenue
Walsall Council,http://opendatacommunities.org/id/metropolitan-district-council/walsall,WC79-20,30/04/2017,Change and Governance,A D T FIRE AND SECURITY PLC,13/04/2017,"1,762.72",73002-SECURITY-PRIV CONTRACTOR FEES,CENTRALISED MAINTENANCE,Third Party Payments,Revenue
Walsall Council,http://opendatacommunities.org/id/metropolitan-district-council/walsall,WC79-21,30/04/2017,Economy & Environment,A F BLAKEMORE & SON LTD,03/04/2017,224.09,61008-CONFECTIONERY/SNACKS-PROVISIONS,DARLASTON LEISURE CENTRE,Supplies & Services,Revenue
Walsall Council,http://opendatacommunities.org/id/metropolitan-district-council/walsall,WC79-22,30/04/2017,Economy & Environment,A F BLAKEMORE & SON LTD,20/04/2017,270.21,61008-CONFECTIONERY/SNACKS-PROVISIONS,WALSALL GALA CENTRE,Supplies & Services,Revenue
Walsall Council,http://opendatacommunities.org/id/metropolitan-district-council/walsall,WC79-23,30/04/2017,Adult Social Care,A F BLAKEMORE & SON LTD,03/04/2017,322.55,61016-FOOD AND BEVERAGES-PROVISIONS,GOSCOTE,Supplies & Services,Revenue
Walsall Council,http://opendatacommunities.org/id/metropolitan-district-council/walsall,WC79-24,30/04/2017,Economy & Environment,A F BLAKEMORE & SON LTD,24/04/2017,328.44,61008-CONFECTIONERY/SNACKS-PROVISIONS,DARLASTON LEISURE CENTRE,Supplies & Services,Revenue
Walsall Council,http://opendatacommunities.org/id/metropolitan-district-council/walsall,WC79-25,30/04/2017,Economy & Environment,A F BLAKEMORE & SON LTD,24/04/2017,347.35,61018-DRINKS-PROVISIONS,DARLASTON LEISURE CENTRE,Supplies & Services,Revenue
Walsall Council,http://opendatacommunities.org/id/metropolitan-district-council/walsall,WC79-26,30/04/2017,Economy & Environment,A F BLAKEMORE & SON LTD,20/04/2017,422.08,61018-DRINKS-PROVISIONS,WALSALL GALA CENTRE,Supplies & Services,Revenue
Walsall Council,http://opendatacommunities.org/id/metropolitan-district-council/walsall,WC79-27,30/04/2017,Adult Social Care,A F BLAKEMORE & SON LTD,04/04/2017,450.95,61016-FOOD AND BEVERAGES-PROVISIONS,REABLEMENT TEAM - HOLLY BANK,Supplies & Services,Revenue
Walsall Council,http://opendatacommunities.org/id/metropolitan-district-council/walsall,WC79-28,30/04/2017,Economy & Environment,A F BLAKEMORE & SON LTD,20/04/2017,473.82,61001-FROZEN FOODS-PROVISIONS,BLOXWICH LEISURE CENTRE,Supplies & Services,Revenue
Walsall Council,http://opendatacommunities.org/id/metropolitan-district-council/walsall,WC79-29,30/04/2017,Adult Social Care,A F BLAKEMORE & SON LTD,10/04/2017,686.12,61016-FOOD AND BEVERAGES-PROVISIONS,REABLEMENT TEAM - HOLLY BANK,Supplies & Services,Revenue
Walsall Council,http://opendatacommunities.org/id/metropolitan-district-council/walsall,WC79-30,30/04/2017,Economy & Environment,A F BLAKEMORE & SON LTD,24/04/2017,999.82,61001-FROZEN FOODS-PROVISIONS,BLOXWICH LEISURE CENTRE,Supplies & Services,Revenue
Walsall Council,http://opendatacommunities.org/id/metropolitan-district-council/walsall,WC79-31,30/04/2017,Economy & Environment,A F BLAKEMORE & SON LTD,21/04/2017,"1,332.12",61008-CONFECTIONERY/SNACKS-PROVISIONS,OAK PARK,Supplies & Services,Revenue
Walsall Council,http://opendatacommunities.org/id/metropolitan-district-council/walsall,WC79-32,30/04/2017,Childrens,REDACTED,07/04/2017,339.61,74509-SPECIAL GUARDIANSHIP ORDERS,ADOPTION ALLOWANCES,Transfer Payments,Revenue
Walsall Council,http://opendatacommunities.org/id/metropolitan-district-council/walsall,WC79-33,30/04/2017,Economy & Environment,A KARIMS CHUCKERY PHARMACY,12/04/2017,17.70,63000-PROFESSIONAL FEES AND SERVICES,SEXUAL HEALTH,Supplies & Services,Revenue
Walsall Council,http://opendatacommunities.org/id/metropolitan-district-council/walsall,WC79-34,30/04/2017,Economy & Environment,A KARIMS CHUCKERY PHARMACY,12/04/2017,27.70,63000-PROFESSIONAL FEES AND SERVICES,SEXUAL HEALTH,Supplies & Services,Revenue
Walsall Council,http://opendatacommunities.org/id/metropolitan-district-council/walsall,WC79-35,30/04/2017,Economy & Environment,A KARIMS CHUCKERY PHARMACY,12/04/2017,"1,360.49",71007-CONTRIBUTION TO PCT,PUBLIC HEALTH BUSINESS SUPPORT,Third Party Payments,Revenue
Walsall Council,http://opendatacommunities.org/id/metropolitan-district-council/walsall,WC79-36,30/04/2017,Economy & Environment,A KARIMS CHUCKERY PHARMACY,12/04/2017,"1,483.73",71007-CONTRIBUTION TO PCT,PUBLIC HEALTH BUSINESS SUPPORT,Third Party Payments,Revenue
Walsall Council,http://opendatacommunities.org/id/metropolitan-district-council/walsall,WC79-37,30/04/2017,Economy & Environment,AAINA ASIAN WOMENS GROUP,26/04/2017,"4,988.50",66500-GRANTS TO OTHER ORGS,ESF COMMUNITY GRANTS,Third Party Payments,Revenue
Walsall Council,http://opendatacommunities.org/id/metropolitan-district-council/walsall,WC79-38,30/04/2017,Childrens,REDACTED,10/04/2017,378.00,76422-DIRECT PAYMENTS TO SOCIAL SERVICES CLIENTS,FAMILY SUPPORT - DIRECT PAYMENTS,Transfer Payments,Revenue
Walsall Council,http://opendatacommunities.org/id/metropolitan-district-council/walsall,WC79-39,30/04/2017,Adult Social Care,ABBEY COURT NURSING & RESIDEN,12/04/2017,356.33,73373-RESIDENTIAL & NURSING CARE PLACEMENTS,MH COMMISSIONING,Third Party Payments,Revenue
Walsall Council,http://opendatacommunities.org/id/metropolitan-district-council/walsall,WC79-40,30/04/2017,Adult Social Care,ABBEY COURT NURSING & RESIDEN,12/04/2017,"1,728.77",73373-RESIDENTIAL & NURSING CARE PLACEMENTS,OP COMMISSIONING,Third Party Payments,Revenue
Walsall Council,http://opendatacommunities.org/id/metropolitan-district-council/walsall,WC79-41,30/04/2017,Adult Social Care,ABBEY COURT NURSING & RESIDEN,12/04/2017,"1,728.77",73373-RESIDENTIAL & NURSING CARE PLACEMENTS,OP COMMISSIONING,Third Party Payments,Revenue
Walsall Council,http://opendatacommunities.org/id/metropolitan-district-council/walsall,WC79-42,30/04/2017,Adult Social Care,ABBEY COURT NURSING & RESIDEN,12/04/2017,"1,818.30",73373-RESIDENTIAL & NURSING CARE PLACEMENTS,OP COMMISSIONING,Third Party Payments,Revenue
Walsall Council,http://opendatacommunities.org/id/metropolitan-district-council/walsall,WC79-43,30/04/2017,Adult Social Care,ABBEY COURT NURSING & RESIDEN,12/04/2017,"2,075.44",73373-RESIDENTIAL & NURSING CARE PLACEMENTS,OP COMMISSIONING,Third Party Payments,Revenue
Walsall Council,http://opendatacommunities.org/id/metropolitan-district-council/walsall,WC79-44,30/04/2017,Adult Social Care,ABBEY HEALTHCARE HOMES LTD,13/04/2017,667.58,73373-RESIDENTIAL & NURSING CARE PLACEMENTS,PD COMMISSIONING,Third Party Payments,Revenue
Walsall Council,http://opendatacommunities.org/id/metropolitan-district-council/walsall,WC79-45,30/04/2017,Adult Social Care,ABBEY HEALTHCARE HOMES LTD,26/04/2017,901.24,73373-RESIDENTIAL & NURSING CARE PLACEMENTS,PD COMMISSIONING,Third Party Payments,Revenue
Walsall Council,http://opendatacommunities.org/id/metropolitan-district-council/walsall,WC79-46,30/04/2017,Adult Social Care,ABBEY HEALTHCARE HOMES LTD,13/04/2017,"1,031.58",73373-RESIDENTIAL & NURSING CARE PLACEMENTS,PD COMMISSIONING,Third Party Payments,Revenue
Walsall Council,http://opendatacommunities.org/id/metropolitan-district-council/walsall,WC79-47,30/04/2017,Adult Social Care,ABBEY HEALTHCARE HOMES LTD,26/04/2017,"1,392.84",73373-RESIDENTIAL & NURSING CARE PLACEMENTS,PD COMMISSIONING,Third Party Payments,Revenue
Walsall Council,http://opendatacommunities.org/id/metropolitan-district-council/walsall,WC79-48,30/04/2017,Childrens,ABC DAY NURSERY (WILLENHALL) LIMITED,03/04/2017,"26,158.40",66505-OTHER-GRANTS TO OTHER ORGS,EARLY YEARS - 2 YR OLDS,Third Party Payments,Revenue
Walsall Council,http://opendatacommunities.org/id/metropolitan-district-council/walsall,WC79-49,30/04/2017,Childrens,ABC DAY NURSERY (WILLENHALL) LIMITED,03/04/2017,"29,952.00",66505-OTHER-GRANTS TO OTHER ORGS,EARLY YEARS - 3 YR OLDS,Third Party Payments,Revenue
Walsall Council,http://opendatacommunities.org/id/metropolitan-district-council/walsall,WC79-50,30/04/2017,Childrens,ABC FOSTERING,24/04/2017,"2,635.20",74037-INDEPENDENT FOSTER CARE-OTH AGENCY PROVISION,EXTERNAL FOSTER CARE PROVISION,Third Party Payments,Revenue
Walsall Council,http://opendatacommunities.org/id/metropolitan-district-council/walsall,WC79-51,30/04/2017,Childrens,ABC FOSTERING,24/04/2017,"2,635.20",74037-INDEPENDENT FOSTER CARE-OTH AGENCY PROVISION,EXTERNAL FOSTER CARE PROVISION,Third Party Payments,Revenue
Walsall Council,http://opendatacommunities.org/id/metropolitan-district-council/walsall,WC79-52,30/04/2017,Childrens,ABC FOSTERING,24/04/2017,"2,880.00",74037-INDEPENDENT FOSTER CARE-OTH AGENCY PROVISION,EXTERNAL FOSTER CARE PROVISION,Third Party Payments,Revenue
Walsall Council,http://opendatacommunities.org/id/metropolitan-district-council/walsall,WC79-53,30/04/2017,Childrens,ABC FOSTERING,24/04/2017,"2,917.54",74037-INDEPENDENT FOSTER CARE-OTH AGENCY PROVISION,EXTERNAL FOSTER CARE PROVISION,Third Party Payments,Revenue
Walsall Council,http://opendatacommunities.org/id/metropolitan-district-council/walsall,WC79-54,30/04/2017,Childrens,ABC FOSTERING,24/04/2017,"2,917.54",74037-INDEPENDENT FOSTER CARE-OTH AGENCY PROVISION,EXTERNAL FOSTER CARE PROVISION,Third Party Payments,Revenue
Walsall Council,http://opendatacommunities.org/id/metropolitan-district-council/walsall,WC79-55,30/04/2017,Childrens,ABC FOSTERING,24/04/2017,"3,042.00",74037-INDEPENDENT FOSTER CARE-OTH AGENCY PROVISION,EXTERNAL FOSTER CARE PROVISION,Third Party Payments,Revenue
Walsall Council,http://opendatacommunities.org/id/metropolitan-district-council/walsall,WC79-56,30/04/2017,Childrens,ABC FOSTERING,24/04/2017,"3,182.40",74037-INDEPENDENT FOSTER CARE-OTH AGENCY PROVISION,EXTERNAL FOSTER CARE PROVISION,Third Party Payments,Revenue
Walsall Council,http://opendatacommunities.org/id/metropolitan-district-council/walsall,WC79-57,30/04/2017,Childrens,ABC FOSTERING,24/04/2017,"3,188.57",74037-INDEPENDENT FOSTER CARE-OTH AGENCY PROVISION,EXTERNAL FOSTER CARE PROVISION,Third Party Payments,Revenue
Walsall Council,http://opendatacommunities.org/id/metropolitan-district-council/walsall,WC79-58,30/04/2017,Childrens,ABC FOSTERING,24/04/2017,"3,838.11",74037-INDEPENDENT FOSTER CARE-OTH AGENCY PROVISION,EXTERNAL FOSTER CARE PROVISION,Third Party Payments,Revenue
Walsall Council,http://opendatacommunities.org/id/metropolitan-district-council/walsall,WC79-59,30/04/2017,Adult Social Care,REDACTED,10/04/2017,"1,557.68",76422-DIRECT PAYMENTS TO SOCIAL SERVICES CLIENTS,LD COMMISSIONING,Transfer Payments,Revenue
Walsall Council,http://opendatacommunities.org/id/metropolitan-district-council/walsall,WC79-60,30/04/2017,Economy & Environment,ABEL ALARM CO LTD,26/04/2017,224.00,60006-NEW-FURNITURE & EQUIPMENT,CEMETERIES CENTRAL ADMINISTRATION,Supplies & Services,Revenue
Walsall Council,http://opendatacommunities.org/id/metropolitan-district-council/walsall,WC79-61,30/04/2017,Adult Social Care,REDACTED,10/04/2017,"2,358.00",76422-DIRECT PAYMENTS TO SOCIAL SERVICES CLIENTS,LD COMMISSIONING,Transfer Payments,Revenue
Walsall Council,http://opendatacommunities.org/id/metropolitan-district-council/walsall,WC79-62,30/04/2017,Childrens,ABLEWELL CARS,05/04/2017,795.00,52000-WITH DRIVER-HIRE OF VEHICLES,SCHOOL TRANSPORT,Transport,Revenue
Walsall Council,http://opendatacommunities.org/id/metropolitan-district-council/walsall,WC79-63,30/04/2017,Childrens,ABU BAKR NURSERY,03/04/2017,"8,815.96",66505-OTHER-GRANTS TO OTHER ORGS,EARLY YEARS - 2 YR OLDS,Third Party Payments,Revenue
Walsall Council,http://opendatacommunities.org/id/metropolitan-district-council/walsall,WC79-64,30/04/2017,Childrens,ABU BAKR NURSERY,03/04/2017,"24,417.00",66505-OTHER-GRANTS TO OTHER ORGS,EARLY YEARS - 3 YR OLDS,Third Party Payments,Revenue
Walsall Council,http://opendatacommunities.org/id/metropolitan-district-council/walsall,WC79-65,30/04/2017,Adult Social Care,ACCORD HOUSING ASSOCIATION LTD#135,20/04/2017,578.25,73374-SUPPORTED & OTHER ACCOMMODATION,LD COMMISSIONING,Third Party Payments,Revenue
Walsall Council,http://opendatacommunities.org/id/metropolitan-district-council/walsall,WC79-66,30/04/2017,Adult Social Care,ACCORD HOUSING ASSOCIATION LTD#135,12/04/2017,635.92,73373-RESIDENTIAL & NURSING CARE PLACEMENTS,LD COMMISSIONING,Third Party Payments,Revenue
Walsall Council,http://opendatacommunities.org/id/metropolitan-district-council/walsall,WC79-67,30/04/2017,Adult Social Care,ACCORD HOUSING ASSOCIATION LTD#135,04/04/2017,"4,744.90",73373-RESIDENTIAL & NURSING CARE PLACEMENTS,LD COMMISSIONING,Third Party Payments,Revenue
Walsall Council,http://opendatacommunities.org/id/metropolitan-district-council/walsall,WC79-68,30/04/2017,Adult Social Care,ACCORD HOUSING ASSOCIATION LTD#135,04/04/2017,"4,744.90",73373-RESIDENTIAL & NURSING CARE PLACEMENTS,LD COMMISSIONING,Third Party Payments,Revenue
Walsall Council,http://opendatacommunities.org/id/metropolitan-district-council/walsall,WC79-69,30/04/2017,Adult Social Care,ACCORD HOUSING ASSOCIATION LTD#135,04/04/2017,"4,744.90",73373-RESIDENTIAL & NURSING CARE PLACEMENTS,LD COMMISSIONING,Third Party Payments,Revenue
Walsall Council,http://opendatacommunities.org/id/metropolitan-district-council/walsall,WC79-70,30/04/2017,Adult Social Care,ACCORD HOUSING ASSOCIATION LTD#135,04/04/2017,"4,744.90",73373-RESIDENTIAL & NURSING CARE PLACEMENTS,LD COMMISSIONING,Third Party Payments,Revenue
Walsall Council,http://opendatacommunities.org/id/metropolitan-district-council/walsall,WC79-71,30/04/2017,Adult Social Care,ACCORD HOUSING ASSOCIATION LTD#135,04/04/2017,"6,622.35",73373-RESIDENTIAL & NURSING CARE PLACEMENTS,LD COMMISSIONING,Third Party Payments,Revenue
Walsall Council,http://opendatacommunities.org/id/metropolitan-district-council/walsall,WC79-72,30/04/2017,Adult Social Care,ACCORD HOUSING ASSOCIATION LTD#135,04/04/2017,"6,622.35",73373-RESIDENTIAL & NURSING CARE PLACEMENTS,LD COMMISSIONING,Third Party Payments,Revenue
Walsall Council,http://opendatacommunities.org/id/metropolitan-district-council/walsall,WC79-73,30/04/2017,Adult Social Care,ACCORD HOUSING ASSOCIATION LTD#135,04/04/2017,"6,622.35",73373-RESIDENTIAL & NURSING CARE PLACEMENTS,LD COMMISSIONING,Third Party Payments,Revenue
Walsall Council,http://opendatacommunities.org/id/metropolitan-district-council/walsall,WC79-74,30/04/2017,Adult Social Care,ACCORD HOUSING ASSOCIATION LTD#135,03/04/2017,"11,164.00",73365-BLOCK GROSS-SUPPORTING PEOPLE,OLDER PEOPLES CONTRACTS/SLA,Third Party Payments,Revenue
Walsall Council,http://opendatacommunities.org/id/metropolitan-district-council/walsall,WC79-75,30/04/2017,Change and Governance,ACCORD HOUSING ASSOCIATION LTD#135,04/04/2017,"29,235.00",01046-OTHER GRANTS,CFR 1108 OFF GAS SCHEME-DECC,Capital,Capital
Walsall Council,http://opendatacommunities.org/id/metropolitan-district-council/walsall,WC79-76,30/04/2017,Adult Social Care,ACCORD HOUSING ASSOCIATION LTD#135,25/04/2017,"31,238.57",73372-DOMICILIARY CARE,OP COMMISSIONING,Third Party Payments,Revenue
Walsall Council,http://opendatacommunities.org/id/metropolitan-district-council/walsall,WC79-77,30/04/2017,Childrens,ACE RADIO CARS,05/04/2017,"1,464.30",52000-WITH DRIVER-HIRE OF VEHICLES,SCHOOL TRANSPORT,Transport,Revenue
Walsall Council,http://opendatacommunities.org/id/metropolitan-district-council/walsall,WC79-78,30/04/2017,Childrens,ACE RADIO CARS,05/04/2017,"2,245.27",52000-WITH DRIVER-HIRE OF VEHICLES,SCHOOL TRANSPORT,Transport,Revenue
Walsall Council,http://opendatacommunities.org/id/metropolitan-district-council/walsall,WC79-79,30/04/2017,Adult Social Care,ACEPAY LTD (COTTAGE NUR HOME),12/04/2017,893.67,73373-RESIDENTIAL & NURSING CARE PLACEMENTS,OP COMMISSIONING,Third Party Payments,Revenue
Walsall Council,http://opendatacommunities.org/id/metropolitan-district-council/walsall,WC79-80,30/04/2017,Adult Social Care,ACEPAY LTD (COTTAGE NUR HOME),12/04/2017,893.67,73373-RESIDENTIAL & NURSING CARE PLACEMENTS,OP COMMISSIONING,Third Party Payments,Revenue
Walsall Council,http://opendatacommunities.org/id/metropolitan-district-council/walsall,WC79-81,30/04/2017,Adult Social Care,ACEPAY LTD (COTTAGE NUR HOME),12/04/2017,893.67,73373-RESIDENTIAL & NURSING CARE PLACEMENTS,OP COMMISSIONING,Third Party Payments,Revenue
Walsall Council,http://opendatacommunities.org/id/metropolitan-district-council/walsall,WC79-82,30/04/2017,Adult Social Care,ACEPAY LTD (COTTAGE NUR HOME),12/04/2017,893.67,73373-RESIDENTIAL & NURSING CARE PLACEMENTS,OP COMMISSIONING,Third Party Payments,Revenue
Walsall Council,http://opendatacommunities.org/id/metropolitan-district-council/walsall,WC79-83,30/04/2017,Adult Social Care,ACEPAY LTD (COTTAGE NUR HOME),12/04/2017,911.74,73373-RESIDENTIAL & NURSING CARE PLACEMENTS,OP COMMISSIONING,Third Party Payments,Revenue
Walsall Council,http://opendatacommunities.org/id/metropolitan-district-council/walsall,WC79-84,30/04/2017,Adult Social Care,ACEPAY LTD (COTTAGE NUR HOME),12/04/2017,911.75,73373-RESIDENTIAL & NURSING CARE PLACEMENTS,OP COMMISSIONING,Third Party Payments,Revenue
Walsall Council,http://opendatacommunities.org/id/metropolitan-district-council/walsall,WC79-85,30/04/2017,Adult Social Care,ACEPAY LTD (COTTAGE NUR HOME),12/04/2017,"1,381.13",73373-RESIDENTIAL & NURSING CARE PLACEMENTS,OP COMMISSIONING,Third Party Payments,Revenue
Walsall Council,http://opendatacommunities.org/id/metropolitan-district-council/walsall,WC79-86,30/04/2017,Adult Social Care,ACEPAY LTD (COTTAGE NUR HOME),12/04/2017,"1,381.13",73373-RESIDENTIAL & NURSING CARE PLACEMENTS,OP COMMISSIONING,Third Party Payments,Revenue
Walsall Council,http://opendatacommunities.org/id/metropolitan-district-council/walsall,WC79-87,30/04/2017,Adult Social Care,ACEPAY LTD (COTTAGE NUR HOME),12/04/2017,"1,381.13",73373-RESIDENTIAL & NURSING CARE PLACEMENTS,OP COMMISSIONING,Third Party Payments,Revenue
Walsall Council,http://opendatacommunities.org/id/metropolitan-district-council/walsall,WC79-88,30/04/2017,Adult Social Care,ACEPAY LTD (COTTAGE NUR HOME),12/04/2017,"1,381.13",73373-RESIDENTIAL & NURSING CARE PLACEMENTS,OP COMMISSIONING,Third Party Payments,Revenue
Walsall Council,http://opendatacommunities.org/id/metropolitan-district-council/walsall,WC79-89,30/04/2017,Adult Social Care,ACEPAY LTD (COTTAGE NUR HOME),12/04/2017,"1,381.13",73373-RESIDENTIAL & NURSING CARE PLACEMENTS,OP COMMISSIONING,Third Party Payments,Revenue
Walsall Council,http://opendatacommunities.org/id/metropolitan-district-council/walsall,WC79-90,30/04/2017,Adult Social Care,ACEPAY LTD (COTTAGE NUR HOME),12/04/2017,"1,409.05",73373-RESIDENTIAL & NURSING CARE PLACEMENTS,OP COMMISSIONING,Third Party Payments,Revenue
Walsall Council,http://opendatacommunities.org/id/metropolitan-district-council/walsall,WC79-91,30/04/2017,Adult Social Care,ACEPAY LTD (COTTAGE NUR HOME),12/04/2017,"1,409.06",73373-RESIDENTIAL & NURSING CARE PLACEMENTS,OP COMMISSIONING,Third Party Payments,Revenue
Walsall Council,http://opendatacommunities.org/id/metropolitan-district-council/walsall,WC79-92,30/04/2017,Adult Social Care,ACEPAY LTD (COTTAGE NUR HOME),12/04/2017,"8,286.77",73373-RESIDENTIAL & NURSING CARE PLACEMENTS,OP COMMISSIONING,Third Party Payments,Revenue
Walsall Council,http://opendatacommunities.org/id/metropolitan-district-council/walsall,WC79-93,30/04/2017,Adult Social Care,ACORN REST HOME,12/04/2017,"1,504.28",73373-RESIDENTIAL & NURSING CARE PLACEMENTS,OP COMMISSIONING,Third Party Payments,Revenue
Walsall Council,http://opendatacommunities.org/id/metropolitan-district-council/walsall,WC79-94,30/04/2017,Childrens,ACORNS CHILDRENS HOSPICE TRUST,07/04/2017,750.00,63000-PROFESSIONAL FEES AND SERVICES,DIRECTLY COMMISSIONED NURSING SERVICES,Supplies & Services,Revenue
Walsall Council,http://opendatacommunities.org/id/metropolitan-district-council/walsall,WC79-95,30/04/2017,Adult Social Care,ACTION ON HEARING LOSS,12/04/2017,259.20,60006-NEW-FURNITURE & EQUIPMENT,SENSORY/DEAF SERVICES,Supplies & Services,Revenue
Walsall Council,http://opendatacommunities.org/id/metropolitan-district-council/walsall,WC79-96,30/04/2017,Childrens,ACTIVATING CREATIVE TALENT CIC,12/04/2017,"10,532.17",66500-GRANTS TO OTHER ORGS,EIG-TYS MODEL,Third Party Payments,Revenue
Walsall Council,http://opendatacommunities.org/id/metropolitan-district-council/walsall,WC79-97,30/04/2017,Adult Social Care,ACTON BANKS LTD,10/04/2017,762.09,34305-AGENCY STAFF-EMPLOYEES,GOSCOTE,Employees,Revenue
Walsall Council,http://opendatacommunities.org/id/metropolitan-district-council/walsall,WC79-98,30/04/2017,Adult Social Care,ACTON BANKS LTD,05/04/2017,830.85,34305-AGENCY STAFF-EMPLOYEES,GOSCOTE,Employees,Revenue
Walsall Council,http://opendatacommunities.org/id/metropolitan-district-council/walsall,WC79-99,30/04/2017,Adult Social Care,ACTON BANKS LTD,06/04/2017,"1,100.16",34305-AGENCY STAFF-EMPLOYEES,GOSCOTE,Employees,Revenue
Walsall Council,http://opendatacommunities.org/id/metropolitan-district-council/walsall,WC79-100,30/04/2017,Adult Social Care,ACTON BANKS LTD,12/04/2017,"3,090.69",73025-PROFESSIONAL SERVICES-PRIV CONTRACTOR & OTHER AGENCIES,REABLEMENT TEAM - HOLLY BANK,Third Party Payments,Revenue
Walsall Council,http://opendatacommunities.org/id/metropolitan-district-council/walsall,WC79-101,30/04/2017,Adult Social Care,ACTON BANKS LTD,10/04/2017,"3,165.41",73025-PROFESSIONAL SERVICES-PRIV CONTRACTOR & OTHER AGENCIES,REABLEMENT TEAM - HOLLY BANK,Third Party Payments,Revenue
Walsall Council,http://opendatacommunities.org/id/metropolitan-district-council/walsall,WC79-102,30/04/2017,Adult Social Care,REDACTED,10/04/2017,486.00,76422-DIRECT PAYMENTS TO SOCIAL SERVICES CLIENTS,LD COMMISSIONING,Transfer Payments,Revenue
Walsall Council,http://opendatacommunities.org/id/metropolitan-district-council/walsall,WC79-103,30/04/2017,Childrens,ADCS (ASSOCIATION OF DIRECTORS OF CHILDRENS SERVICES),07/04/2017,"2,351.25",63000-PROFESSIONAL FEES AND SERVICES,ACCESS & ACHIEVEMENT MANAGEMENT,Supplies & Services,Revenue
Walsall Council,http://opendatacommunities.org/id/metropolitan-district-council/walsall,WC79-104,30/04/2017,Economy & Environment,ADEPT,01/05/2017,"1,200.00",64500-PUBLICATIONS/ORGANISATIONS-SUBSCRIPTIONS,REGENERATION MANAGEMENT,Supplies & Services,Revenue
Walsall Council,http://opendatacommunities.org/id/metropolitan-district-council/walsall,WC79-105,30/04/2017,Adult Social Care,REDACTED,10/04/2017,964.00,76422-DIRECT PAYMENTS TO SOCIAL SERVICES CLIENTS,OP COMMISSIONING,Transfer Payments,Revenue
Walsall Council,http://opendatacommunities.org/id/metropolitan-district-council/walsall,WC79-106,30/04/2017,Childrens,REDACTED,07/04/2017,333.12,74510-RESIDENTS ORDERS,ADOPTION ALLOWANCES,Third Party Payments,Revenue
Walsall Council,http://opendatacommunities.org/id/metropolitan-district-council/walsall,WC79-107,30/04/2017,Childrens,REDACTED,07/04/2017,361.12,74510-RESIDENTS ORDERS,ADOPTION ALLOWANCES,Third Party Payments,Revenue
Walsall Council,http://opendatacommunities.org/id/metropolitan-district-council/walsall,WC79-108,30/04/2017,Adult Social Care,ADVANCE HEALTH CARE (UK) LTD,26/04/2017,275.10,73375-IN PATIENT BEDS,ACM MANAGEMENT TEAM,Third Party Payments,Revenue
Walsall Council,http://opendatacommunities.org/id/metropolitan-district-council/walsall,WC79-109,30/04/2017,Adult Social Care,ADVANCE HEALTH CARE (UK) LTD,26/04/2017,799.10,73375-IN PATIENT BEDS,ACM MANAGEMENT TEAM,Third Party Payments,Revenue
Walsall Council,http://opendatacommunities.org/id/metropolitan-district-council/walsall,WC79-110,30/04/2017,Adult Social Care,ADVANCE HEALTH CARE (UK) LTD,26/04/2017,903.90,73375-IN PATIENT BEDS,ACM MANAGEMENT TEAM,Third Party Payments,Revenue
Walsall Council,http://opendatacommunities.org/id/metropolitan-district-council/walsall,WC79-111,30/04/2017,Adult Social Care,ADVANCE HEALTH CARE (UK) LTD,26/04/2017,"1,886.40",73375-IN PATIENT BEDS,ACM MANAGEMENT TEAM,Third Party Payments,Revenue
Walsall Council,http://opendatacommunities.org/id/metropolitan-district-council/walsall,WC79-112,30/04/2017,Adult Social Care,ADVANCE HEALTH CARE (UK) LTD,12/04/2017,"4,565.35",73025-PROFESSIONAL SERVICES-PRIV CONTRACTOR & OTHER AGENCIES,COMMUNITY INTERMEDIATE CARE,Third Party Payments,Revenue
Walsall Council,http://opendatacommunities.org/id/metropolitan-district-council/walsall,WC79-113,30/04/2017,Adult Social Care,ADVANCE HEALTH CARE (UK) LTD,10/04/2017,"5,331.70",73025-PROFESSIONAL SERVICES-PRIV CONTRACTOR & OTHER AGENCIES,COMMUNITY INTERMEDIATE CARE,Third Party Payments,Revenue
Walsall Council,http://opendatacommunities.org/id/metropolitan-district-council/walsall,WC79-114,30/04/2017,Adult Social Care,ADVANCE HEALTH CARE (UK) LTD,25/04/2017,"76,546.72",73372-DOMICILIARY CARE,OP COMMISSIONING,Third Party Payments,Revenue
Walsall Council,http://opendatacommunities.org/id/metropolitan-district-council/walsall,WC79-115,30/04/2017,Economy & Environment,ADVANCE PHARMA LTD T/A PLECK PHARMACY,12/04/2017,359.75,71007-CONTRIBUTION TO PCT,PUBLIC HEALTH BUSINESS SUPPORT,Third Party Payments,Revenue
Walsall Council,http://opendatacommunities.org/id/metropolitan-district-council/walsall,WC79-116,30/04/2017,Economy & Environment,ADVANCE PHARMA LTD T/A PLECK PHARMACY,12/04/2017,402.58,71007-CONTRIBUTION TO PCT,PUBLIC HEALTH BUSINESS SUPPORT,Third Party Payments,Revenue
Walsall Council,http://opendatacommunities.org/id/metropolitan-district-council/walsall,WC79-117,30/04/2017,Economy & Environment,ADVENTURE ACTIVITIES LIC AUTH,11/04/2017,715.00,63114-OTHER FEES & LICENCES-SERVICES-FEES,WALSALL OUTDOOR ADVENTURE CENTRE,Supplies & Services,Revenue
Walsall Council,http://opendatacommunities.org/id/metropolitan-district-council/walsall,WC79-118,30/04/2017,Childrens,ADVENTURELAND DAY NURSERY,03/04/2017,"13,896.80",66505-OTHER-GRANTS TO OTHER ORGS,EARLY YEARS - 2 YR OLDS,Third Party Payments,Revenue
Walsall Council,http://opendatacommunities.org/id/metropolitan-district-council/walsall,WC79-119,30/04/2017,Childrens,ADVENTURELAND DAY NURSERY,03/04/2017,"18,096.00",66505-OTHER-GRANTS TO OTHER ORGS,EARLY YEARS - 3 YR OLDS,Third Party Payments,Revenue
Walsall Council,http://opendatacommunities.org/id/metropolitan-district-council/walsall,WC79-120,30/04/2017,Economy & Environment,AEBI SCHMIDT UK LIMITED,24/04/2017,412.91,52001-HIRE OF VEHICLES,FLEET,Transport,Revenue
Walsall Council,http://opendatacommunities.org/id/metropolitan-district-council/walsall,WC79-121,30/04/2017,Economy & Environment,AEBI SCHMIDT UK LIMITED,27/04/2017,905.05,52001-HIRE OF VEHICLES,FLEET PARTS STOCK ACCOUNT,Transport,Revenue
Walsall Council,http://opendatacommunities.org/id/metropolitan-district-council/walsall,WC79-122,30/04/2017,Economy & Environment,AECOM LIMITED,05/04/2017,"14,760.42",01002-PROJECT FEES,CFR 1178 M6 JUNCTION 10 HIGHWAYS ENGLAND CONTRIBUTION,Capital,Capital
Walsall Council,http://opendatacommunities.org/id/metropolitan-district-council/walsall,WC79-123,30/04/2017,Economy & Environment,AECOM LIMITED,05/04/2017,"14,885.42",01002-PROJECT FEES,CFR 1178 M6 JUNCTION 10 HIGHWAYS ENGLAND CONTRIBUTION,Capital,Capital
Walsall Council,http://opendatacommunities.org/id/metropolitan-district-council/walsall,WC79-124,30/04/2017,Change and Governance,AFGHAN COMMUNITY & WELFARE CENTRE,26/04/2017,500.00,62515-MISCELLANEOUS SUPPLIES,PVE (CARRY FORWARD),Supplies & Services,Revenue
Walsall Council,http://opendatacommunities.org/id/metropolitan-district-council/walsall,WC79-125,30/04/2017,Economy & Environment,AFGHAN COMMUNITY & WELFARE CENTRE,26/04/2017,"4,935.00",66500-GRANTS TO OTHER ORGS,ESF COMMUNITY GRANTS,Third Party Payments,Revenue
Walsall Council,http://opendatacommunities.org/id/metropolitan-district-council/walsall,WC79-126,30/04/2017,Adult Social Care,REDACTED,10/04/2017,"1,882.00",76422-DIRECT PAYMENTS TO SOCIAL SERVICES CLIENTS,LD COMMISSIONING,Transfer Payments,Revenue
Walsall Council,http://opendatacommunities.org/id/metropolitan-district-council/walsall,WC79-127,30/04/2017,Adult Social Care,REDACTED,10/04/2017,914.20,76422-DIRECT PAYMENTS TO SOCIAL SERVICES CLIENTS,OP COMMISSIONING,Transfer Payments,Revenue
Walsall Council,http://opendatacommunities.org/id/metropolitan-district-council/walsall,WC79-128,30/04/2017,Childrens,AJK TRAVEL,05/04/2017,"26,536.02",52000-WITH DRIVER-HIRE OF VEHICLES,SCHOOL TRANSPORT,Transport,Revenue
Walsall Council,http://opendatacommunities.org/id/metropolitan-district-council/walsall,WC79-129,30/04/2017,Childrens,ALAN CRITCHLEY ASSOCIATES,07/04/2017,"4,807.00",63102-CONSULTANTS FEES - CORPORATE,SAFEGUARDING BOARD,Supplies & Services,Revenue
Walsall Council,http://opendatacommunities.org/id/metropolitan-district-council/walsall,WC79-130,30/04/2017,Childrens,ALBERT PRITCHARD INFANT AND WOOD GREEN JUNIOR FEDERATED SCHOOLS,07/04/2017,450.00,77300-ISB-FORMULA ALLOCATION,OUT OF BOROUGH SCHOOLS,Transfer Payments,Revenue
Walsall Council,http://opendatacommunities.org/id/metropolitan-district-council/walsall,WC79-131,30/04/2017,Childrens,ALBRIGHTON CARE LTD,24/04/2017,"9,980.00",74036-EXTERNAL RESIDENTIAL CARE-OTH AGENCY PROVISION,INDEPENDENT RESIDENTIAL HOMES,Third Party Payments,Revenue
Walsall Council,http://opendatacommunities.org/id/metropolitan-district-council/walsall,WC79-132,30/04/2017,Adult Social Care,ALDERGROVE MANOR LTD,26/04/2017,657.03,73373-RESIDENTIAL & NURSING CARE PLACEMENTS,MH COMMISSIONING,Third Party Payments,Revenue
Walsall Council,http://opendatacommunities.org/id/metropolitan-district-council/walsall,WC79-133,30/04/2017,Adult Social Care,ALDERGROVE MANOR LTD,26/04/2017,"1,182.65",73373-RESIDENTIAL & NURSING CARE PLACEMENTS,MH COMMISSIONING,Third Party Payments,Revenue
Walsall Council,http://opendatacommunities.org/id/metropolitan-district-council/walsall,WC79-134,30/04/2017,Change and Governance,ALDRIDGE YOUTH THEATRE,21/04/2017,500.00,62515-MISCELLANEOUS SUPPLIES,AREA 2 - ALDRIDGE/STREETLY/PHEASEY,Supplies & Services,Revenue
Walsall Council,http://opendatacommunities.org/id/metropolitan-district-council/walsall,WC79-135,30/04/2017,Adult Social Care,REDACTED,10/04/2017,"1,204.00",76422-DIRECT PAYMENTS TO SOCIAL SERVICES CLIENTS,PD COMMISSIONING,Transfer Payments,Revenue
Walsall Council,http://opendatacommunities.org/id/metropolitan-district-council/walsall,WC79-136,30/04/2017,Adult Social Care,ALEXANDRA HOUSE CARE SERVICES LTD T/A STONEBRIDGE NURSING HOME,13/04/2017,"7,117.44",73373-RESIDENTIAL & NURSING CARE PLACEMENTS,LD COMMISSIONING,Third Party Payments,Revenue
Walsall Council,http://opendatacommunities.org/id/metropolitan-district-council/walsall,WC79-137,30/04/2017,Childrens,REDACTED,10/04/2017,582.67,76422-DIRECT PAYMENTS TO SOCIAL SERVICES CLIENTS,FAMILY SUPPORT - DIRECT PAYMENTS,Transfer Payments,Revenue
Walsall Council,http://opendatacommunities.org/id/metropolitan-district-council/walsall,WC79-138,30/04/2017,Adult Social Care,REDACTED,10/04/2017,898.00,76422-DIRECT PAYMENTS TO SOCIAL SERVICES CLIENTS,PD COMMISSIONING,Transfer Payments,Revenue
Walsall Council,http://opendatacommunities.org/id/metropolitan-district-council/walsall,WC79-139,30/04/2017,Adult Social Care,REDACTED,10/04/2017,612.00,76422-DIRECT PAYMENTS TO SOCIAL SERVICES CLIENTS,OP COMMISSIONING,Transfer Payments,Revenue
Walsall Council,http://opendatacommunities.org/id/metropolitan-district-council/walsall,WC79-140,30/04/2017,Adult Social Care,REDACTED,13/04/2017,"1,627.05",73374-SUPPORTED & OTHER ACCOMMODATION,LD COMMISSIONING,Third Party Payments,Revenue
Walsall Council,http://opendatacommunities.org/id/metropolitan-district-council/walsall,WC79-141,30/04/2017,Childrens,REDACTED,07/04/2017,571.44,74501-MAINTENANCE ALLOWANCE-FOSTER CARERS,FAMILY & FRIENDS FOSTER CARE PROVISION,Transfer Payments,Revenue
Walsall Council,http://opendatacommunities.org/id/metropolitan-district-council/walsall,WC79-142,30/04/2017,Childrens,REDACTED,07/04/2017,552.96,74510-RESIDENTS ORDERS,ADOPTION ALLOWANCES,Third Party Payments,Revenue
Walsall Council,http://opendatacommunities.org/id/metropolitan-district-council/walsall,WC79-143,30/04/2017,Change and Governance,ALLSORTS OFFICE SUPPLIES LTD,07/04/2017,"2,520.00",63800-COMPUTER EQUIPMENT AND SUPPLIES,RECHARGEABLE EQUIPMENT,Supplies & Services,Revenue
Walsall Council,http://opendatacommunities.org/id/metropolitan-district-council/walsall,WC79-144,30/04/2017,Adult Social Care,ALMA COURT,10/04/2017,"2,790.00",73374-SUPPORTED & OTHER ACCOMMODATION,OP COMMISSIONING,Third Party Payments,Revenue
Walsall Council,http://opendatacommunities.org/id/metropolitan-district-council/walsall,WC79-145,30/04/2017,Adult Social Care,ALMA COURT,12/04/2017,"3,107.14",73373-RESIDENTIAL & NURSING CARE PLACEMENTS,MH COMMISSIONING,Third Party Payments,Revenue
Walsall Council,http://opendatacommunities.org/id/metropolitan-district-council/walsall,WC79-146,30/04/2017,Adult Social Care,ALMA COURT,13/04/2017,"6,113.10",73373-RESIDENTIAL & NURSING CARE PLACEMENTS,MH COMMISSIONING,Third Party Payments,Revenue
Walsall Council,http://opendatacommunities.org/id/metropolitan-district-council/walsall,WC79-147,30/04/2017,Childrens,ALMOZENE NURSERY & CHILDRENS CENTRE,03/04/2017,653.20,63000-PROFESSIONAL FEES AND SERVICES,LOOKED AFTER CHILDRENS SOCIAL WORK TEAM,Supplies & Services,Revenue
Walsall Council,http://opendatacommunities.org/id/metropolitan-district-council/walsall,WC79-148,30/04/2017,Childrens,ALMOZENE NURSERY & CHILDRENS CENTRE,03/04/2017,"8,174.40",66505-OTHER-GRANTS TO OTHER ORGS,EARLY YEARS - 2 YR OLDS,Third Party Payments,Revenue
Walsall Council,http://opendatacommunities.org/id/metropolitan-district-council/walsall,WC79-149,30/04/2017,Childrens,ALMOZENE NURSERY & CHILDRENS CENTRE,03/04/2017,"11,694.00",66505-OTHER-GRANTS TO OTHER ORGS,EARLY YEARS - 3 YR OLDS,Third Party Payments,Revenue
Walsall Council,http://opendatacommunities.org/id/metropolitan-district-council/walsall,WC79-150,30/04/2017,Childrens,ALPHA HAIR DESIGN ACADEMY,04/04/2017,"2,200.00",60500-GENERAL MATERIALS,PUPIL REFERAL UNIT EXCLUSIONS,Supplies & Services,Revenue
Walsall Council,http://opendatacommunities.org/id/metropolitan-district-council/walsall,WC79-151,30/04/2017,Adult Social Care,ALPHA HEALTH CARE LTD,12/04/2017,"1,620.00",73373-RESIDENTIAL & NURSING CARE PLACEMENTS,OP COMMISSIONING,Third Party Payments,Revenue
Walsall Council,http://opendatacommunities.org/id/metropolitan-district-council/walsall,WC79-152,30/04/2017,Adult Social Care,ALPHA HEALTH CARE LTD,12/04/2017,"1,620.00",73373-RESIDENTIAL & NURSING CARE PLACEMENTS,OP COMMISSIONING,Third Party Payments,Revenue
Walsall Council,http://opendatacommunities.org/id/metropolitan-district-council/walsall,WC79-153,30/04/2017,Adult Social Care,ALPHA HEALTH CARE LTD,12/04/2017,"1,620.00",73373-RESIDENTIAL & NURSING CARE PLACEMENTS,OP COMMISSIONING,Third Party Payments,Revenue
Walsall Council,http://opendatacommunities.org/id/metropolitan-district-council/walsall,WC79-154,30/04/2017,Adult Social Care,ALPHA HEALTH CARE LTD,13/04/2017,"1,631.25",73373-RESIDENTIAL & NURSING CARE PLACEMENTS,OP COMMISSIONING,Third Party Payments,Revenue
Walsall Council,http://opendatacommunities.org/id/metropolitan-district-council/walsall,WC79-155,30/04/2017,Adult Social Care,ALPHA HEALTH CARE LTD,12/04/2017,"1,649.80",73373-RESIDENTIAL & NURSING CARE PLACEMENTS,OP COMMISSIONING,Third Party Payments,Revenue
Walsall Council,http://opendatacommunities.org/id/metropolitan-district-council/walsall,WC79-156,30/04/2017,Adult Social Care,ALPHA HEALTH CARE LTD,12/04/2017,"1,649.80",73373-RESIDENTIAL & NURSING CARE PLACEMENTS,OP COMMISSIONING,Third Party Payments,Revenue
Walsall Council,http://opendatacommunities.org/id/metropolitan-district-council/walsall,WC79-157,30/04/2017,Adult Social Care,ALPHA HEALTH CARE LTD,12/04/2017,"1,649.80",73373-RESIDENTIAL & NURSING CARE PLACEMENTS,OP COMMISSIONING,Third Party Payments,Revenue
Walsall Council,http://opendatacommunities.org/id/metropolitan-district-council/walsall,WC79-158,30/04/2017,Adult Social Care,ALPHA HEALTH CARE LTD,12/04/2017,"1,649.80",73373-RESIDENTIAL & NURSING CARE PLACEMENTS,OP COMMISSIONING,Third Party Payments,Revenue
Walsall Council,http://opendatacommunities.org/id/metropolitan-district-council/walsall,WC79-159,30/04/2017,Adult Social Care,ALPHA HEALTH CARE LTD,12/04/2017,"1,649.80",73373-RESIDENTIAL & NURSING CARE PLACEMENTS,MH COMMISSIONING,Third Party Payments,Revenue
Walsall Council,http://opendatacommunities.org/id/metropolitan-district-council/walsall,WC79-160,30/04/2017,Adult Social Care,ALPHA HEALTH CARE LTD,12/04/2017,"1,649.80",73373-RESIDENTIAL & NURSING CARE PLACEMENTS,OP COMMISSIONING,Third Party Payments,Revenue
Walsall Council,http://opendatacommunities.org/id/metropolitan-district-council/walsall,WC79-161,30/04/2017,Adult Social Care,ALPHA HEALTH CARE LTD,12/04/2017,"1,649.80",73373-RESIDENTIAL & NURSING CARE PLACEMENTS,OP COMMISSIONING,Third Party Payments,Revenue
Walsall Council,http://opendatacommunities.org/id/metropolitan-district-council/walsall,WC79-162,30/04/2017,Adult Social Care,ALPHA HEALTH CARE LTD,12/04/2017,"1,649.80",73373-RESIDENTIAL & NURSING CARE PLACEMENTS,OP COMMISSIONING,Third Party Payments,Revenue
Walsall Council,http://opendatacommunities.org/id/metropolitan-district-council/walsall,WC79-163,30/04/2017,Adult Social Care,ALPHA HEALTH CARE LTD,12/04/2017,"1,649.80",73373-RESIDENTIAL & NURSING CARE PLACEMENTS,MH COMMISSIONING,Third Party Payments,Revenue
Walsall Council,http://opendatacommunities.org/id/metropolitan-district-council/walsall,WC79-164,30/04/2017,Adult Social Care,ALPHA HEALTH CARE LTD,12/04/2017,"1,800.00",73373-RESIDENTIAL & NURSING CARE PLACEMENTS,OP COMMISSIONING,Third Party Payments,Revenue
Walsall Council,http://opendatacommunities.org/id/metropolitan-district-council/walsall,WC79-165,30/04/2017,Adult Social Care,ALPHA HEALTH CARE LTD,12/04/2017,"2,095.00",73373-RESIDENTIAL & NURSING CARE PLACEMENTS,OP COMMISSIONING,Third Party Payments,Revenue
Walsall Council,http://opendatacommunities.org/id/metropolitan-district-council/walsall,WC79-166,30/04/2017,Adult Social Care,ALPHA HEALTH CARE LTD,12/04/2017,"2,095.00",73373-RESIDENTIAL & NURSING CARE PLACEMENTS,OP COMMISSIONING,Third Party Payments,Revenue
Walsall Council,http://opendatacommunities.org/id/metropolitan-district-council/walsall,WC79-167,30/04/2017,Adult Social Care,ALPHA HEALTH CARE LTD,12/04/2017,"2,175.00",73373-RESIDENTIAL & NURSING CARE PLACEMENTS,OP COMMISSIONING,Third Party Payments,Revenue
Walsall Council,http://opendatacommunities.org/id/metropolitan-district-council/walsall,WC79-168,30/04/2017,Adult Social Care,ALPHA HEALTH CARE LTD,13/04/2017,"2,175.00",73373-RESIDENTIAL & NURSING CARE PLACEMENTS,OP COMMISSIONING,Third Party Payments,Revenue
Walsall Council,http://opendatacommunities.org/id/metropolitan-district-council/walsall,WC79-169,30/04/2017,Adult Social Care,ALPHA HEALTH CARE LTD,13/04/2017,"2,252.68",73373-RESIDENTIAL & NURSING CARE PLACEMENTS,OP COMMISSIONING,Third Party Payments,Revenue
Walsall Council,http://opendatacommunities.org/id/metropolitan-district-council/walsall,WC79-170,30/04/2017,Adult Social Care,ALPHA HEALTH CARE LTD,12/04/2017,"2,326.00",73373-RESIDENTIAL & NURSING CARE PLACEMENTS,MH COMMISSIONING,Third Party Payments,Revenue
Walsall Council,http://opendatacommunities.org/id/metropolitan-district-council/walsall,WC79-171,30/04/2017,Adult Social Care,ALPHA HEALTH CARE LTD,12/04/2017,"2,864.28",73373-RESIDENTIAL & NURSING CARE PLACEMENTS,MH COMMISSIONING,Third Party Payments,Revenue
Walsall Council,http://opendatacommunities.org/id/metropolitan-district-council/walsall,WC79-172,30/04/2017,Adult Social Care,ALPHA HEALTH CARE LTD,12/04/2017,"5,800.00",73373-RESIDENTIAL & NURSING CARE PLACEMENTS,MH COMMISSIONING,Third Party Payments,Revenue
Walsall Council,http://opendatacommunities.org/id/metropolitan-district-council/walsall,WC79-173,30/04/2017,Adult Social Care,ALPHA HEALTH CARE LTD,12/04/2017,"5,800.00",73373-RESIDENTIAL & NURSING CARE PLACEMENTS,MH COMMISSIONING,Third Party Payments,Revenue
Walsall Council,http://opendatacommunities.org/id/metropolitan-district-council/walsall,WC79-174,30/04/2017,Childrens,AMAH NURSERIES LIMITED T/A BANANA MOON WALSALL,12/04/2017,"1,634.88",66505-OTHER-GRANTS TO OTHER ORGS,EARLY YEARS - 2 YR OLDS,Third Party Payments,Revenue
Walsall Council,http://opendatacommunities.org/id/metropolitan-district-council/walsall,WC79-175,30/04/2017,Childrens,AMAH NURSERIES LIMITED T/A BANANA MOON WALSALL,03/04/2017,"4,599.00",66505-OTHER-GRANTS TO OTHER ORGS,EARLY YEARS - 3 YR OLDS,Third Party Payments,Revenue
Walsall Council,http://opendatacommunities.org/id/metropolitan-district-council/walsall,WC79-176,30/04/2017,Childrens,AMAH NURSERIES LIMITED T/A BANANA MOON WALSALL,03/04/2017,"6,539.20",66505-OTHER-GRANTS TO OTHER ORGS,EARLY YEARS - 2 YR OLDS,Third Party Payments,Revenue
Walsall Council,http://opendatacommunities.org/id/metropolitan-district-council/walsall,WC79-177,30/04/2017,Childrens,REDACTED,07/04/2017,808.04,74009-ADOPTION ALLOWANCE,ADOPTION ALLOWANCES,Transfer Payments,Revenue
Walsall Council,http://opendatacommunities.org/id/metropolitan-district-council/walsall,WC79-178,30/04/2017,Childrens,REDACTED,24/04/2017,9.24,60006-NEW-FURNITURE & EQUIPMENT,INTERNAL FOSTER CARE PROVISION,Supplies & Services,Revenue
Walsall Council,http://opendatacommunities.org/id/metropolitan-district-council/walsall,WC79-179,30/04/2017,Childrens,REDACTED,24/04/2017,36.53,74506-TRAVEL-FOSTER CARERS,INTERNAL FOSTER CARE PROVISION,Transfer Payments,Revenue
Walsall Council,http://opendatacommunities.org/id/metropolitan-district-council/walsall,WC79-180,30/04/2017,Childrens,REDACTED,24/04/2017,530.96,74508-INTERNAL FOSTER CARERS-CARER FEES,INTERNAL FOSTER CARE PROVISION,Transfer Payments,Revenue
Walsall Council,http://opendatacommunities.org/id/metropolitan-district-council/walsall,WC79-181,30/04/2017,Childrens,REDACTED,24/04/2017,650.92,74501-MAINTENANCE ALLOWANCE-FOSTER CARERS,INTERNAL FOSTER CARE PROVISION,Transfer Payments,Revenue
Walsall Council,http://opendatacommunities.org/id/metropolitan-district-council/walsall,WC79-182,30/04/2017,Childrens,REDACTED,10/04/2017,336.92,76422-DIRECT PAYMENTS TO SOCIAL SERVICES CLIENTS,FAMILY SUPPORT - DIRECT PAYMENTS,Transfer Payments,Revenue
Walsall Council,http://opendatacommunities.org/id/metropolitan-district-council/walsall,WC79-183,30/04/2017,Change and Governance,AMBERHAWK TRAINING LIMITED,03/04/2017,300.00,30030-EXTERNAL TRAINING,BUSINESS IMPROVEMENT SERVICE,Employees,Revenue
Walsall Council,http://opendatacommunities.org/id/metropolitan-district-council/walsall,WC79-184,30/04/2017,Economy & Environment,AMEY LG LIMITED,07/04/2017,"1,020.97",73002-SECURITY-PRIV CONTRACTOR FEES,TRAFFIC CONTROL,Third Party Payments,Revenue
Walsall Council,http://opendatacommunities.org/id/metropolitan-district-council/walsall,WC79-185,30/04/2017,Economy & Environment,AMEY LG LIMITED,03/04/2017,"2,269.83",01009-SITE WORKS - OTHER CONTRACTORS,CFR 819 LTP-YORKS BRIDGE,Capital,Capital
Walsall Council,http://opendatacommunities.org/id/metropolitan-district-council/walsall,WC79-186,30/04/2017,Economy & Environment,AMEY LG LIMITED,03/04/2017,"5,129.64",01006-SITE WORKS MAIN CONTRACTORS,CFR 1147 HIGHWAY EFFICENCY MEASURES 2016/17,Capital,Capital
Walsall Council,http://opendatacommunities.org/id/metropolitan-district-council/walsall,WC79-187,30/04/2017,Economy & Environment,AMEY LG LIMITED,05/04/2017,"19,396.80",01002-PROJECT FEES,CFR 1072 TRANSPORTATION GROWTH DEAL ACCESSING GROWTH,Capital,Capital
Walsall Council,http://opendatacommunities.org/id/metropolitan-district-council/walsall,WC79-188,30/04/2017,Economy & Environment,AMEY LG LIMITED,03/04/2017,"25,787.13",73025-PROFESSIONAL SERVICES-PRIV CONTRACTOR & OTHER AGENCIES,TRAFFIC MANAGEMENT,Third Party Payments,Revenue
Walsall Council,http://opendatacommunities.org/id/metropolitan-district-council/walsall,WC79-189,30/04/2017,Childrens,AMG NURSING CARE SERVICES,03/04/2017,"2,274.48",63000-PROFESSIONAL FEES AND SERVICES,DIRECTLY COMMISSIONED NURSING SERVICES,Supplies & Services,Revenue
Walsall Council,http://opendatacommunities.org/id/metropolitan-district-council/walsall,WC79-190,30/04/2017,Childrens,AMG NURSING CARE SERVICES,07/04/2017,"2,274.48",63000-PROFESSIONAL FEES AND SERVICES,DIRECTLY COMMISSIONED NURSING SERVICES,Supplies & Services,Revenue
Walsall Council,http://opendatacommunities.org/id/metropolitan-district-council/walsall,WC79-191,30/04/2017,Childrens,REDACTED,07/04/2017,9.24,60006-NEW-FURNITURE & EQUIPMENT,FAMILY & FRIENDS FOSTER CARE PROVISION,Supplies & Services,Revenue
Walsall Council,http://opendatacommunities.org/id/metropolitan-district-council/walsall,WC79-192,30/04/2017,Childrens,REDACTED,07/04/2017,345.24,74508-INTERNAL FOSTER CARERS-CARER FEES,FAMILY & FRIENDS FOSTER CARE PROVISION,Transfer Payments,Revenue
Walsall Council,http://opendatacommunities.org/id/metropolitan-district-council/walsall,WC79-193,30/04/2017,Childrens,REDACTED,07/04/2017,571.44,74501-MAINTENANCE ALLOWANCE-FOSTER CARERS,FAMILY & FRIENDS FOSTER CARE PROVISION,Transfer Payments,Revenue
Walsall Council,http://opendatacommunities.org/id/metropolitan-district-council/walsall,WC79-194,30/04/2017,Childrens,REDACTED,07/04/2017,869.00,74506-TRAVEL-FOSTER CARERS,FAMILY & FRIENDS FOSTER CARE PROVISION,Transfer Payments,Revenue
Walsall Council,http://opendatacommunities.org/id/metropolitan-district-council/walsall,WC79-195,30/04/2017,Childrens,REDACTED,07/04/2017,425.08,74510-RESIDENTS ORDERS,ADOPTION ALLOWANCES,Third Party Payments,Revenue
Walsall Council,http://opendatacommunities.org/id/metropolitan-district-council/walsall,WC79-196,30/04/2017,Adult Social Care,REDACTED,10/04/2017,576.00,76422-DIRECT PAYMENTS TO SOCIAL SERVICES CLIENTS,OP COMMISSIONING,Transfer Payments,Revenue
Walsall Council,http://opendatacommunities.org/id/metropolitan-district-council/walsall,WC79-197,30/04/2017,Adult Social Care,ANCHOR,26/04/2017,"1,028.57",73373-RESIDENTIAL & NURSING CARE PLACEMENTS,MH COMMISSIONING,Third Party Payments,Revenue
Walsall Council,http://opendatacommunities.org/id/metropolitan-district-council/walsall,WC79-198,30/04/2017,Adult Social Care,ANCHOR,26/04/2017,"1,504.28",73373-RESIDENTIAL & NURSING CARE PLACEMENTS,OP COMMISSIONING,Third Party Payments,Revenue
Walsall Council,http://opendatacommunities.org/id/metropolitan-district-council/walsall,WC79-199,30/04/2017,Adult Social Care,ANCHOR,26/04/2017,"1,504.28",73373-RESIDENTIAL & NURSING CARE PLACEMENTS,OP COMMISSIONING,Third Party Payments,Revenue
Walsall Council,http://opendatacommunities.org/id/metropolitan-district-council/walsall,WC79-200,30/04/2017,Adult Social Care,ANCHOR,26/04/2017,"1,671.42",73373-RESIDENTIAL & NURSING CARE PLACEMENTS,OP COMMISSIONING,Third Party Payments,Revenue
Walsall Council,http://opendatacommunities.org/id/metropolitan-district-council/walsall,WC79-201,30/04/2017,Adult Social Care,ANCHOR,26/04/2017,"1,671.43",73373-RESIDENTIAL & NURSING CARE PLACEMENTS,OP COMMISSIONING,Third Party Payments,Revenue
Walsall Council,http://opendatacommunities.org/id/metropolitan-district-council/walsall,WC79-202,30/04/2017,Adult Social Care,ANCHOR,26/04/2017,"1,671.43",73373-RESIDENTIAL & NURSING CARE PLACEMENTS,OP COMMISSIONING,Third Party Payments,Revenue
Walsall Council,http://opendatacommunities.org/id/metropolitan-district-council/walsall,WC79-203,30/04/2017,Adult Social Care,ANCHOR,26/04/2017,"1,671.43",73373-RESIDENTIAL & NURSING CARE PLACEMENTS,OP COMMISSIONING,Third Party Payments,Revenue
Walsall Council,http://opendatacommunities.org/id/metropolitan-district-council/walsall,WC79-204,30/04/2017,Adult Social Care,ANCHOR,26/04/2017,"1,671.43",73373-RESIDENTIAL & NURSING CARE PLACEMENTS,OP COMMISSIONING,Third Party Payments,Revenue
Walsall Council,http://opendatacommunities.org/id/metropolitan-district-council/walsall,WC79-205,30/04/2017,Adult Social Care,ANCHOR,26/04/2017,"1,671.43",73373-RESIDENTIAL & NURSING CARE PLACEMENTS,OP COMMISSIONING,Third Party Payments,Revenue
Walsall Council,http://opendatacommunities.org/id/metropolitan-district-council/walsall,WC79-206,30/04/2017,Adult Social Care,ANCHOR,26/04/2017,"1,671.43",73373-RESIDENTIAL & NURSING CARE PLACEMENTS,OP COMMISSIONING,Third Party Payments,Revenue
Walsall Council,http://opendatacommunities.org/id/metropolitan-district-council/walsall,WC79-207,30/04/2017,Adult Social Care,ANCHOR,26/04/2017,"1,671.43",73373-RESIDENTIAL & NURSING CARE PLACEMENTS,OP COMMISSIONING,Third Party Payments,Revenue
Walsall Council,http://opendatacommunities.org/id/metropolitan-district-council/walsall,WC79-208,30/04/2017,Adult Social Care,ANCHOR,26/04/2017,"1,671.43",73373-RESIDENTIAL & NURSING CARE PLACEMENTS,OP COMMISSIONING,Third Party Payments,Revenue
Walsall Council,http://opendatacommunities.org/id/metropolitan-district-council/walsall,WC79-209,30/04/2017,Adult Social Care,ANCHOR,26/04/2017,"1,671.43",73373-RESIDENTIAL & NURSING CARE PLACEMENTS,OP COMMISSIONING,Third Party Payments,Revenue
Walsall Council,http://opendatacommunities.org/id/metropolitan-district-council/walsall,WC79-210,30/04/2017,Adult Social Care,ANCHOR,26/04/2017,"1,671.43",73373-RESIDENTIAL & NURSING CARE PLACEMENTS,OP COMMISSIONING,Third Party Payments,Revenue
Walsall Council,http://opendatacommunities.org/id/metropolitan-district-council/walsall,WC79-211,30/04/2017,Adult Social Care,ANCHOR,26/04/2017,"1,671.43",73373-RESIDENTIAL & NURSING CARE PLACEMENTS,MH COMMISSIONING,Third Party Payments,Revenue
Walsall Council,http://opendatacommunities.org/id/metropolitan-district-council/walsall,WC79-212,30/04/2017,Adult Social Care,ANCHOR,26/04/2017,"1,671.43",73373-RESIDENTIAL & NURSING CARE PLACEMENTS,OP COMMISSIONING,Third Party Payments,Revenue
Walsall Council,http://opendatacommunities.org/id/metropolitan-district-council/walsall,WC79-213,30/04/2017,Adult Social Care,ANCHOR,26/04/2017,"1,671.43",73373-RESIDENTIAL & NURSING CARE PLACEMENTS,OP COMMISSIONING,Third Party Payments,Revenue
Walsall Council,http://opendatacommunities.org/id/metropolitan-district-council/walsall,WC79-214,30/04/2017,Childrens,REDACTED,24/04/2017,9.24,60006-NEW-FURNITURE & EQUIPMENT,INTERNAL FOSTER CARE PROVISION,Supplies & Services,Revenue
Walsall Council,http://opendatacommunities.org/id/metropolitan-district-council/walsall,WC79-215,30/04/2017,Childrens,REDACTED,24/04/2017,810.32,74501-MAINTENANCE ALLOWANCE-FOSTER CARERS,INTERNAL FOSTER CARE PROVISION,Transfer Payments,Revenue
Walsall Council,http://opendatacommunities.org/id/metropolitan-district-council/walsall,WC79-216,30/04/2017,Childrens,REDACTED,24/04/2017,897.52,74508-INTERNAL FOSTER CARERS-CARER FEES,INTERNAL FOSTER CARE PROVISION,Transfer Payments,Revenue
Walsall Council,http://opendatacommunities.org/id/metropolitan-district-council/walsall,WC79-217,30/04/2017,Adult Social Care,ANGEL COURT RESIDENTIAL CARE HOME,12/04/2017,"1,735.71",73373-RESIDENTIAL & NURSING CARE PLACEMENTS,OP COMMISSIONING,Third Party Payments,Revenue
Walsall Council,http://opendatacommunities.org/id/metropolitan-district-council/walsall,WC79-218,30/04/2017,Adult Social Care,ANGEL COURT RESIDENTIAL CARE HOME,26/04/2017,"1,799.55",73373-RESIDENTIAL & NURSING CARE PLACEMENTS,OP COMMISSIONING,Third Party Payments,Revenue
Walsall Council,http://opendatacommunities.org/id/metropolitan-district-council/walsall,WC79-219,30/04/2017,Adult Social Care,ANGEL COURT RESIDENTIAL CARE HOME,04/04/2017,"1,900.00",73373-RESIDENTIAL & NURSING CARE PLACEMENTS,OP COMMISSIONING,Third Party Payments,Revenue
Walsall Council,http://opendatacommunities.org/id/metropolitan-district-council/walsall,WC79-220,30/04/2017,Adult Social Care,ANGEL COURT RESIDENTIAL CARE HOME,26/04/2017,"1,928.57",73373-RESIDENTIAL & NURSING CARE PLACEMENTS,OP COMMISSIONING,Third Party Payments,Revenue
Walsall Council,http://opendatacommunities.org/id/metropolitan-district-council/walsall,WC79-221,30/04/2017,Adult Social Care,ANGEL COURT RESIDENTIAL CARE HOME,26/04/2017,"1,992.36",73373-RESIDENTIAL & NURSING CARE PLACEMENTS,OP COMMISSIONING,Third Party Payments,Revenue
Walsall Council,http://opendatacommunities.org/id/metropolitan-district-council/walsall,WC79-222,30/04/2017,Adult Social Care,ANGEL COURT RESIDENTIAL CARE HOME,26/04/2017,"1,992.86",73373-RESIDENTIAL & NURSING CARE PLACEMENTS,OP COMMISSIONING,Third Party Payments,Revenue
Walsall Council,http://opendatacommunities.org/id/metropolitan-district-council/walsall,WC79-223,30/04/2017,Adult Social Care,ANGEL COURT RESIDENTIAL CARE HOME,26/04/2017,"1,992.86",73373-RESIDENTIAL & NURSING CARE PLACEMENTS,OP COMMISSIONING,Third Party Payments,Revenue
Walsall Council,http://opendatacommunities.org/id/metropolitan-district-council/walsall,WC79-224,30/04/2017,Adult Social Care,ANGEL COURT RESIDENTIAL CARE HOME,12/04/2017,"2,006.95",73373-RESIDENTIAL & NURSING CARE PLACEMENTS,OP COMMISSIONING,Third Party Payments,Revenue
Walsall Council,http://opendatacommunities.org/id/metropolitan-district-council/walsall,WC79-225,30/04/2017,Adult Social Care,ANGEL COURT RESIDENTIAL CARE HOME,04/04/2017,"2,073.85",73373-RESIDENTIAL & NURSING CARE PLACEMENTS,OP COMMISSIONING,Third Party Payments,Revenue
Walsall Council,http://opendatacommunities.org/id/metropolitan-district-council/walsall,WC79-226,30/04/2017,Adult Social Care,ANGEL COURT RESIDENTIAL CARE HOME,12/04/2017,"2,080.71",73373-RESIDENTIAL & NURSING CARE PLACEMENTS,OP COMMISSIONING,Third Party Payments,Revenue
Walsall Council,http://opendatacommunities.org/id/metropolitan-district-council/walsall,WC79-227,30/04/2017,Adult Social Care,ANGEL COURT RESIDENTIAL CARE HOME,04/04/2017,"2,150.07",73373-RESIDENTIAL & NURSING CARE PLACEMENTS,OP COMMISSIONING,Third Party Payments,Revenue
Walsall Council,http://opendatacommunities.org/id/metropolitan-district-council/walsall,WC79-228,30/04/2017,Adult Social Care,ANGEL COURT RESIDENTIAL CARE HOME,26/04/2017,"2,892.86",73373-RESIDENTIAL & NURSING CARE PLACEMENTS,OP COMMISSIONING,Third Party Payments,Revenue
Walsall Council,http://opendatacommunities.org/id/metropolitan-district-council/walsall,WC79-229,30/04/2017,Adult Social Care,ANGEL COURT RESIDENTIAL CARE HOME,04/04/2017,"3,529.29",73373-RESIDENTIAL & NURSING CARE PLACEMENTS,OP COMMISSIONING,Third Party Payments,Revenue
Walsall Council,http://opendatacommunities.org/id/metropolitan-district-council/walsall,WC79-230,30/04/2017,Childrens,ANGEL SPRINGS LTD,05/04/2017,508.26,60000-FURNITURE & EQUIPMENT,LOCALITY FAMILY SUPPORT-NORTH,Supplies & Services,Revenue
Walsall Council,http://opendatacommunities.org/id/metropolitan-district-council/walsall,WC79-231,30/04/2017,Childrens,REDACTED,07/04/2017,368.76,74509-SPECIAL GUARDIANSHIP ORDERS,ADOPTION ALLOWANCES,Transfer Payments,Revenue
Walsall Council,http://opendatacommunities.org/id/metropolitan-district-council/walsall,WC79-232,30/04/2017,Childrens,REDACTED,07/04/2017,368.76,74509-SPECIAL GUARDIANSHIP ORDERS,ADOPTION ALLOWANCES,Transfer Payments,Revenue
Walsall Council,http://opendatacommunities.org/id/metropolitan-district-council/walsall,WC79-233,30/04/2017,Childrens,REDACTED,07/04/2017,500.16,74509-SPECIAL GUARDIANSHIP ORDERS,ADOPTION ALLOWANCES,Transfer Payments,Revenue
Walsall Council,http://opendatacommunities.org/id/metropolitan-district-council/walsall,WC79-234,30/04/2017,Childrens,REDACTED,07/04/2017,327.94,74509-SPECIAL GUARDIANSHIP ORDERS,ADOPTION ALLOWANCES,Transfer Payments,Revenue
Walsall Council,http://opendatacommunities.org/id/metropolitan-district-council/walsall,WC79-235,30/04/2017,Adult Social Care,REDACTED,10/04/2017,344.00,76422-DIRECT PAYMENTS TO SOCIAL SERVICES CLIENTS,LD COMMISSIONING,Transfer Payments,Revenue
Walsall Council,http://opendatacommunities.org/id/metropolitan-district-council/walsall,WC79-236,30/04/2017,Adult Social Care,ANSON COURT RESIDENTIAL HOME,12/04/2017,"1,800.00",73373-RESIDENTIAL & NURSING CARE PLACEMENTS,OP COMMISSIONING,Third Party Payments,Revenue
Walsall Council,http://opendatacommunities.org/id/metropolitan-district-council/walsall,WC79-237,30/04/2017,Adult Social Care,ANSON COURT RESIDENTIAL HOME,12/04/2017,"1,800.00",73373-RESIDENTIAL & NURSING CARE PLACEMENTS,OP COMMISSIONING,Third Party Payments,Revenue
Walsall Council,http://opendatacommunities.org/id/metropolitan-district-council/walsall,WC79-238,30/04/2017,Adult Social Care,ANSON COURT RESIDENTIAL HOME,12/04/2017,"1,800.00",73373-RESIDENTIAL & NURSING CARE PLACEMENTS,MH COMMISSIONING,Third Party Payments,Revenue
Walsall Council,http://opendatacommunities.org/id/metropolitan-district-council/walsall,WC79-239,30/04/2017,Adult Social Care,ANSON COURT RESIDENTIAL HOME,12/04/2017,"1,800.00",73373-RESIDENTIAL & NURSING CARE PLACEMENTS,OP COMMISSIONING,Third Party Payments,Revenue
Walsall Council,http://opendatacommunities.org/id/metropolitan-district-council/walsall,WC79-240,30/04/2017,Adult Social Care,ANSON COURT RESIDENTIAL HOME,12/04/2017,"1,800.00",73373-RESIDENTIAL & NURSING CARE PLACEMENTS,OP COMMISSIONING,Third Party Payments,Revenue
Walsall Council,http://opendatacommunities.org/id/metropolitan-district-council/walsall,WC79-241,30/04/2017,Adult Social Care,ANSON COURT RESIDENTIAL HOME,12/04/2017,"1,800.00",73373-RESIDENTIAL & NURSING CARE PLACEMENTS,OP COMMISSIONING,Third Party Payments,Revenue
Walsall Council,http://opendatacommunities.org/id/metropolitan-district-council/walsall,WC79-242,30/04/2017,Adult Social Care,ANSON COURT RESIDENTIAL HOME,12/04/2017,"1,800.00",73373-RESIDENTIAL & NURSING CARE PLACEMENTS,OP COMMISSIONING,Third Party Payments,Revenue
Walsall Council,http://opendatacommunities.org/id/metropolitan-district-council/walsall,WC79-243,30/04/2017,Adult Social Care,ANSON COURT RESIDENTIAL HOME,12/04/2017,"1,800.00",73373-RESIDENTIAL & NURSING CARE PLACEMENTS,MH COMMISSIONING,Third Party Payments,Revenue
Walsall Council,http://opendatacommunities.org/id/metropolitan-district-council/walsall,WC79-244,30/04/2017,Adult Social Care,ANSON COURT RESIDENTIAL HOME,12/04/2017,"1,800.00",73373-RESIDENTIAL & NURSING CARE PLACEMENTS,OP COMMISSIONING,Third Party Payments,Revenue
Walsall Council,http://opendatacommunities.org/id/metropolitan-district-council/walsall,WC79-245,30/04/2017,Adult Social Care,ANSON COURT RESIDENTIAL HOME,12/04/2017,"1,800.00",73373-RESIDENTIAL & NURSING CARE PLACEMENTS,OP COMMISSIONING,Third Party Payments,Revenue
Walsall Council,http://opendatacommunities.org/id/metropolitan-district-council/walsall,WC79-246,30/04/2017,Adult Social Care,ANSON COURT RESIDENTIAL HOME,12/04/2017,"1,800.00",73373-RESIDENTIAL & NURSING CARE PLACEMENTS,OP COMMISSIONING,Third Party Payments,Revenue
Walsall Council,http://opendatacommunities.org/id/metropolitan-district-council/walsall,WC79-247,30/04/2017,Adult Social Care,ANSON COURT RESIDENTIAL HOME,12/04/2017,"1,800.00",73373-RESIDENTIAL & NURSING CARE PLACEMENTS,MH COMMISSIONING,Third Party Payments,Revenue
Walsall Council,http://opendatacommunities.org/id/metropolitan-district-council/walsall,WC79-248,30/04/2017,Adult Social Care,ANSON COURT RESIDENTIAL HOME,12/04/2017,"1,800.00",73373-RESIDENTIAL & NURSING CARE PLACEMENTS,OP COMMISSIONING,Third Party Payments,Revenue
Walsall Council,http://opendatacommunities.org/id/metropolitan-district-council/walsall,WC79-249,30/04/2017,Adult Social Care,ANSON COURT RESIDENTIAL HOME,12/04/2017,"1,800.00",73373-RESIDENTIAL & NURSING CARE PLACEMENTS,OP COMMISSIONING,Third Party Payments,Revenue
Walsall Council,http://opendatacommunities.org/id/metropolitan-district-council/walsall,WC79-250,30/04/2017,Adult Social Care,ANSON COURT RESIDENTIAL HOME,12/04/2017,"1,800.00",73373-RESIDENTIAL & NURSING CARE PLACEMENTS,OP COMMISSIONING,Third Party Payments,Revenue
Walsall Council,http://opendatacommunities.org/id/metropolitan-district-council/walsall,WC79-251,30/04/2017,Adult Social Care,ANSON COURT RESIDENTIAL HOME,12/04/2017,"1,800.00",73373-RESIDENTIAL & NURSING CARE PLACEMENTS,OP COMMISSIONING,Third Party Payments,Revenue
Walsall Council,http://opendatacommunities.org/id/metropolitan-district-council/walsall,WC79-252,30/04/2017,Adult Social Care,ANSON COURT RESIDENTIAL HOME,12/04/2017,"1,800.00",73373-RESIDENTIAL & NURSING CARE PLACEMENTS,OP COMMISSIONING,Third Party Payments,Revenue
Walsall Council,http://opendatacommunities.org/id/metropolitan-district-council/walsall,WC79-253,30/04/2017,Adult Social Care,ANSON COURT RESIDENTIAL HOME,12/04/2017,"1,800.00",73373-RESIDENTIAL & NURSING CARE PLACEMENTS,OP COMMISSIONING,Third Party Payments,Revenue
Walsall Council,http://opendatacommunities.org/id/metropolitan-district-council/walsall,WC79-254,30/04/2017,Adult Social Care,ANSON COURT RESIDENTIAL HOME,12/04/2017,"1,800.00",73373-RESIDENTIAL & NURSING CARE PLACEMENTS,OP COMMISSIONING,Third Party Payments,Revenue
Walsall Council,http://opendatacommunities.org/id/metropolitan-district-council/walsall,WC79-255,30/04/2017,Adult Social Care,ANSON COURT RESIDENTIAL HOME,12/04/2017,"1,800.00",73373-RESIDENTIAL & NURSING CARE PLACEMENTS,OP COMMISSIONING,Third Party Payments,Revenue
Walsall Council,http://opendatacommunities.org/id/metropolitan-district-council/walsall,WC79-256,30/04/2017,Adult Social Care,ANSON COURT RESIDENTIAL HOME,12/04/2017,"1,800.00",73373-RESIDENTIAL & NURSING CARE PLACEMENTS,OP COMMISSIONING,Third Party Payments,Revenue
Walsall Council,http://opendatacommunities.org/id/metropolitan-district-council/walsall,WC79-257,30/04/2017,Adult Social Care,ANSON COURT RESIDENTIAL HOME,13/04/2017,"1,800.00",73373-RESIDENTIAL & NURSING CARE PLACEMENTS,MH COMMISSIONING,Third Party Payments,Revenue
Walsall Council,http://opendatacommunities.org/id/metropolitan-district-council/walsall,WC79-258,30/04/2017,Adult Social Care,ANSON COURT RESIDENTIAL HOME,26/04/2017,"1,880.00",73373-RESIDENTIAL & NURSING CARE PLACEMENTS,OP COMMISSIONING,Third Party Payments,Revenue
Walsall Council,http://opendatacommunities.org/id/metropolitan-district-council/walsall,WC79-259,30/04/2017,Adult Social Care,ANSON COURT RESIDENTIAL HOME,12/04/2017,"4,880.00",73373-RESIDENTIAL & NURSING CARE PLACEMENTS,MH COMMISSIONING,Third Party Payments,Revenue
Walsall Council,http://opendatacommunities.org/id/metropolitan-district-council/walsall,WC79-260,30/04/2017,Adult Social Care,ANSON COURT RESIDENTIAL HOME,12/04/2017,"15,492.86",73373-RESIDENTIAL & NURSING CARE PLACEMENTS,OP COMMISSIONING,Third Party Payments,Revenue
Walsall Council,http://opendatacommunities.org/id/metropolitan-district-council/walsall,WC79-261,30/04/2017,Childrens,REDACTED,07/04/2017,631.99,74510-RESIDENTS ORDERS,ADOPTION ALLOWANCES,Third Party Payments,Revenue
Walsall Council,http://opendatacommunities.org/id/metropolitan-district-council/walsall,WC79-262,30/04/2017,Childrens,REDACTED,07/04/2017,324.39,74509-SPECIAL GUARDIANSHIP ORDERS,ADOPTION ALLOWANCES,Transfer Payments,Revenue
Walsall Council,http://opendatacommunities.org/id/metropolitan-district-council/walsall,WC79-263,30/04/2017,Economy & Environment,APCOA PARKING SERVICES (UK) LTD,24/04/2017,"48,543.86",73025-PROFESSIONAL SERVICES-PRIV CONTRACTOR & OTHER AGENCIES,PARKING SERVICES OFF-STREET,Third Party Payments,Revenue
Walsall Council,http://opendatacommunities.org/id/metropolitan-district-council/walsall,WC79-264,30/04/2017,Economy & Environment,AQUALYMPIC,13/04/2017,462.50,34305-AGENCY STAFF-EMPLOYEES,OAK PARK,Employees,Revenue
Walsall Council,http://opendatacommunities.org/id/metropolitan-district-council/walsall,WC79-265,30/04/2017,Economy & Environment,AQUALYMPIC,03/04/2017,537.50,34305-AGENCY STAFF-EMPLOYEES,OAK PARK,Employees,Revenue
Walsall Council,http://opendatacommunities.org/id/metropolitan-district-council/walsall,WC79-266,30/04/2017,Economy & Environment,AQUALYMPIC,12/04/2017,652.50,34305-AGENCY STAFF-EMPLOYEES,BLOXWICH LEISURE CENTRE,Employees,Revenue
Walsall Council,http://opendatacommunities.org/id/metropolitan-district-council/walsall,WC79-267,30/04/2017,Economy & Environment,AQUALYMPIC,13/04/2017,"1,155.00",34305-AGENCY STAFF-EMPLOYEES,OAK PARK,Employees,Revenue
Walsall Council,http://opendatacommunities.org/id/metropolitan-district-council/walsall,WC79-268,30/04/2017,Economy & Environment,AQUALYMPIC,20/04/2017,"1,372.50",34305-AGENCY STAFF-EMPLOYEES,OAK PARK,Employees,Revenue
Walsall Council,http://opendatacommunities.org/id/metropolitan-district-council/walsall,WC79-269,30/04/2017,Economy & Environment,AQUALYMPIC,20/04/2017,"1,712.50",34305-AGENCY STAFF-EMPLOYEES,OAK PARK,Employees,Revenue
Walsall Council,http://opendatacommunities.org/id/metropolitan-district-council/walsall,WC79-270,30/04/2017,Economy & Environment,AQUALYMPIC,20/04/2017,"2,017.50",34305-AGENCY STAFF-EMPLOYEES,OAK PARK,Employees,Revenue
Walsall Council,http://opendatacommunities.org/id/metropolitan-district-council/walsall,WC79-271,30/04/2017,Economy & Environment,AQUALYMPIC,07/04/2017,"2,137.50",34305-AGENCY STAFF-EMPLOYEES,OAK PARK,Employees,Revenue
Walsall Council,http://opendatacommunities.org/id/metropolitan-district-council/walsall,WC79-272,30/04/2017,Economy & Environment,AQUILA TRAINING SERVICES LTD,07/04/2017,455.00,30030-EXTERNAL TRAINING,COMMUNITY PROTECTION,Employees,Revenue
Walsall Council,http://opendatacommunities.org/id/metropolitan-district-council/walsall,WC79-273,30/04/2017,Adult Social Care,ARBORETUM NURSING HOME.,13/04/2017,"2,102.51",73373-RESIDENTIAL & NURSING CARE PLACEMENTS,OP COMMISSIONING,Third Party Payments,Revenue
Walsall Council,http://opendatacommunities.org/id/metropolitan-district-council/walsall,WC79-274,30/04/2017,Adult Social Care,ARBORETUM NURSING HOME.,13/04/2017,"2,166.89",73373-RESIDENTIAL & NURSING CARE PLACEMENTS,OP COMMISSIONING,Third Party Payments,Revenue
Walsall Council,http://opendatacommunities.org/id/metropolitan-district-council/walsall,WC79-275,30/04/2017,Adult Social Care,ARBORETUM NURSING HOME.,13/04/2017,"2,193.56",73373-RESIDENTIAL & NURSING CARE PLACEMENTS,PD COMMISSIONING,Third Party Payments,Revenue
Walsall Council,http://opendatacommunities.org/id/metropolitan-district-council/walsall,WC79-276,30/04/2017,Adult Social Care,ARBORETUM NURSING HOME.,13/04/2017,"2,193.57",73373-RESIDENTIAL & NURSING CARE PLACEMENTS,OP COMMISSIONING,Third Party Payments,Revenue
Walsall Council,http://opendatacommunities.org/id/metropolitan-district-council/walsall,WC79-277,30/04/2017,Adult Social Care,ARBORETUM NURSING HOME.,13/04/2017,"2,236.27",73373-RESIDENTIAL & NURSING CARE PLACEMENTS,OP COMMISSIONING,Third Party Payments,Revenue
Walsall Council,http://opendatacommunities.org/id/metropolitan-district-council/walsall,WC79-278,30/04/2017,Adult Social Care,ARBORETUM NURSING HOME.,13/04/2017,"2,237.00",73373-RESIDENTIAL & NURSING CARE PLACEMENTS,OP COMMISSIONING,Third Party Payments,Revenue
Walsall Council,http://opendatacommunities.org/id/metropolitan-district-council/walsall,WC79-279,30/04/2017,Economy & Environment,ARCHWAY TCS LTD,03/04/2017,707.50,60537-VEHICLE WASH PLANT-MATERIALS,DEPOT,Supplies & Services,Revenue
Walsall Council,http://opendatacommunities.org/id/metropolitan-district-council/walsall,WC79-280,30/04/2017,Childrens,ARNFIELD CARE LIMITED,24/04/2017,"15,616.00",74036-EXTERNAL RESIDENTIAL CARE-OTH AGENCY PROVISION,INDEPENDENT RESIDENTIAL HOMES,Third Party Payments,Revenue
Walsall Council,http://opendatacommunities.org/id/metropolitan-district-council/walsall,WC79-281,30/04/2017,Economy & Environment,ARTECO LIMITED T/A KRISTIN HJELLEGJERDE GALLERY,03/04/2017,"9,000.00",62526-DISCOVERY / GARMAN RYAN,NAG - GARMAN RYAN/PERMANENT COLLECTION,Supplies & Services,Revenue
Walsall Council,http://opendatacommunities.org/id/metropolitan-district-council/walsall,WC79-282,30/04/2017,Economy & Environment,ASA AWARDS,03/04/2017,431.07,60006-NEW-FURNITURE & EQUIPMENT,OAK PARK,Supplies & Services,Revenue
Walsall Council,http://opendatacommunities.org/id/metropolitan-district-council/walsall,WC79-283,30/04/2017,Economy & Environment,ASDA PHARMACY,12/04/2017,70.80,63000-PROFESSIONAL FEES AND SERVICES,SEXUAL HEALTH,Supplies & Services,Revenue
Walsall Council,http://opendatacommunities.org/id/metropolitan-district-council/walsall,WC79-284,30/04/2017,Economy & Environment,ASDA PHARMACY,12/04/2017,168.28,71007-CONTRIBUTION TO PCT,PUBLIC HEALTH BUSINESS SUPPORT,Third Party Payments,Revenue
Walsall Council,http://opendatacommunities.org/id/metropolitan-district-council/walsall,WC79-285,30/04/2017,Economy & Environment,ASDA PHARMACY,12/04/2017,242.76,71007-CONTRIBUTION TO PCT,PUBLIC HEALTH BUSINESS SUPPORT,Third Party Payments,Revenue
Walsall Council,http://opendatacommunities.org/id/metropolitan-district-council/walsall,WC79-286,30/04/2017,Economy & Environment,ASDA PHARMACY,12/04/2017,325.97,71007-CONTRIBUTION TO PCT,PUBLIC HEALTH BUSINESS SUPPORT,Third Party Payments,Revenue
Walsall Council,http://opendatacommunities.org/id/metropolitan-district-council/walsall,WC79-287,30/04/2017,Economy & Environment,ASDA PHARMACY,12/04/2017,487.90,63000-PROFESSIONAL FEES AND SERVICES,SEXUAL HEALTH,Supplies & Services,Revenue
Walsall Council,http://opendatacommunities.org/id/metropolitan-district-council/walsall,WC79-288,30/04/2017,Economy & Environment,ASDA PHARMACY,12/04/2017,584.10,63000-PROFESSIONAL FEES AND SERVICES,SEXUAL HEALTH,Supplies & Services,Revenue
Walsall Council,http://opendatacommunities.org/id/metropolitan-district-council/walsall,WC79-289,30/04/2017,Adult Social Care,ASH GRANGE CARE HOME,26/04/2017,"-1,471.11",73373-RESIDENTIAL & NURSING CARE PLACEMENTS,OP COMMISSIONING,Third Party Payments,Revenue
Walsall Council,http://opendatacommunities.org/id/metropolitan-district-council/walsall,WC79-290,30/04/2017,Adult Social Care,ASH GRANGE CARE HOME,26/04/2017,"-1,144.20",73373-RESIDENTIAL & NURSING CARE PLACEMENTS,OP COMMISSIONING,Third Party Payments,Revenue
Walsall Council,http://opendatacommunities.org/id/metropolitan-district-council/walsall,WC79-291,30/04/2017,Adult Social Care,ASH GRANGE CARE HOME,26/04/2017,-817.29,73373-RESIDENTIAL & NURSING CARE PLACEMENTS,OP COMMISSIONING,Third Party Payments,Revenue
Walsall Council,http://opendatacommunities.org/id/metropolitan-district-council/walsall,WC79-292,30/04/2017,Adult Social Care,ASH GRANGE CARE HOME,13/04/2017,903.00,73373-RESIDENTIAL & NURSING CARE PLACEMENTS,OP COMMISSIONING,Third Party Payments,Revenue
Walsall Council,http://opendatacommunities.org/id/metropolitan-district-council/walsall,WC79-293,30/04/2017,Adult Social Care,ASH GRANGE CARE HOME,13/04/2017,"1,330.71",73373-RESIDENTIAL & NURSING CARE PLACEMENTS,OP COMMISSIONING,Third Party Payments,Revenue
Walsall Council,http://opendatacommunities.org/id/metropolitan-district-council/walsall,WC79-294,30/04/2017,Adult Social Care,ASH GRANGE CARE HOME,26/04/2017,"1,620.00",73373-RESIDENTIAL & NURSING CARE PLACEMENTS,OP COMMISSIONING,Third Party Payments,Revenue
Walsall Council,http://opendatacommunities.org/id/metropolitan-district-council/walsall,WC79-295,30/04/2017,Adult Social Care,ASH GRANGE CARE HOME,26/04/2017,"1,620.00",73373-RESIDENTIAL & NURSING CARE PLACEMENTS,OP COMMISSIONING,Third Party Payments,Revenue
Walsall Council,http://opendatacommunities.org/id/metropolitan-district-council/walsall,WC79-296,30/04/2017,Adult Social Care,ASH GRANGE CARE HOME,13/04/2017,"1,625.40",73373-RESIDENTIAL & NURSING CARE PLACEMENTS,OP COMMISSIONING,Third Party Payments,Revenue
Walsall Council,http://opendatacommunities.org/id/metropolitan-district-council/walsall,WC79-297,30/04/2017,Adult Social Care,ASH GRANGE CARE HOME,13/04/2017,"1,806.00",73373-RESIDENTIAL & NURSING CARE PLACEMENTS,OP COMMISSIONING,Third Party Payments,Revenue
Walsall Council,http://opendatacommunities.org/id/metropolitan-district-council/walsall,WC79-298,30/04/2017,Adult Social Care,ASH GRANGE CARE HOME,26/04/2017,"1,863.40",73373-RESIDENTIAL & NURSING CARE PLACEMENTS,OP COMMISSIONING,Third Party Payments,Revenue
Walsall Council,http://opendatacommunities.org/id/metropolitan-district-council/walsall,WC79-299,30/04/2017,Adult Social Care,ASH GRANGE CARE HOME,26/04/2017,"1,929.80",73373-RESIDENTIAL & NURSING CARE PLACEMENTS,OP COMMISSIONING,Third Party Payments,Revenue
Walsall Council,http://opendatacommunities.org/id/metropolitan-district-council/walsall,WC79-300,30/04/2017,Adult Social Care,ASH GRANGE CARE HOME,26/04/2017,"2,274.80",73373-RESIDENTIAL & NURSING CARE PLACEMENTS,OP COMMISSIONING,Third Party Payments,Revenue
Walsall Council,http://opendatacommunities.org/id/metropolitan-district-council/walsall,WC79-301,30/04/2017,Adult Social Care,ASH GRANGE CARE HOME,26/04/2017,"2,274.80",73373-RESIDENTIAL & NURSING CARE PLACEMENTS,OP COMMISSIONING,Third Party Payments,Revenue
Walsall Council,http://opendatacommunities.org/id/metropolitan-district-council/walsall,WC79-302,30/04/2017,Adult Social Care,ASH GRANGE CARE HOME,26/04/2017,"2,288.40",73373-RESIDENTIAL & NURSING CARE PLACEMENTS,OP COMMISSIONING,Third Party Payments,Revenue
Walsall Council,http://opendatacommunities.org/id/metropolitan-district-council/walsall,WC79-303,30/04/2017,Adult Social Care,ASH GRANGE CARE HOME,26/04/2017,"2,288.40",73373-RESIDENTIAL & NURSING CARE PLACEMENTS,OP COMMISSIONING,Third Party Payments,Revenue
Walsall Council,http://opendatacommunities.org/id/metropolitan-district-council/walsall,WC79-304,30/04/2017,Adult Social Care,ASH GRANGE CARE HOME,26/04/2017,"2,288.40",73373-RESIDENTIAL & NURSING CARE PLACEMENTS,OP COMMISSIONING,Third Party Payments,Revenue
Walsall Council,http://opendatacommunities.org/id/metropolitan-district-council/walsall,WC79-305,30/04/2017,Adult Social Care,ASH GRANGE CARE HOME,26/04/2017,"2,288.40",73373-RESIDENTIAL & NURSING CARE PLACEMENTS,OP COMMISSIONING,Third Party Payments,Revenue
Walsall Council,http://opendatacommunities.org/id/metropolitan-district-council/walsall,WC79-306,30/04/2017,Adult Social Care,ASH GRANGE CARE HOME,26/04/2017,"2,288.40",73373-RESIDENTIAL & NURSING CARE PLACEMENTS,OP COMMISSIONING,Third Party Payments,Revenue
Walsall Council,http://opendatacommunities.org/id/metropolitan-district-council/walsall,WC79-307,30/04/2017,Adult Social Care,ASH GRANGE CARE HOME,26/04/2017,"2,288.40",73373-RESIDENTIAL & NURSING CARE PLACEMENTS,MH COMMISSIONING,Third Party Payments,Revenue
Walsall Council,http://opendatacommunities.org/id/metropolitan-district-council/walsall,WC79-308,30/04/2017,Adult Social Care,ASH GRANGE CARE HOME,26/04/2017,"2,288.40",73373-RESIDENTIAL & NURSING CARE PLACEMENTS,OP COMMISSIONING,Third Party Payments,Revenue
Walsall Council,http://opendatacommunities.org/id/metropolitan-district-council/walsall,WC79-309,30/04/2017,Adult Social Care,ASH GRANGE CARE HOME,26/04/2017,"2,288.40",73373-RESIDENTIAL & NURSING CARE PLACEMENTS,OP COMMISSIONING,Third Party Payments,Revenue
Walsall Council,http://opendatacommunities.org/id/metropolitan-district-council/walsall,WC79-310,30/04/2017,Adult Social Care,ASH GRANGE CARE HOME,26/04/2017,"2,372.04",73373-RESIDENTIAL & NURSING CARE PLACEMENTS,OP COMMISSIONING,Third Party Payments,Revenue
Walsall Council,http://opendatacommunities.org/id/metropolitan-district-council/walsall,WC79-311,30/04/2017,Adult Social Care,ASH GRANGE CARE HOME,26/04/2017,"2,488.40",73373-RESIDENTIAL & NURSING CARE PLACEMENTS,OP COMMISSIONING,Third Party Payments,Revenue
Walsall Council,http://opendatacommunities.org/id/metropolitan-district-council/walsall,WC79-312,30/04/2017,Adult Social Care,ASH GRANGE CARE HOME,26/04/2017,"2,504.40",73373-RESIDENTIAL & NURSING CARE PLACEMENTS,MH COMMISSIONING,Third Party Payments,Revenue
Walsall Council,http://opendatacommunities.org/id/metropolitan-district-council/walsall,WC79-313,30/04/2017,Adult Social Care,ASH GRANGE CARE HOME,26/04/2017,"2,523.60",73373-RESIDENTIAL & NURSING CARE PLACEMENTS,OP COMMISSIONING,Third Party Payments,Revenue
Walsall Council,http://opendatacommunities.org/id/metropolitan-district-council/walsall,WC79-314,30/04/2017,Adult Social Care,ASH GRANGE CARE HOME,26/04/2017,"3,120.72",73373-RESIDENTIAL & NURSING CARE PLACEMENTS,PD COMMISSIONING,Third Party Payments,Revenue
Walsall Council,http://opendatacommunities.org/id/metropolitan-district-council/walsall,WC79-315,30/04/2017,Adult Social Care,ASHBOURNE LODGE,12/04/2017,"2,103.86",73373-RESIDENTIAL & NURSING CARE PLACEMENTS,OP COMMISSIONING,Third Party Payments,Revenue
Walsall Council,http://opendatacommunities.org/id/metropolitan-district-council/walsall,WC79-316,30/04/2017,Adult Social Care,REDACTED,10/04/2017,847.40,76422-DIRECT PAYMENTS TO SOCIAL SERVICES CLIENTS,LD COMMISSIONING,Transfer Payments,Revenue
Walsall Council,http://opendatacommunities.org/id/metropolitan-district-council/walsall,WC79-317,30/04/2017,Adult Social Care,REDACTED,10/04/2017,756.00,76422-DIRECT PAYMENTS TO SOCIAL SERVICES CLIENTS,PD COMMISSIONING,Transfer Payments,Revenue
Walsall Council,http://opendatacommunities.org/id/metropolitan-district-council/walsall,WC79-318,30/04/2017,Childrens,ASPIRE RESIDENTIAL CARE HOME,24/04/2017,"2,429.32",74036-EXTERNAL RESIDENTIAL CARE-OTH AGENCY PROVISION,INDEPENDENT RESIDENTIAL HOMES,Third Party Payments,Revenue
Walsall Council,http://opendatacommunities.org/id/metropolitan-district-council/walsall,WC79-319,30/04/2017,Childrens,ASPIRE RESIDENTIAL CARE HOME,07/04/2017,"3,401.05",74036-EXTERNAL RESIDENTIAL CARE-OTH AGENCY PROVISION,INDEPENDENT RESIDENTIAL HOMES,Third Party Payments,Revenue
Walsall Council,http://opendatacommunities.org/id/metropolitan-district-council/walsall,WC79-320,30/04/2017,Childrens,ASPIRE RESIDENTIAL CARE HOME,24/04/2017,"13,604.20",74036-EXTERNAL RESIDENTIAL CARE-OTH AGENCY PROVISION,INDEPENDENT RESIDENTIAL HOMES,Third Party Payments,Revenue
Walsall Council,http://opendatacommunities.org/id/metropolitan-district-council/walsall,WC79-321,30/04/2017,Childrens,ASTON CHILDRENS CARE,24/04/2017,"3,214.29",74036-EXTERNAL RESIDENTIAL CARE-OTH AGENCY PROVISION,INDEPENDENT RESIDENTIAL HOMES,Third Party Payments,Revenue
Walsall Council,http://opendatacommunities.org/id/metropolitan-district-council/walsall,WC79-322,30/04/2017,Economy & Environment,ATHWAL NEWS LTD,24/04/2017,277.07,60501-LIBRARY BOOKS,LIBRARY STOCK AND PERFORMANCE,Supplies & Services,Revenue
Walsall Council,http://opendatacommunities.org/id/metropolitan-district-council/walsall,WC79-323,30/04/2017,Economy & Environment,ATKINS LIMITED,24/04/2017,"3,969.00",01001-OTHER CONSULTANTS FEES,CFR 1072 LEX - GROWTH DEAL,Capital,Capital
Walsall Council,http://opendatacommunities.org/id/metropolitan-district-council/walsall,WC79-324,30/04/2017,Change and Governance,AUDITEL RENTAL & SERVICE LTD,24/04/2017,"2,680.00","40000-REPAIRS,ALTERATIONS & MAINTENANCE-PREM",CENTRALISED MAINTENANCE,Premises,Revenue
Walsall Council,http://opendatacommunities.org/id/metropolitan-district-council/walsall,WC79-325,30/04/2017,Change and Governance,AURORA GRAPHICS & DISPLAYS LTD,03/04/2017,877.15,62008-OUTWORK-PRINT ROOM,PRINTING SERVICES,Supplies & Services,Revenue
Walsall Council,http://opendatacommunities.org/id/metropolitan-district-council/walsall,WC79-326,30/04/2017,Economy & Environment,AURORAS CARNIVAL,26/04/2017,275.00,32000-MISC FEES AND EXPENSES,LEATHER MUSEUM,Employees,Revenue
Walsall Council,http://opendatacommunities.org/id/metropolitan-district-council/walsall,WC79-327,30/04/2017,Adult Social Care,AUTISM WEST MIDLANDS,12/04/2017,"7,479.01",73373-RESIDENTIAL & NURSING CARE PLACEMENTS,LD COMMISSIONING,Third Party Payments,Revenue
Walsall Council,http://opendatacommunities.org/id/metropolitan-district-council/walsall,WC79-328,30/04/2017,Adult Social Care,AUTISM WEST MIDLANDS 001,12/04/2017,"4,999.33",73373-RESIDENTIAL & NURSING CARE PLACEMENTS,LD COMMISSIONING,Third Party Payments,Revenue
Walsall Council,http://opendatacommunities.org/id/metropolitan-district-council/walsall,WC79-329,30/04/2017,Economy & Environment,AVANTGARDE PHARMA LTD T/A AL-SHAFA PHARMACY,12/04/2017,405.12,71007-CONTRIBUTION TO PCT,PUBLIC HEALTH BUSINESS SUPPORT,Third Party Payments,Revenue
Walsall Council,http://opendatacommunities.org/id/metropolitan-district-council/walsall,WC79-330,30/04/2017,Economy & Environment,AVANTGARDE PHARMA LTD T/A AL-SHAFA PHARMACY,12/04/2017,467.24,71007-CONTRIBUTION TO PCT,PUBLIC HEALTH BUSINESS SUPPORT,Third Party Payments,Revenue
Walsall Council,http://opendatacommunities.org/id/metropolitan-district-council/walsall,WC79-331,30/04/2017,Adult Social Care,AVERY MEWS CARE HOME,26/04/2017,"-1,085.71",73373-RESIDENTIAL & NURSING CARE PLACEMENTS,MH COMMISSIONING,Third Party Payments,Revenue
Walsall Council,http://opendatacommunities.org/id/metropolitan-district-council/walsall,WC79-332,30/04/2017,Adult Social Care,AVERY MEWS CARE HOME,26/04/2017,"3,040.00",73373-RESIDENTIAL & NURSING CARE PLACEMENTS,MH COMMISSIONING,Third Party Payments,Revenue
Walsall Council,http://opendatacommunities.org/id/metropolitan-district-council/walsall,WC79-333,30/04/2017,Economy & Environment,AVIDITY TRAINING LIMITED,21/04/2017,"1,500.00",66500-GRANTS TO OTHER ORGS,RES-WALSALL WORKS,Third Party Payments,Revenue
Walsall Council,http://opendatacommunities.org/id/metropolitan-district-council/walsall,WC79-334,30/04/2017,Adult Social Care,REDACTED,10/04/2017,989.04,76422-DIRECT PAYMENTS TO SOCIAL SERVICES CLIENTS,OP COMMISSIONING,Transfer Payments,Revenue
Walsall Council,http://opendatacommunities.org/id/metropolitan-district-council/walsall,WC79-335,30/04/2017,Childrens,AXCIS EDUCATION RECRUITMENT,03/04/2017,485.00,66502-TOP UP FUNDING -GRANTS TO SCHOOLS,INDEPENDENT PROVIDERS - SPECIAL & AP,Third Party Payments,Revenue
Walsall Council,http://opendatacommunities.org/id/metropolitan-district-council/walsall,WC79-336,30/04/2017,Childrens,AXCIS EDUCATION RECRUITMENT,03/04/2017,485.00,66502-TOP UP FUNDING -GRANTS TO SCHOOLS,INDEPENDENT PROVIDERS - SPECIAL & AP,Third Party Payments,Revenue
Walsall Council,http://opendatacommunities.org/id/metropolitan-district-council/walsall,WC79-337,30/04/2017,Childrens,AXCIS EDUCATION RECRUITMENT,03/04/2017,485.00,66502-TOP UP FUNDING -GRANTS TO SCHOOLS,INDEPENDENT PROVIDERS - SPECIAL & AP,Third Party Payments,Revenue
Walsall Council,http://opendatacommunities.org/id/metropolitan-district-council/walsall,WC79-338,30/04/2017,Economy & Environment,AXIELL LIMITED,21/04/2017,"3,715.98",63800-COMPUTER EQUIPMENT AND SUPPLIES,LOCAL HISTORY CENTRE,Supplies & Services,Revenue
Walsall Council,http://opendatacommunities.org/id/metropolitan-district-council/walsall,WC79-339,30/04/2017,Economy & Environment,AXIELL LIMITED,04/04/2017,"16,486.62",63800-COMPUTER EQUIPMENT AND SUPPLIES,NETWORK SUPPORT,Supplies & Services,Revenue
Walsall Council,http://opendatacommunities.org/id/metropolitan-district-council/walsall,WC79-340,30/04/2017,Childrens,REDACTED,10/04/2017,"1,284.00",76422-DIRECT PAYMENTS TO SOCIAL SERVICES CLIENTS,FAMILY SUPPORT - DIRECT PAYMENTS,Transfer Payments,Revenue
Walsall Council,http://opendatacommunities.org/id/metropolitan-district-council/walsall,WC79-341,30/04/2017,Adult Social Care,REDACTED,10/04/2017,"2,808.00",76422-DIRECT PAYMENTS TO SOCIAL SERVICES CLIENTS,LD COMMISSIONING,Transfer Payments,Revenue
Walsall Council,http://opendatacommunities.org/id/metropolitan-district-council/walsall,WC79-342,30/04/2017,Childrens,REDACTED,07/04/2017,985.76,74501-MAINTENANCE ALLOWANCE-FOSTER CARERS,FAMILY & FRIENDS FOSTER CARE PROVISION,Transfer Payments,Revenue
Walsall Council,http://opendatacommunities.org/id/metropolitan-district-council/walsall,WC79-343,30/04/2017,Childrens,REDACTED,10/04/2017,464.00,76000-TRANSFER PAYMENTS - SOCIAL SERVICES CLIENTS,TRANSITION AND LEAVING CARE,Transfer Payments,Revenue
Walsall Council,http://opendatacommunities.org/id/metropolitan-district-council/walsall,WC79-344,30/04/2017,Childrens,REDACTED,10/04/2017,464.00,76000-TRANSFER PAYMENTS - SOCIAL SERVICES CLIENTS,TRANSITION AND LEAVING CARE,Transfer Payments,Revenue
Walsall Council,http://opendatacommunities.org/id/metropolitan-district-council/walsall,WC79-345,30/04/2017,Childrens,REDACTED,26/04/2017,464.00,76000-TRANSFER PAYMENTS - SOCIAL SERVICES CLIENTS,TRANSITION AND LEAVING CARE,Transfer Payments,Revenue
Walsall Council,http://opendatacommunities.org/id/metropolitan-district-council/walsall,WC79-346,30/04/2017,Childrens,REDACTED,26/04/2017,464.00,76000-TRANSFER PAYMENTS - SOCIAL SERVICES CLIENTS,TRANSITION AND LEAVING CARE,Transfer Payments,Revenue
Walsall Council,http://opendatacommunities.org/id/metropolitan-district-council/walsall,WC79-347,30/04/2017,Change and Governance,B1 INTERIORS - MICHAEL O'CALLAGHAN,04/04/2017,"4,000.00",01006-SITE WORKS MAIN CONTRACTORS,CON 59 DARLASTON RECREATION GROUND,Capital,Capital
Walsall Council,http://opendatacommunities.org/id/metropolitan-district-council/walsall,WC79-348,30/04/2017,Change and Governance,BACK CARE SOLUTIONS LTD,21/04/2017,571.00,62001-STATIONERY & GENERAL SUPPLIES-OFFICE EXP,PROCESSING,Supplies & Services,Revenue
Walsall Council,http://opendatacommunities.org/id/metropolitan-district-council/walsall,WC79-349,30/04/2017,Change and Governance,BADENOCH & CLARK 002,05/04/2017,"4,189.50",34305-AGENCY STAFF-EMPLOYEES,CORPORATE MANAGEMENT TEAM,Employees,Revenue
Walsall Council,http://opendatacommunities.org/id/metropolitan-district-council/walsall,WC79-350,30/04/2017,Change and Governance,BADENOCH & CLARK 002,07/04/2017,"4,655.00",34305-AGENCY STAFF-EMPLOYEES,CORPORATE MANAGEMENT TEAM,Employees,Revenue
Walsall Council,http://opendatacommunities.org/id/metropolitan-district-council/walsall,WC79-351,30/04/2017,Change and Governance,BADENOCH & CLARK 002,10/04/2017,"4,655.00",34305-AGENCY STAFF-EMPLOYEES,CORPORATE MANAGEMENT TEAM,Employees,Revenue
Walsall Council,http://opendatacommunities.org/id/metropolitan-district-council/walsall,WC79-352,30/04/2017,Economy & Environment,BAKER HALL PARTNERSHIP,24/04/2017,806.25,63000-PROFESSIONAL FEES AND SERVICES,BUILDING CONTROL REVENUE FUNDED,Supplies & Services,Revenue
Walsall Council,http://opendatacommunities.org/id/metropolitan-district-council/walsall,WC79-353,30/04/2017,Adult Social Care,REDACTED,10/04/2017,480.00,76422-DIRECT PAYMENTS TO SOCIAL SERVICES CLIENTS,MH COMMISSIONING,Transfer Payments,Revenue
Walsall Council,http://opendatacommunities.org/id/metropolitan-district-council/walsall,WC79-354,30/04/2017,Adult Social Care,REDACTED,10/04/2017,"2,849.92",76422-DIRECT PAYMENTS TO SOCIAL SERVICES CLIENTS,LD COMMISSIONING,Transfer Payments,Revenue
Walsall Council,http://opendatacommunities.org/id/metropolitan-district-council/walsall,WC79-355,30/04/2017,Change and Governance,BALLICOM INTERNATIONAL LTD,10/04/2017,335.17,62001-STATIONERY & GENERAL SUPPLIES-OFFICE EXP,PROCESSING,Supplies & Services,Revenue
Walsall Council,http://opendatacommunities.org/id/metropolitan-district-council/walsall,WC79-356,30/04/2017,Leasing,BALMERS GM LTD,26/04/2017,"6,995.00",01018-VEHICLES LEASING,VEHICLE MAINTENANCE VEHICLES,Capital,Capital
Walsall Council,http://opendatacommunities.org/id/metropolitan-district-council/walsall,WC79-357,30/04/2017,Adult Social Care,REDACTED,10/04/2017,800.00,76422-DIRECT PAYMENTS TO SOCIAL SERVICES CLIENTS,OP COMMISSIONING,Transfer Payments,Revenue
Walsall Council,http://opendatacommunities.org/id/metropolitan-district-council/walsall,WC79-358,30/04/2017,Adult Social Care,REDACTED,10/04/2017,"1,582.87",76422-DIRECT PAYMENTS TO SOCIAL SERVICES CLIENTS,OP COMMISSIONING,Transfer Payments,Revenue
Walsall Council,http://opendatacommunities.org/id/metropolitan-district-council/walsall,WC79-359,30/04/2017,Childrens,REDACTED,07/04/2017,9.24,60006-NEW-FURNITURE & EQUIPMENT,FAMILY & FRIENDS FOSTER CARE PROVISION,Supplies & Services,Revenue
Walsall Council,http://opendatacommunities.org/id/metropolitan-district-council/walsall,WC79-360,30/04/2017,Childrens,REDACTED,07/04/2017,345.24,74508-INTERNAL FOSTER CARERS-CARER FEES,FAMILY & FRIENDS FOSTER CARE PROVISION,Transfer Payments,Revenue
Walsall Council,http://opendatacommunities.org/id/metropolitan-district-council/walsall,WC79-361,30/04/2017,Childrens,REDACTED,07/04/2017,571.44,74501-MAINTENANCE ALLOWANCE-FOSTER CARERS,FAMILY & FRIENDS FOSTER CARE PROVISION,Transfer Payments,Revenue
Walsall Council,http://opendatacommunities.org/id/metropolitan-district-council/walsall,WC79-362,30/04/2017,Adult Social Care,REDACTED,10/04/2017,849.64,76422-DIRECT PAYMENTS TO SOCIAL SERVICES CLIENTS,OP COMMISSIONING,Transfer Payments,Revenue
Walsall Council,http://opendatacommunities.org/id/metropolitan-district-council/walsall,WC79-363,30/04/2017,Childrens,BARNARDOS SERVICES LTD,24/04/2017,"2,169.00",63000-PROFESSIONAL FEES AND SERVICES,GENERAL MANAGEMENT SUPPORT (INC LEGAL),Supplies & Services,Revenue
Walsall Council,http://opendatacommunities.org/id/metropolitan-district-council/walsall,WC79-364,30/04/2017,Childrens,BARNARDOS SERVICES LTD,24/04/2017,"2,815.36",74037-INDEPENDENT FOSTER CARE-OTH AGENCY PROVISION,EXTERNAL FOSTER CARE PROVISION,Third Party Payments,Revenue
Walsall Council,http://opendatacommunities.org/id/metropolitan-district-council/walsall,WC79-365,30/04/2017,Childrens,BARR BEACON SCHOOL TRUST,05/04/2017,324.00,77300-ISB-FORMULA ALLOCATION,BARR BEACON SCHOOL TRUST (ACADEMY),Transfer Payments,Revenue
Walsall Council,http://opendatacommunities.org/id/metropolitan-district-council/walsall,WC79-366,30/04/2017,Childrens,BARR BEACON SCHOOL TRUST,05/04/2017,438.00,77300-ISB-FORMULA ALLOCATION,BARR BEACON SCHOOL TRUST (ACADEMY),Transfer Payments,Revenue
Walsall Council,http://opendatacommunities.org/id/metropolitan-district-council/walsall,WC79-367,30/04/2017,Adult Social Care,REDACTED,10/04/2017,490.40,76422-DIRECT PAYMENTS TO SOCIAL SERVICES CLIENTS,OP COMMISSIONING,Transfer Payments,Revenue
Walsall Council,http://opendatacommunities.org/id/metropolitan-district-council/walsall,WC79-368,30/04/2017,Economy & Environment,BAT FABRICATIONS LTD,05/04/2017,550.00,60006-NEW-FURNITURE & EQUIPMENT,INFRASTRUCTURE MAINTENANCE,Supplies & Services,Revenue
Walsall Council,http://opendatacommunities.org/id/metropolitan-district-council/walsall,WC79-369,30/04/2017,Economy & Environment,BAT FABRICATIONS LTD,03/04/2017,"1,280.00",66500-GRANTS TO OTHER ORGS,CENTRAL SERVICES ALLOTMENTS,Third Party Payments,Revenue
Walsall Council,http://opendatacommunities.org/id/metropolitan-district-council/walsall,WC79-370,30/04/2017,Economy & Environment,BAT FABRICATIONS LTD,05/04/2017,"1,350.00",66500-GRANTS TO OTHER ORGS,CENTRAL SERVICES ALLOTMENTS,Third Party Payments,Revenue
Walsall Council,http://opendatacommunities.org/id/metropolitan-district-council/walsall,WC79-371,30/04/2017,Economy & Environment,BAT FABRICATIONS LTD,07/04/2017,"2,300.00","40000-REPAIRS,ALTERATIONS & MAINTENANCE-PREM",RETAINED HOUSING-HIGHWAYS,Premises,Revenue
Walsall Council,http://opendatacommunities.org/id/metropolitan-district-council/walsall,WC79-372,30/04/2017,Economy & Environment,BAT FABRICATIONS LTD,07/04/2017,"2,400.00","40000-REPAIRS,ALTERATIONS & MAINTENANCE-PREM",RETAINED HOUSING-HIGHWAYS,Premises,Revenue
Walsall Council,http://opendatacommunities.org/id/metropolitan-district-council/walsall,WC79-373,30/04/2017,Economy & Environment,BAT FABRICATIONS LTD,07/04/2017,"3,630.00",01006-SITE WORKS MAIN CONTRACTORS,CFR 1125 TRIM TRAIL KING GEORGE V PLAYING FIELDS,Capital,Capital
Walsall Council,http://opendatacommunities.org/id/metropolitan-district-council/walsall,WC79-374,30/04/2017,Economy & Environment,BAT FABRICATIONS LTD,03/04/2017,"4,500.00","40000-REPAIRS,ALTERATIONS & MAINTENANCE-PREM",RETAINED HOUSING-HIGHWAYS,Premises,Revenue
Walsall Council,http://opendatacommunities.org/id/metropolitan-district-council/walsall,WC79-375,30/04/2017,Economy & Environment,BAT FABRICATIONS LTD,10/04/2017,"9,970.00",60500-GENERAL MATERIALS,ENVIRONMENTAL IMPROVEMENT SERVICE,Supplies & Services,Revenue
Walsall Council,http://opendatacommunities.org/id/metropolitan-district-council/walsall,WC79-376,30/04/2017,Economy & Environment,BAT FABRICATIONS LTD,07/04/2017,"11,820.00","40000-REPAIRS,ALTERATIONS & MAINTENANCE-PREM",RETAINED HOUSING-HIGHWAYS,Premises,Revenue
Walsall Council,http://opendatacommunities.org/id/metropolitan-district-council/walsall,WC79-377,30/04/2017,Economy & Environment,BAT FABRICATIONS LTD,05/04/2017,"20,700.00","40000-REPAIRS,ALTERATIONS & MAINTENANCE-PREM",RETAINED HOUSING-HIGHWAYS,Premises,Revenue
Walsall Council,http://opendatacommunities.org/id/metropolitan-district-council/walsall,WC79-378,30/04/2017,Childrens,BAY MEDIA LIMITED,24/04/2017,"1,200.00",31000-ADVERTISING STAFF VACANCIES,FAMILY PLACEMENTS,Employees,Revenue
Walsall Council,http://opendatacommunities.org/id/metropolitan-district-council/walsall,WC79-379,30/04/2017,Change and Governance,BAY TREE PROPERTY SERVICES LTD,20/04/2017,"1,650.00",01046-OTHER GRANTS,CFR 908 FUEL POVERTY FUND,Capital,Capital
Walsall Council,http://opendatacommunities.org/id/metropolitan-district-council/walsall,WC79-380,30/04/2017,Economy & Environment,BEACON PHARMACY,12/04/2017,17.70,63000-PROFESSIONAL FEES AND SERVICES,SEXUAL HEALTH,Supplies & Services,Revenue
Walsall Council,http://opendatacommunities.org/id/metropolitan-district-council/walsall,WC79-381,30/04/2017,Economy & Environment,BEACON PHARMACY,12/04/2017,379.86,71007-CONTRIBUTION TO PCT,PUBLIC HEALTH BUSINESS SUPPORT,Third Party Payments,Revenue
Walsall Council,http://opendatacommunities.org/id/metropolitan-district-council/walsall,WC79-382,30/04/2017,Childrens,REDACTED,24/04/2017,9.24,60006-NEW-FURNITURE & EQUIPMENT,INTERNAL FOSTER CARE PROVISION,Supplies & Services,Revenue
Walsall Council,http://opendatacommunities.org/id/metropolitan-district-council/walsall,WC79-383,30/04/2017,Childrens,REDACTED,24/04/2017,530.96,74508-INTERNAL FOSTER CARERS-CARER FEES,INTERNAL FOSTER CARE PROVISION,Transfer Payments,Revenue
Walsall Council,http://opendatacommunities.org/id/metropolitan-district-council/walsall,WC79-384,30/04/2017,Adult Social Care,BEARWOOD NURSING HOME LTD,13/04/2017,530.30,73373-RESIDENTIAL & NURSING CARE PLACEMENTS,OP COMMISSIONING,Third Party Payments,Revenue
Walsall Council,http://opendatacommunities.org/id/metropolitan-district-council/walsall,WC79-385,30/04/2017,Adult Social Care,BEARWOOD NURSING HOME LTD,13/04/2017,"1,119.20",73373-RESIDENTIAL & NURSING CARE PLACEMENTS,OP COMMISSIONING,Third Party Payments,Revenue
Walsall Council,http://opendatacommunities.org/id/metropolitan-district-council/walsall,WC79-386,30/04/2017,Childrens,REDACTED,24/04/2017,9.24,60006-NEW-FURNITURE & EQUIPMENT,INTERNAL FOSTER CARE PROVISION,Supplies & Services,Revenue
Walsall Council,http://opendatacommunities.org/id/metropolitan-district-council/walsall,WC79-387,30/04/2017,Childrens,REDACTED,24/04/2017,71.43,74503-BIRTHDAY ALLOWANCE-FOSTER CARERS,INTERNAL FOSTER CARE PROVISION,Transfer Payments,Revenue
Walsall Council,http://opendatacommunities.org/id/metropolitan-district-council/walsall,WC79-388,30/04/2017,Childrens,REDACTED,24/04/2017,530.96,74508-INTERNAL FOSTER CARERS-CARER FEES,INTERNAL FOSTER CARE PROVISION,Transfer Payments,Revenue
Walsall Council,http://opendatacommunities.org/id/metropolitan-district-council/walsall,WC79-389,30/04/2017,Childrens,REDACTED,24/04/2017,571.44,74501-MAINTENANCE ALLOWANCE-FOSTER CARERS,INTERNAL FOSTER CARE PROVISION,Transfer Payments,Revenue
Walsall Council,http://opendatacommunities.org/id/metropolitan-district-council/walsall,WC79-390,30/04/2017,Adult Social Care,BELVIDERE COURT,12/04/2017,"1,767.64",73373-RESIDENTIAL & NURSING CARE PLACEMENTS,OP COMMISSIONING,Third Party Payments,Revenue
Walsall Council,http://opendatacommunities.org/id/metropolitan-district-council/walsall,WC79-391,30/04/2017,Adult Social Care,BELVIDERE COURT,12/04/2017,"1,767.64",73373-RESIDENTIAL & NURSING CARE PLACEMENTS,OP COMMISSIONING,Third Party Payments,Revenue
Walsall Council,http://opendatacommunities.org/id/metropolitan-district-council/walsall,WC79-392,30/04/2017,Adult Social Care,BELVIDERE COURT,12/04/2017,"1,825.41",73373-RESIDENTIAL & NURSING CARE PLACEMENTS,MH COMMISSIONING,Third Party Payments,Revenue
Walsall Council,http://opendatacommunities.org/id/metropolitan-district-council/walsall,WC79-393,30/04/2017,Adult Social Care,BELVIDERE COURT,12/04/2017,"3,642.86",73373-RESIDENTIAL & NURSING CARE PLACEMENTS,MH COMMISSIONING,Third Party Payments,Revenue
Walsall Council,http://opendatacommunities.org/id/metropolitan-district-council/walsall,WC79-394,30/04/2017,Adult Social Care,REDACTED,10/04/2017,"2,310.00",76422-DIRECT PAYMENTS TO SOCIAL SERVICES CLIENTS,LD COMMISSIONING,Transfer Payments,Revenue
Walsall Council,http://opendatacommunities.org/id/metropolitan-district-council/walsall,WC79-395,30/04/2017,Adult Social Care,BENTLEY COURT PRIORY,04/04/2017,"1,826.56",73373-RESIDENTIAL & NURSING CARE PLACEMENTS,OP COMMISSIONING,Third Party Payments,Revenue
Walsall Council,http://opendatacommunities.org/id/metropolitan-district-council/walsall,WC79-396,30/04/2017,Adult Social Care,BENTLEY COURT PRIORY,04/04/2017,"1,988.65",73373-RESIDENTIAL & NURSING CARE PLACEMENTS,OP COMMISSIONING,Third Party Payments,Revenue
Walsall Council,http://opendatacommunities.org/id/metropolitan-district-council/walsall,WC79-397,30/04/2017,Adult Social Care,BENTLEY COURT PRIORY,04/04/2017,"2,070.98",73373-RESIDENTIAL & NURSING CARE PLACEMENTS,OP COMMISSIONING,Third Party Payments,Revenue
Walsall Council,http://opendatacommunities.org/id/metropolitan-district-council/walsall,WC79-398,30/04/2017,Adult Social Care,BENTLEY COURT PRIORY,04/04/2017,"2,109.24",73373-RESIDENTIAL & NURSING CARE PLACEMENTS,OP COMMISSIONING,Third Party Payments,Revenue
Walsall Council,http://opendatacommunities.org/id/metropolitan-district-council/walsall,WC79-399,30/04/2017,Holding Accounts,BERRYMANS LACE MAWER LLP,13/04/2017,230.00,67001-MISC INSURANCES - PAYMENT OF CLAIMS,PUBLIC LIABILITY,Supplies & Services,Revenue
Walsall Council,http://opendatacommunities.org/id/metropolitan-district-council/walsall,WC79-400,30/04/2017,Adult Social Care,REDACTED,10/04/2017,912.00,76422-DIRECT PAYMENTS TO SOCIAL SERVICES CLIENTS,OP COMMISSIONING,Transfer Payments,Revenue
Walsall Council,http://opendatacommunities.org/id/metropolitan-district-council/walsall,WC79-401,30/04/2017,Childrens,REDACTED,24/04/2017,9.24,60006-NEW-FURNITURE & EQUIPMENT,INTERNAL FOSTER CARE PROVISION,Supplies & Services,Revenue
Walsall Council,http://opendatacommunities.org/id/metropolitan-district-council/walsall,WC79-402,30/04/2017,Childrens,REDACTED,24/04/2017,571.44,74501-MAINTENANCE ALLOWANCE-FOSTER CARERS,INTERNAL FOSTER CARE PROVISION,Transfer Payments,Revenue
Walsall Council,http://opendatacommunities.org/id/metropolitan-district-council/walsall,WC79-403,30/04/2017,Childrens,REDACTED,24/04/2017,571.44,74501-MAINTENANCE ALLOWANCE-FOSTER CARERS,INTERNAL FOSTER CARE PROVISION,Transfer Payments,Revenue
Walsall Council,http://opendatacommunities.org/id/metropolitan-district-council/walsall,WC79-404,30/04/2017,Childrens,REDACTED,24/04/2017,"1,436.08",74508-INTERNAL FOSTER CARERS-CARER FEES,INTERNAL FOSTER CARE PROVISION,Transfer Payments,Revenue
Walsall Council,http://opendatacommunities.org/id/metropolitan-district-council/walsall,WC79-405,30/04/2017,Adult Social Care,REDACTED,10/04/2017,968.00,76422-DIRECT PAYMENTS TO SOCIAL SERVICES CLIENTS,OP COMMISSIONING,Transfer Payments,Revenue
Walsall Council,http://opendatacommunities.org/id/metropolitan-district-council/walsall,WC79-406,30/04/2017,Adult Social Care,BESCOT LODGE RESIDENTIAL CARE HOME,26/04/2017,514.29,73373-RESIDENTIAL & NURSING CARE PLACEMENTS,OP COMMISSIONING,Third Party Payments,Revenue
Walsall Council,http://opendatacommunities.org/id/metropolitan-district-council/walsall,WC79-407,30/04/2017,Adult Social Care,BESCOT LODGE RESIDENTIAL CARE HOME,12/04/2017,"1,285.71",73373-RESIDENTIAL & NURSING CARE PLACEMENTS,OP COMMISSIONING,Third Party Payments,Revenue
Walsall Council,http://opendatacommunities.org/id/metropolitan-district-council/walsall,WC79-408,30/04/2017,Adult Social Care,BESCOT LODGE RESIDENTIAL CARE HOME,26/04/2017,"1,620.00",73373-RESIDENTIAL & NURSING CARE PLACEMENTS,OP COMMISSIONING,Third Party Payments,Revenue
Walsall Council,http://opendatacommunities.org/id/metropolitan-district-council/walsall,WC79-409,30/04/2017,Adult Social Care,BESCOT LODGE RESIDENTIAL CARE HOME,26/04/2017,"1,735.71",73373-RESIDENTIAL & NURSING CARE PLACEMENTS,OP COMMISSIONING,Third Party Payments,Revenue
Walsall Council,http://opendatacommunities.org/id/metropolitan-district-council/walsall,WC79-410,30/04/2017,Adult Social Care,BESCOT LODGE RESIDENTIAL CARE HOME,26/04/2017,"1,735.72",73373-RESIDENTIAL & NURSING CARE PLACEMENTS,OP COMMISSIONING,Third Party Payments,Revenue
Walsall Council,http://opendatacommunities.org/id/metropolitan-district-council/walsall,WC79-411,30/04/2017,Adult Social Care,BESCOT LODGE RESIDENTIAL CARE HOME,26/04/2017,"1,793.57",73373-RESIDENTIAL & NURSING CARE PLACEMENTS,OP COMMISSIONING,Third Party Payments,Revenue
Walsall Council,http://opendatacommunities.org/id/metropolitan-district-council/walsall,WC79-412,30/04/2017,Adult Social Care,BESCOT LODGE RESIDENTIAL CARE HOME,26/04/2017,"1,793.57",73373-RESIDENTIAL & NURSING CARE PLACEMENTS,OP COMMISSIONING,Third Party Payments,Revenue
Walsall Council,http://opendatacommunities.org/id/metropolitan-district-council/walsall,WC79-413,30/04/2017,Adult Social Care,BESCOT LODGE RESIDENTIAL CARE HOME,26/04/2017,"1,928.57",73373-RESIDENTIAL & NURSING CARE PLACEMENTS,OP COMMISSIONING,Third Party Payments,Revenue
Walsall Council,http://opendatacommunities.org/id/metropolitan-district-council/walsall,WC79-414,30/04/2017,Adult Social Care,BESCOT LODGE RESIDENTIAL CARE HOME,26/04/2017,"1,928.57",73373-RESIDENTIAL & NURSING CARE PLACEMENTS,OP COMMISSIONING,Third Party Payments,Revenue
Walsall Council,http://opendatacommunities.org/id/metropolitan-district-council/walsall,WC79-415,30/04/2017,Adult Social Care,BESCOT LODGE RESIDENTIAL CARE HOME,12/04/2017,"1,992.86",73373-RESIDENTIAL & NURSING CARE PLACEMENTS,OP COMMISSIONING,Third Party Payments,Revenue
Walsall Council,http://opendatacommunities.org/id/metropolitan-district-council/walsall,WC79-416,30/04/2017,Economy & Environment,BESCOT STADIUM SUNDAY MARKET LTD,12/04/2017,"2,800.00",73025-PROFESSIONAL SERVICES-PRIV CONTRACTOR & OTHER AGENCIES,WILLENHALL MARKET,Third Party Payments,Revenue
Walsall Council,http://opendatacommunities.org/id/metropolitan-district-council/walsall,WC79-417,30/04/2017,Adult Social Care,BESS CARE LIMITED,21/04/2017,356.25,73372-DOMICILIARY CARE,OP COMMISSIONING,Third Party Payments,Revenue
Walsall Council,http://opendatacommunities.org/id/metropolitan-district-council/walsall,WC79-418,30/04/2017,Adult Social Care,BESS CARE LIMITED,19/04/2017,487.50,73372-DOMICILIARY CARE,OP COMMISSIONING,Third Party Payments,Revenue
Walsall Council,http://opendatacommunities.org/id/metropolitan-district-council/walsall,WC79-419,30/04/2017,Adult Social Care,BESS CARE LIMITED,04/04/2017,537.50,73372-DOMICILIARY CARE,OP COMMISSIONING,Third Party Payments,Revenue
Walsall Council,http://opendatacommunities.org/id/metropolitan-district-council/walsall,WC79-420,30/04/2017,Adult Social Care,BETHPHAGE.,26/04/2017,650.00,73374-SUPPORTED & OTHER ACCOMMODATION,LD COMMISSIONING,Third Party Payments,Revenue
Walsall Council,http://opendatacommunities.org/id/metropolitan-district-council/walsall,WC79-421,30/04/2017,Adult Social Care,BETHPHAGE.,26/04/2017,952.44,73374-SUPPORTED & OTHER ACCOMMODATION,LD COMMISSIONING,Third Party Payments,Revenue
Walsall Council,http://opendatacommunities.org/id/metropolitan-district-council/walsall,WC79-422,30/04/2017,Adult Social Care,BETHPHAGE.,26/04/2017,"1,015.92",73374-SUPPORTED & OTHER ACCOMMODATION,LD COMMISSIONING,Third Party Payments,Revenue
Walsall Council,http://opendatacommunities.org/id/metropolitan-district-council/walsall,WC79-423,30/04/2017,Adult Social Care,BETHPHAGE.,26/04/2017,"1,439.24",73374-SUPPORTED & OTHER ACCOMMODATION,LD COMMISSIONING,Third Party Payments,Revenue
Walsall Council,http://opendatacommunities.org/id/metropolitan-district-council/walsall,WC79-424,30/04/2017,Adult Social Care,BETHPHAGE.,05/04/2017,"2,496.00",73374-SUPPORTED & OTHER ACCOMMODATION,LD COMMISSIONING,Third Party Payments,Revenue
Walsall Council,http://opendatacommunities.org/id/metropolitan-district-council/walsall,WC79-425,30/04/2017,Adult Social Care,BETHPHAGE.,05/04/2017,"2,496.00",73374-SUPPORTED & OTHER ACCOMMODATION,LD COMMISSIONING,Third Party Payments,Revenue
Walsall Council,http://opendatacommunities.org/id/metropolitan-district-council/walsall,WC79-426,30/04/2017,Adult Social Care,BETHPHAGE.,05/04/2017,"2,496.00",73374-SUPPORTED & OTHER ACCOMMODATION,LD COMMISSIONING,Third Party Payments,Revenue
Walsall Council,http://opendatacommunities.org/id/metropolitan-district-council/walsall,WC79-427,30/04/2017,Adult Social Care,BETHPHAGE.,05/04/2017,"2,496.00",73374-SUPPORTED & OTHER ACCOMMODATION,LD COMMISSIONING,Third Party Payments,Revenue
Walsall Council,http://opendatacommunities.org/id/metropolitan-district-council/walsall,WC79-428,30/04/2017,Adult Social Care,BETHPHAGE.,05/04/2017,"3,120.00",73374-SUPPORTED & OTHER ACCOMMODATION,LD COMMISSIONING,Third Party Payments,Revenue
Walsall Council,http://opendatacommunities.org/id/metropolitan-district-council/walsall,WC79-429,30/04/2017,Adult Social Care,BETHPHAGE.,05/04/2017,"3,120.00",73374-SUPPORTED & OTHER ACCOMMODATION,LD COMMISSIONING,Third Party Payments,Revenue
Walsall Council,http://opendatacommunities.org/id/metropolitan-district-council/walsall,WC79-430,30/04/2017,Adult Social Care,REDACTED,10/04/2017,949.52,76422-DIRECT PAYMENTS TO SOCIAL SERVICES CLIENTS,MH COMMISSIONING,Transfer Payments,Revenue
Walsall Council,http://opendatacommunities.org/id/metropolitan-district-council/walsall,WC79-431,30/04/2017,Adult Social Care,REDACTED,10/04/2017,"2,767.84",76422-DIRECT PAYMENTS TO SOCIAL SERVICES CLIENTS,OP COMMISSIONING,Transfer Payments,Revenue
Walsall Council,http://opendatacommunities.org/id/metropolitan-district-council/walsall,WC79-432,30/04/2017,Change and Governance,BFA SAFETY TRAINING,07/04/2017,495.00,30030-EXTERNAL TRAINING,HEALTH & SAFETY,Employees,Revenue
Walsall Council,http://opendatacommunities.org/id/metropolitan-district-council/walsall,WC79-433,30/04/2017,Adult Social Care,REDACTED,10/04/2017,320.00,76422-DIRECT PAYMENTS TO SOCIAL SERVICES CLIENTS,OP COMMISSIONING,Transfer Payments,Revenue
Walsall Council,http://opendatacommunities.org/id/metropolitan-district-council/walsall,WC79-434,30/04/2017,Childrens,REDACTED,10/04/2017,456.00,52000-WITH DRIVER-HIRE OF VEHICLES,SCHOOL TRANSPORT,Transport,Revenue
Walsall Council,http://opendatacommunities.org/id/metropolitan-district-council/walsall,WC79-435,30/04/2017,Economy & Environment,BICMP LTD,12/04/2017,"2,610.00",01045-PRIVATE GRANTS,CFR 1072 MUSIC INSTITUTE DEVELOPMENT STUDY,Capital,Capital
Walsall Council,http://opendatacommunities.org/id/metropolitan-district-council/walsall,WC79-436,30/04/2017,Economy & Environment,BIFFA WASTE SERVICES LTD,24/04/2017,297.00,73029-HAZARDOUS WASTE REMOVAL/DISPOSAL-PRIV CONTRACTOR FEES,WASTE DISPOSAL - RESIDUAL,Third Party Payments,Revenue
Walsall Council,http://opendatacommunities.org/id/metropolitan-district-council/walsall,WC79-437,30/04/2017,Economy & Environment,BIFFA WASTE SERVICES LTD,24/04/2017,468.38,73039-LANDFILL TAX-PRIV CONTRACTOR FEES,WASTE DISPOSAL - RESIDUAL,Third Party Payments,Revenue
Walsall Council,http://opendatacommunities.org/id/metropolitan-district-council/walsall,WC79-438,30/04/2017,Childrens,REDACTED,10/04/2017,487.72,76422-DIRECT PAYMENTS TO SOCIAL SERVICES CLIENTS,FAMILY SUPPORT - DIRECT PAYMENTS,Transfer Payments,Revenue
Walsall Council,http://opendatacommunities.org/id/metropolitan-district-council/walsall,WC79-439,30/04/2017,Childrens,REDACTED,10/04/2017,572.00,76422-DIRECT PAYMENTS TO SOCIAL SERVICES CLIENTS,FAMILY SUPPORT - DIRECT PAYMENTS,Transfer Payments,Revenue
Walsall Council,http://opendatacommunities.org/id/metropolitan-district-council/walsall,WC79-440,30/04/2017,Economy & Environment,BIOGAS TECHNOLOGY LIMITED,01/04/2017,347.00,60008-MAINTENANCE-FURNITURE & EQUIPMENT,POLLUTION DIVISION,Supplies & Services,Revenue
Walsall Council,http://opendatacommunities.org/id/metropolitan-district-council/walsall,WC79-441,30/04/2017,Childrens,BIRCHILLS C OF E COMMUNITY ACADEMY,04/04/2017,"43,125.00",66505-OTHER-GRANTS TO OTHER ORGS,EARLY YEARS - 3 YR OLDS,Third Party Payments,Revenue
Walsall Council,http://opendatacommunities.org/id/metropolitan-district-council/walsall,WC79-442,30/04/2017,Childrens,BIRMINGHAM CITY COUNCIL,25/04/2017,"1,760.33",66502-TOP UP FUNDING -GRANTS TO SCHOOLS,MAINTAINED PROVIDERS,Third Party Payments,Revenue
Walsall Council,http://opendatacommunities.org/id/metropolitan-district-council/walsall,WC79-443,30/04/2017,Childrens,BIRMINGHAM CITY COUNCIL,24/04/2017,"1,956.16",74037-INDEPENDENT FOSTER CARE-OTH AGENCY PROVISION,EXTERNAL FOSTER CARE PROVISION,Third Party Payments,Revenue
Walsall Council,http://opendatacommunities.org/id/metropolitan-district-council/walsall,WC79-444,30/04/2017,Childrens,BIRMINGHAM CITY COUNCIL,25/04/2017,"4,527.56",66502-TOP UP FUNDING -GRANTS TO SCHOOLS,MAINTAINED PROVIDERS,Third Party Payments,Revenue
Walsall Council,http://opendatacommunities.org/id/metropolitan-district-council/walsall,WC79-445,30/04/2017,Childrens,BIRMINGHAM CITY COUNCIL,25/04/2017,"4,527.56",66502-TOP UP FUNDING -GRANTS TO SCHOOLS,MAINTAINED PROVIDERS,Third Party Payments,Revenue
Walsall Council,http://opendatacommunities.org/id/metropolitan-district-council/walsall,WC79-446,30/04/2017,Childrens,BIRMINGHAM CITY COUNCIL,25/04/2017,"4,527.56",66502-TOP UP FUNDING -GRANTS TO SCHOOLS,MAINTAINED PROVIDERS,Third Party Payments,Revenue
Walsall Council,http://opendatacommunities.org/id/metropolitan-district-council/walsall,WC79-447,30/04/2017,Childrens,BIRMINGHAM CITY COUNCIL,25/04/2017,"4,849.44",66502-TOP UP FUNDING -GRANTS TO SCHOOLS,MAINTAINED PROVIDERS,Third Party Payments,Revenue
Walsall Council,http://opendatacommunities.org/id/metropolitan-district-council/walsall,WC79-448,30/04/2017,Childrens,BIRMINGHAM CITY COUNCIL,25/04/2017,"6,053.63",66502-TOP UP FUNDING -GRANTS TO SCHOOLS,MAINTAINED PROVIDERS,Third Party Payments,Revenue
Walsall Council,http://opendatacommunities.org/id/metropolitan-district-council/walsall,WC79-449,30/04/2017,Change and Governance,BIRMINGHAM TRAINING UNIT,01/04/2017,"1,490.00",63000-PROFESSIONAL FEES AND SERVICES,WORKFORCE DEVELOPMENT,Supplies & Services,Revenue
Walsall Council,http://opendatacommunities.org/id/metropolitan-district-council/walsall,WC79-450,30/04/2017,Economy & Environment,BLACK COUNTRY MUSEUM TRUST LTD,26/04/2017,"20,147.51",01045-PRIVATE GRANTS,CFR 1072 BLACK COUNTRY LIVING MUSEUM,Capital,Capital
Walsall Council,http://opendatacommunities.org/id/metropolitan-district-council/walsall,WC79-451,30/04/2017,Economy & Environment,BLACK COUNTRY TRAINING LTD T/A BRITISH HGV TRAINING GROUP,27/04/2017,"1,226.00",30030-EXTERNAL TRAINING,STREET CLEANSING,Employees,Revenue
Walsall Council,http://opendatacommunities.org/id/metropolitan-district-council/walsall,WC79-452,30/04/2017,Childrens,BLACK COUNTRY WOMENS AID,10/04/2017,675.00,30000-INTERNAL TRAINING,WORKFORCE DEVELOPMENT,Employees,Revenue
Walsall Council,http://opendatacommunities.org/id/metropolitan-district-council/walsall,WC79-453,30/04/2017,Childrens,BLACK COUNTRY WOMENS AID,10/04/2017,"2,002.50",30000-INTERNAL TRAINING,WORKFORCE DEVELOPMENT,Employees,Revenue
Walsall Council,http://opendatacommunities.org/id/metropolitan-district-council/walsall,WC79-454,30/04/2017,Childrens,BLAKENALL HEATH JMI SCHOOL,04/04/2017,"97,059.04",77300-ISB-FORMULA ALLOCATION,BLAKENALL HEATH JUNIOR SCHOOL,Transfer Payments,Revenue
Walsall Council,http://opendatacommunities.org/id/metropolitan-district-council/walsall,WC79-455,30/04/2017,Childrens,BLOXWICH ACADEMY,12/04/2017,"48,945.00",66505-OTHER-GRANTS TO OTHER ORGS,EARLY YEARS - 3 YR OLDS,Third Party Payments,Revenue
Walsall Council,http://opendatacommunities.org/id/metropolitan-district-council/walsall,WC79-456,30/04/2017,Adult Social Care,BLOXWICH COMMUNITY PARTNERSHIP.,24/04/2017,310.00,73372-DOMICILIARY CARE,OP COMMISSIONING,Third Party Payments,Revenue
Walsall Council,http://opendatacommunities.org/id/metropolitan-district-council/walsall,WC79-457,30/04/2017,Adult Social Care,BLOXWICH COMMUNITY PARTNERSHIP.,10/04/2017,378.00,73372-DOMICILIARY CARE,MH COMMISSIONING,Third Party Payments,Revenue
Walsall Council,http://opendatacommunities.org/id/metropolitan-district-council/walsall,WC79-458,30/04/2017,Childrens,BLOXWICH COMMUNITY PARTNERSHIP.,12/04/2017,"6,770.20",60500-GENERAL MATERIALS,PUPIL REFERAL UNIT EXCLUSIONS,Supplies & Services,Revenue
Walsall Council,http://opendatacommunities.org/id/metropolitan-district-council/walsall,WC79-459,30/04/2017,Change and Governance,BLOXWICH COMMUNITY PARTNERSHIP.,12/04/2017,"7,333.33",66500-GRANTS TO OTHER ORGS,BLOXWICH COMMUNITY PARTNERSHIP,Third Party Payments,Revenue
Walsall Council,http://opendatacommunities.org/id/metropolitan-district-council/walsall,WC79-460,30/04/2017,Childrens,BLOXWICH COMMUNITY PARTNERSHIP.,12/04/2017,"9,554.08",60500-GENERAL MATERIALS,PUPIL REFERAL UNIT EXCLUSIONS,Supplies & Services,Revenue
Walsall Council,http://opendatacommunities.org/id/metropolitan-district-council/walsall,WC79-461,30/04/2017,Childrens,BLUE GIRAFFE CHILDCARE,03/04/2017,"5,722.40",66505-OTHER-GRANTS TO OTHER ORGS,EARLY YEARS - 2 YR OLDS,Third Party Payments,Revenue
Walsall Council,http://opendatacommunities.org/id/metropolitan-district-council/walsall,WC79-462,30/04/2017,Childrens,BLUE GIRAFFE CHILDCARE,03/04/2017,"6,864.00",66505-OTHER-GRANTS TO OTHER ORGS,EARLY YEARS - 3 YR OLDS,Third Party Payments,Revenue
Walsall Council,http://opendatacommunities.org/id/metropolitan-district-council/walsall,WC79-463,30/04/2017,Childrens,BLUEBELLS #1,13/04/2017,68.88,"40000-REPAIRS,ALTERATIONS & MAINTENANCE-PREM",REDRUTH ROAD,Premises,Revenue
Walsall Council,http://opendatacommunities.org/id/metropolitan-district-council/walsall,WC79-464,30/04/2017,Childrens,BLUEBELLS #1,13/04/2017,75.95,53000-OFFICERS/STAFF-CAR ALLOWANCES,REDRUTH ROAD,Transport,Revenue
Walsall Council,http://opendatacommunities.org/id/metropolitan-district-council/walsall,WC79-465,30/04/2017,Childrens,BLUEBELLS #1,13/04/2017,85.65,60006-NEW-FURNITURE & EQUIPMENT,REDRUTH ROAD,Supplies & Services,Revenue
Walsall Council,http://opendatacommunities.org/id/metropolitan-district-council/walsall,WC79-466,30/04/2017,Childrens,BLUEBELLS #1,13/04/2017,153.82,61016-FOOD AND BEVERAGES-PROVISIONS,REDRUTH ROAD,Supplies & Services,Revenue
Walsall Council,http://opendatacommunities.org/id/metropolitan-district-council/walsall,WC79-467,30/04/2017,Childrens,BLUEBELLS #1,13/04/2017,"1,099.08",76400-RESIDENTS PERSONAL EXPENSES-ALLOWANCES TO S/S CLIENTS,REDRUTH ROAD,Transfer Payments,Revenue
Walsall Council,http://opendatacommunities.org/id/metropolitan-district-council/walsall,WC79-468,30/04/2017,Adult Social Care,BLUEBIRD CARE (MID STAFFS),19/04/2017,648.00,73372-DOMICILIARY CARE,OP COMMISSIONING,Third Party Payments,Revenue
Walsall Council,http://opendatacommunities.org/id/metropolitan-district-council/walsall,WC79-469,30/04/2017,Economy & Environment,BONINGALE NURSERIES,12/04/2017,216.00,41001-GROUNDS MAINTENANCE,SECTION 106,Premises,Revenue
Walsall Council,http://opendatacommunities.org/id/metropolitan-district-council/walsall,WC79-470,30/04/2017,Economy & Environment,BOOTS UK LIMITED,12/04/2017,48.26,71007-CONTRIBUTION TO PCT,PUBLIC HEALTH BUSINESS SUPPORT,Third Party Payments,Revenue
Walsall Council,http://opendatacommunities.org/id/metropolitan-district-council/walsall,WC79-471,30/04/2017,Economy & Environment,BOOTS UK LIMITED,12/04/2017,71.16,71007-CONTRIBUTION TO PCT,PUBLIC HEALTH BUSINESS SUPPORT,Third Party Payments,Revenue
Walsall Council,http://opendatacommunities.org/id/metropolitan-district-council/walsall,WC79-472,30/04/2017,Economy & Environment,BOOTS UK LIMITED,12/04/2017,407.10,63000-PROFESSIONAL FEES AND SERVICES,SEXUAL HEALTH,Supplies & Services,Revenue
Walsall Council,http://opendatacommunities.org/id/metropolitan-district-council/walsall,WC79-473,30/04/2017,Economy & Environment,BOOTS UK LIMITED,12/04/2017,513.30,63000-PROFESSIONAL FEES AND SERVICES,SEXUAL HEALTH,Supplies & Services,Revenue
Walsall Council,http://opendatacommunities.org/id/metropolitan-district-council/walsall,WC79-474,30/04/2017,Childrens,BOULTON TRAVEL LIMITED,05/04/2017,975.00,52000-WITH DRIVER-HIRE OF VEHICLES,SCHOOL TRANSPORT,Transport,Revenue
Walsall Council,http://opendatacommunities.org/id/metropolitan-district-council/walsall,WC79-475,30/04/2017,Childrens,BOULTON TRAVEL LIMITED,05/04/2017,"2,599.00",52000-WITH DRIVER-HIRE OF VEHICLES,SCHOOL TRANSPORT,Transport,Revenue
Walsall Council,http://opendatacommunities.org/id/metropolitan-district-council/walsall,WC79-476,30/04/2017,Childrens,BOULTON TRAVEL LIMITED,05/04/2017,"2,921.00",52000-WITH DRIVER-HIRE OF VEHICLES,SCHOOL TRANSPORT,Transport,Revenue
Walsall Council,http://opendatacommunities.org/id/metropolitan-district-council/walsall,WC79-477,30/04/2017,Adult Social Care,BOWDEN DERRA PARK,04/04/2017,"1,125.29",73373-RESIDENTIAL & NURSING CARE PLACEMENTS,LD COMMISSIONING,Third Party Payments,Revenue
Walsall Council,http://opendatacommunities.org/id/metropolitan-district-council/walsall,WC79-478,30/04/2017,Adult Social Care,BOWDEN DERRA PARK,04/04/2017,"9,377.47",73373-RESIDENTIAL & NURSING CARE PLACEMENTS,LD COMMISSIONING,Third Party Payments,Revenue
Walsall Council,http://opendatacommunities.org/id/metropolitan-district-council/walsall,WC79-479,30/04/2017,Economy & Environment,BRADVALE LTD T/A INSPIRE HEALTHCARE SERVICES,13/04/2017,392.23,60008-MAINTENANCE-FURNITURE & EQUIPMENT,OAK PARK,Supplies & Services,Revenue
Walsall Council,http://opendatacommunities.org/id/metropolitan-district-council/walsall,WC79-480,30/04/2017,Economy & Environment,BRADVALE LTD T/A INSPIRE HEALTHCARE SERVICES,03/04/2017,583.20,60500-GENERAL MATERIALS,ARBORETUM VISITOR CENTRE,Supplies & Services,Revenue
Walsall Council,http://opendatacommunities.org/id/metropolitan-district-council/walsall,WC79-481,30/04/2017,Childrens,BRANAS ISAF PERSONAL DEVELOPMENT CENTRE LTD,13/04/2017,"1,928.57",74036-EXTERNAL RESIDENTIAL CARE-OTH AGENCY PROVISION,INDEPENDENT RESIDENTIAL HOMES,Third Party Payments,Revenue
Walsall Council,http://opendatacommunities.org/id/metropolitan-district-council/walsall,WC79-482,30/04/2017,Childrens,BRANAS ISAF PERSONAL DEVELOPMENT CENTRE LTD,24/04/2017,"18,000.00",74036-EXTERNAL RESIDENTIAL CARE-OTH AGENCY PROVISION,INDEPENDENT RESIDENTIAL HOMES,Third Party Payments,Revenue
Walsall Council,http://opendatacommunities.org/id/metropolitan-district-council/walsall,WC79-483,30/04/2017,Childrens,BRANAS ISAF PERSONAL DEVELOPMENT CENTRE LTD,04/04/2017,"18,642.86",74036-EXTERNAL RESIDENTIAL CARE-OTH AGENCY PROVISION,INDEPENDENT RESIDENTIAL HOMES,Third Party Payments,Revenue
Walsall Council,http://opendatacommunities.org/id/metropolitan-district-council/walsall,WC79-484,30/04/2017,Adult Social Care,REDACTED,10/04/2017,440.00,76422-DIRECT PAYMENTS TO SOCIAL SERVICES CLIENTS,LD COMMISSIONING,Transfer Payments,Revenue
Walsall Council,http://opendatacommunities.org/id/metropolitan-district-council/walsall,WC79-485,30/04/2017,Childrens,REDACTED,24/04/2017,9.24,60006-NEW-FURNITURE & EQUIPMENT,INTERNAL FOSTER CARE PROVISION,Supplies & Services,Revenue
Walsall Council,http://opendatacommunities.org/id/metropolitan-district-council/walsall,WC79-486,30/04/2017,Childrens,REDACTED,24/04/2017,810.32,74501-MAINTENANCE ALLOWANCE-FOSTER CARERS,INTERNAL FOSTER CARE PROVISION,Transfer Payments,Revenue
Walsall Council,http://opendatacommunities.org/id/metropolitan-district-council/walsall,WC79-487,30/04/2017,Childrens,REDACTED,24/04/2017,810.32,74501-MAINTENANCE ALLOWANCE-FOSTER CARERS,INTERNAL FOSTER CARE PROVISION,Transfer Payments,Revenue
Walsall Council,http://opendatacommunities.org/id/metropolitan-district-council/walsall,WC79-488,30/04/2017,Childrens,REDACTED,24/04/2017,844.27,74506-TRAVEL-FOSTER CARERS,INTERNAL FOSTER CARE PROVISION,Transfer Payments,Revenue
Walsall Council,http://opendatacommunities.org/id/metropolitan-district-council/walsall,WC79-489,30/04/2017,Childrens,REDACTED,24/04/2017,"1,436.08",74508-INTERNAL FOSTER CARERS-CARER FEES,INTERNAL FOSTER CARE PROVISION,Transfer Payments,Revenue
Walsall Council,http://opendatacommunities.org/id/metropolitan-district-council/walsall,WC79-490,30/04/2017,Economy & Environment,BRENNTAG UK LIMITED,10/04/2017,712.80,50301-FUEL-TRANSPORT RUN COSTS,FUEL STOCK ACCOUNT,Transport,Revenue
Walsall Council,http://opendatacommunities.org/id/metropolitan-district-council/walsall,WC79-491,30/04/2017,Adult Social Care,REDACTED,25/04/2017,"1,337.64",73374-SUPPORTED & OTHER ACCOMMODATION,LD COMMISSIONING,Third Party Payments,Revenue
Walsall Council,http://opendatacommunities.org/id/metropolitan-district-council/walsall,WC79-492,30/04/2017,Adult Social Care,REDACTED,25/04/2017,"1,597.60",73374-SUPPORTED & OTHER ACCOMMODATION,LD COMMISSIONING,Third Party Payments,Revenue
Walsall Council,http://opendatacommunities.org/id/metropolitan-district-council/walsall,WC79-493,30/04/2017,Adult Social Care,REDACTED,10/04/2017,"1,726.40",76422-DIRECT PAYMENTS TO SOCIAL SERVICES CLIENTS,OP COMMISSIONING,Transfer Payments,Revenue
Walsall Council,http://opendatacommunities.org/id/metropolitan-district-council/walsall,WC79-494,30/04/2017,Adult Social Care,REDACTED,10/04/2017,738.00,76422-DIRECT PAYMENTS TO SOCIAL SERVICES CLIENTS,OP COMMISSIONING,Transfer Payments,Revenue
Walsall Council,http://opendatacommunities.org/id/metropolitan-district-council/walsall,WC79-495,30/04/2017,Change and Governance,BRITISH GAS BUSINESS,19/04/2017,279.10,42000-GAS-ENERGY COSTS,CENTRALISED ENERGY,Premises,Revenue
Walsall Council,http://opendatacommunities.org/id/metropolitan-district-council/walsall,WC79-496,30/04/2017,Childrens,BRITISH GAS BUSINESS,07/04/2017,312.96,42000-GAS-ENERGY COSTS,LOCALITY FAMILY SUPPORT-WEST,Premises,Revenue
Walsall Council,http://opendatacommunities.org/id/metropolitan-district-council/walsall,WC79-497,30/04/2017,Change and Governance,BRITISH GAS BUSINESS,24/04/2017,"1,075.20",42000-GAS-ENERGY COSTS,CENTRALISED ENERGY,Premises,Revenue
Walsall Council,http://opendatacommunities.org/id/metropolitan-district-council/walsall,WC79-498,30/04/2017,Change and Governance,BRITISH GAS BUSINESS,19/04/2017,"1,518.53",42000-GAS-ENERGY COSTS,CENTRALISED ENERGY,Premises,Revenue
Walsall Council,http://opendatacommunities.org/id/metropolitan-district-council/walsall,WC79-499,30/04/2017,Change and Governance,BRITISH GAS BUSINESS,19/04/2017,"3,550.01",42000-GAS-ENERGY COSTS,RECHARGEABLE UTILITIES,Premises,Revenue
Walsall Council,http://opendatacommunities.org/id/metropolitan-district-council/walsall,WC79-500,30/04/2017,Change and Governance,BRITISH GAS BUSINESS,24/04/2017,"7,411.98",42000-GAS-ENERGY COSTS,CENTRALISED ENERGY,Premises,Revenue
Walsall Council,http://opendatacommunities.org/id/metropolitan-district-council/walsall,WC79-501,30/04/2017,Economy & Environment,BROADWAY PHARMACY,12/04/2017,35.40,63000-PROFESSIONAL FEES AND SERVICES,SEXUAL HEALTH,Supplies & Services,Revenue
Walsall Council,http://opendatacommunities.org/id/metropolitan-district-council/walsall,WC79-502,30/04/2017,Economy & Environment,BROADWAY PHARMACY,12/04/2017,141.60,63000-PROFESSIONAL FEES AND SERVICES,SEXUAL HEALTH,Supplies & Services,Revenue
Walsall Council,http://opendatacommunities.org/id/metropolitan-district-council/walsall,WC79-503,30/04/2017,Economy & Environment,BROADWAY PHARMACY,12/04/2017,814.42,71007-CONTRIBUTION TO PCT,PUBLIC HEALTH BUSINESS SUPPORT,Third Party Payments,Revenue
Walsall Council,http://opendatacommunities.org/id/metropolitan-district-council/walsall,WC79-504,30/04/2017,Economy & Environment,BROADWAY PHARMACY,12/04/2017,827.83,71007-CONTRIBUTION TO PCT,PUBLIC HEALTH BUSINESS SUPPORT,Third Party Payments,Revenue
Walsall Council,http://opendatacommunities.org/id/metropolitan-district-council/walsall,WC79-505,30/04/2017,Economy & Environment,BROWNHILLS ASPHALT & TARMAC LIMITED,04/04/2017,"5,920.00",60006-NEW-FURNITURE & EQUIPMENT,DEPOT,Supplies & Services,Revenue
Walsall Council,http://opendatacommunities.org/id/metropolitan-district-council/walsall,WC79-506,30/04/2017,Economy & Environment,BROWNHILLS ASPHALT & TARMAC LIMITED,10/04/2017,"6,730.00",60500-GENERAL MATERIALS,ENVIRONMENTAL IMPROVEMENT SERVICE,Supplies & Services,Revenue
Walsall Council,http://opendatacommunities.org/id/metropolitan-district-council/walsall,WC79-507,30/04/2017,Economy & Environment,BROWNHILLS ASPHALT & TARMAC LIMITED,04/04/2017,"15,521.00",63239-EXTERNAL WORKS-PAYMENT TO CONTRACTOR,COMMUNITY LIAISON,Third Party Payments,Revenue
Walsall Council,http://opendatacommunities.org/id/metropolitan-district-council/walsall,WC79-508,30/04/2017,Childrens,BROWNHILLS COMMUNITY ASSOCIATION,03/04/2017,"9,984.00",66505-OTHER-GRANTS TO OTHER ORGS,EARLY YEARS - 3 YR OLDS,Third Party Payments,Revenue
Walsall Council,http://opendatacommunities.org/id/metropolitan-district-council/walsall,WC79-509,30/04/2017,Childrens,BROWNHILLS COMMUNITY ASSOCIATION,03/04/2017,"15,531.20",66505-OTHER-GRANTS TO OTHER ORGS,EARLY YEARS - 2 YR OLDS,Third Party Payments,Revenue
Walsall Council,http://opendatacommunities.org/id/metropolitan-district-council/walsall,WC79-510,30/04/2017,Adult Social Care,REDACTED,10/04/2017,"1,530.00",76422-DIRECT PAYMENTS TO SOCIAL SERVICES CLIENTS,LD COMMISSIONING,Transfer Payments,Revenue
Walsall Council,http://opendatacommunities.org/id/metropolitan-district-council/walsall,WC79-511,30/04/2017,Economy & Environment,REDACTED,21/04/2017,"2,081.25",63000-PROFESSIONAL FEES AND SERVICES,BLOXWICH LIBRARY,Supplies & Services,Revenue
Walsall Council,http://opendatacommunities.org/id/metropolitan-district-council/walsall,WC79-512,30/04/2017,Childrens,REDACTED,24/04/2017,"18,768.00",74036-EXTERNAL RESIDENTIAL CARE-OTH AGENCY PROVISION,INDEPENDENT RESIDENTIAL HOMES,Third Party Payments,Revenue
Walsall Council,http://opendatacommunities.org/id/metropolitan-district-council/walsall,WC79-513,30/04/2017,Change and Governance,B-SURE SECURITY SERVICES LTD,10/04/2017,352.90,"40000-REPAIRS,ALTERATIONS & MAINTENANCE-PREM",CENTRAL OFFICE ACCOMMODATION,Premises,Revenue
Walsall Council,http://opendatacommunities.org/id/metropolitan-district-council/walsall,WC79-514,30/04/2017,Change and Governance,BT,05/04/2017,797.29,63603-COST OF CALLS-TELEPHONES,PROCESSING,Supplies & Services,Revenue
Walsall Council,http://opendatacommunities.org/id/metropolitan-district-council/walsall,WC79-515,30/04/2017,Change and Governance,BT PLC,12/04/2017,268.70,63601-COSTS (NOT INTERNAL RECHARGES)-TELEPHONES,CENTRAL COMMUNICATIONS RECHARGES,Supplies & Services,Revenue
Walsall Council,http://opendatacommunities.org/id/metropolitan-district-council/walsall,WC79-516,30/04/2017,Change and Governance,BT PLC,04/04/2017,"1,268.35",63601-COSTS (NOT INTERNAL RECHARGES)-TELEPHONES,RECHARGEABLE EQUIPMENT,Supplies & Services,Revenue
Walsall Council,http://opendatacommunities.org/id/metropolitan-district-council/walsall,WC79-517,30/04/2017,Economy & Environment,BT PLC,18/04/2017,"14,002.00",01002-PROJECT FEES,CFR 1178 M6 JUNCTION 10 HIGHWAYS ENGLAND CONTRIBUTION,Capital,Capital
Walsall Council,http://opendatacommunities.org/id/metropolitan-district-council/walsall,WC79-518,30/04/2017,Change and Governance,BT PLC,12/04/2017,"15,661.46",63601-COSTS (NOT INTERNAL RECHARGES)-TELEPHONES,CENTRAL COMMUNICATIONS RECHARGES,Supplies & Services,Revenue
Walsall Council,http://opendatacommunities.org/id/metropolitan-district-council/walsall,WC79-519,30/04/2017,Economy & Environment,BUILDING SOFTWARE LTD,10/04/2017,"11,200.00",73025-PROFESSIONAL SERVICES-PRIV CONTRACTOR & OTHER AGENCIES,HIGHWAYS MAINTENANCE GENERAL,Third Party Payments,Revenue
Walsall Council,http://opendatacommunities.org/id/metropolitan-district-council/walsall,WC79-520,30/04/2017,Adult Social Care,BUPA CARE HOMES (CFHCARE) LTD,04/04/2017,929.15,73373-RESIDENTIAL & NURSING CARE PLACEMENTS,OP COMMISSIONING,Third Party Payments,Revenue
Walsall Council,http://opendatacommunities.org/id/metropolitan-district-council/walsall,WC79-521,30/04/2017,Adult Social Care,BUPA CARE HOMES (CFHCARE) LTD,04/04/2017,"1,072.09",73373-RESIDENTIAL & NURSING CARE PLACEMENTS,OP COMMISSIONING,Third Party Payments,Revenue
Walsall Council,http://opendatacommunities.org/id/metropolitan-district-council/walsall,WC79-522,30/04/2017,Adult Social Care,BUPA CARE HOMES (CFHCARE) LTD,04/04/2017,"1,569.38",73373-RESIDENTIAL & NURSING CARE PLACEMENTS,OP COMMISSIONING,Third Party Payments,Revenue
Walsall Council,http://opendatacommunities.org/id/metropolitan-district-council/walsall,WC79-523,30/04/2017,Adult Social Care,BUPA CARE HOMES (CFHCARE) LTD,04/04/2017,"1,810.82",73373-RESIDENTIAL & NURSING CARE PLACEMENTS,OP COMMISSIONING,Third Party Payments,Revenue
Walsall Council,http://opendatacommunities.org/id/metropolitan-district-council/walsall,WC79-524,30/04/2017,Adult Social Care,BUPA TRENEWYDD CARE HOME,12/04/2017,"1,782.86",73373-RESIDENTIAL & NURSING CARE PLACEMENTS,OP COMMISSIONING,Third Party Payments,Revenue
Walsall Council,http://opendatacommunities.org/id/metropolitan-district-council/walsall,WC79-525,30/04/2017,Economy & Environment,BUREAU VERITAS CONSUMER PRODUCTS SERVICES UK LTD,24/04/2017,335.41,73007-SAMPLING FEES-PRIV CONTRACTOR FEES,TRADING STANDARDS,Third Party Payments,Revenue
Walsall Council,http://opendatacommunities.org/id/metropolitan-district-council/walsall,WC79-526,30/04/2017,Economy & Environment,BURTON ADDICTION CENTRE,20/04/2017,964.29,63000-PROFESSIONAL FEES AND SERVICES,ALCOHOL & DRUGS MISUSE,Supplies & Services,Revenue
Walsall Council,http://opendatacommunities.org/id/metropolitan-district-council/walsall,WC79-527,30/04/2017,Childrens,BUSY BEES CHILDCARE LTD,03/04/2017,"8,112.00",66505-OTHER-GRANTS TO OTHER ORGS,EARLY YEARS - 3 YR OLDS,Third Party Payments,Revenue
Walsall Council,http://opendatacommunities.org/id/metropolitan-district-council/walsall,WC79-528,30/04/2017,Economy & Environment,BUXTONS LTD,26/04/2017,218.00,60500-GENERAL MATERIALS,TREE TEAM,Supplies & Services,Revenue
Walsall Council,http://opendatacommunities.org/id/metropolitan-district-council/walsall,WC79-529,30/04/2017,Childrens,BY THE BRIDGE,24/04/2017,"2,846.20",74037-INDEPENDENT FOSTER CARE-OTH AGENCY PROVISION,EXTERNAL FOSTER CARE PROVISION,Third Party Payments,Revenue
Walsall Council,http://opendatacommunities.org/id/metropolitan-district-council/walsall,WC79-530,30/04/2017,Childrens,BY THE BRIDGE,24/04/2017,"2,862.00",74037-INDEPENDENT FOSTER CARE-OTH AGENCY PROVISION,EXTERNAL FOSTER CARE PROVISION,Third Party Payments,Revenue
Walsall Council,http://opendatacommunities.org/id/metropolitan-district-council/walsall,WC79-531,30/04/2017,Childrens,BY THE BRIDGE,24/04/2017,"3,100.00",74037-INDEPENDENT FOSTER CARE-OTH AGENCY PROVISION,EXTERNAL FOSTER CARE PROVISION,Third Party Payments,Revenue
Walsall Council,http://opendatacommunities.org/id/metropolitan-district-council/walsall,WC79-532,30/04/2017,Adult Social Care,C & V ORCHARD MANOR LTD,04/04/2017,"1,620.00",73373-RESIDENTIAL & NURSING CARE PLACEMENTS,OP COMMISSIONING,Third Party Payments,Revenue
Walsall Council,http://opendatacommunities.org/id/metropolitan-district-council/walsall,WC79-533,30/04/2017,Adult Social Care,C & V ORCHARD MANOR LTD,04/04/2017,"1,620.00",73373-RESIDENTIAL & NURSING CARE PLACEMENTS,LD COMMISSIONING,Third Party Payments,Revenue
Walsall Council,http://opendatacommunities.org/id/metropolitan-district-council/walsall,WC79-534,30/04/2017,Adult Social Care,C & V ORCHARD MANOR LTD,04/04/2017,"1,620.00",73373-RESIDENTIAL & NURSING CARE PLACEMENTS,OP COMMISSIONING,Third Party Payments,Revenue
Walsall Council,http://opendatacommunities.org/id/metropolitan-district-council/walsall,WC79-535,30/04/2017,Adult Social Care,C & V ORCHARD MANOR LTD,04/04/2017,"1,620.00",73373-RESIDENTIAL & NURSING CARE PLACEMENTS,MH COMMISSIONING,Third Party Payments,Revenue
Walsall Council,http://opendatacommunities.org/id/metropolitan-district-council/walsall,WC79-536,30/04/2017,Adult Social Care,C & V ORCHARD MANOR LTD,04/04/2017,"1,620.00",73373-RESIDENTIAL & NURSING CARE PLACEMENTS,MH COMMISSIONING,Third Party Payments,Revenue
Walsall Council,http://opendatacommunities.org/id/metropolitan-district-council/walsall,WC79-537,30/04/2017,Adult Social Care,C & V ORCHARD MANOR LTD,04/04/2017,"1,620.00",73373-RESIDENTIAL & NURSING CARE PLACEMENTS,MH COMMISSIONING,Third Party Payments,Revenue
Walsall Council,http://opendatacommunities.org/id/metropolitan-district-council/walsall,WC79-538,30/04/2017,Adult Social Care,C & V ORCHARD MANOR LTD,04/04/2017,"1,620.00",73373-RESIDENTIAL & NURSING CARE PLACEMENTS,MH COMMISSIONING,Third Party Payments,Revenue
Walsall Council,http://opendatacommunities.org/id/metropolitan-district-council/walsall,WC79-539,30/04/2017,Adult Social Care,C & V ORCHARD MANOR LTD,04/04/2017,"1,620.60",73373-RESIDENTIAL & NURSING CARE PLACEMENTS,OP COMMISSIONING,Third Party Payments,Revenue
Walsall Council,http://opendatacommunities.org/id/metropolitan-district-council/walsall,WC79-540,30/04/2017,Adult Social Care,C & V ORCHARD MANOR LTD,13/04/2017,"1,793.57",73373-RESIDENTIAL & NURSING CARE PLACEMENTS,MH COMMISSIONING,Third Party Payments,Revenue
Walsall Council,http://opendatacommunities.org/id/metropolitan-district-council/walsall,WC79-541,30/04/2017,Adult Social Care,C & V ORCHARD MANOR LTD,04/04/2017,"1,800.00",73373-RESIDENTIAL & NURSING CARE PLACEMENTS,OP COMMISSIONING,Third Party Payments,Revenue
Walsall Council,http://opendatacommunities.org/id/metropolitan-district-council/walsall,WC79-542,30/04/2017,Adult Social Care,C & V ORCHARD MANOR LTD,04/04/2017,"1,800.00",73373-RESIDENTIAL & NURSING CARE PLACEMENTS,OP COMMISSIONING,Third Party Payments,Revenue
Walsall Council,http://opendatacommunities.org/id/metropolitan-district-council/walsall,WC79-543,30/04/2017,Adult Social Care,C & V ORCHARD MANOR LTD,04/04/2017,"1,800.00",73373-RESIDENTIAL & NURSING CARE PLACEMENTS,MH COMMISSIONING,Third Party Payments,Revenue
Walsall Council,http://opendatacommunities.org/id/metropolitan-district-council/walsall,WC79-544,30/04/2017,Adult Social Care,C & V ORCHARD MANOR LTD,04/04/2017,"1,800.00",73373-RESIDENTIAL & NURSING CARE PLACEMENTS,MH COMMISSIONING,Third Party Payments,Revenue
Walsall Council,http://opendatacommunities.org/id/metropolitan-district-council/walsall,WC79-545,30/04/2017,Adult Social Care,C & V ORCHARD MANOR LTD,04/04/2017,"1,800.00",73373-RESIDENTIAL & NURSING CARE PLACEMENTS,OP COMMISSIONING,Third Party Payments,Revenue
Walsall Council,http://opendatacommunities.org/id/metropolitan-district-council/walsall,WC79-546,30/04/2017,Adult Social Care,C & V ORCHARD MANOR LTD,04/04/2017,"1,800.00",73373-RESIDENTIAL & NURSING CARE PLACEMENTS,OP COMMISSIONING,Third Party Payments,Revenue
Walsall Council,http://opendatacommunities.org/id/metropolitan-district-council/walsall,WC79-547,30/04/2017,Adult Social Care,C & V ORCHARD MANOR LTD,04/04/2017,"1,800.00",73373-RESIDENTIAL & NURSING CARE PLACEMENTS,OP COMMISSIONING,Third Party Payments,Revenue
Walsall Council,http://opendatacommunities.org/id/metropolitan-district-council/walsall,WC79-548,30/04/2017,Adult Social Care,C & V ORCHARD MANOR LTD,13/04/2017,"2,835.00",73373-RESIDENTIAL & NURSING CARE PLACEMENTS,MH COMMISSIONING,Third Party Payments,Revenue
Walsall Council,http://opendatacommunities.org/id/metropolitan-district-council/walsall,WC79-549,30/04/2017,Adult Social Care,C & V ORCHARD MANOR LTD,13/04/2017,"2,892.86",73373-RESIDENTIAL & NURSING CARE PLACEMENTS,MH COMMISSIONING,Third Party Payments,Revenue
Walsall Council,http://opendatacommunities.org/id/metropolitan-district-council/walsall,WC79-550,30/04/2017,Adult Social Care,C & V ORCHARD RESIDENTIAL LTD,04/04/2017,"1,620.00",73373-RESIDENTIAL & NURSING CARE PLACEMENTS,OP COMMISSIONING,Third Party Payments,Revenue
Walsall Council,http://opendatacommunities.org/id/metropolitan-district-council/walsall,WC79-551,30/04/2017,Adult Social Care,C & V ORCHARD RESIDENTIAL LTD,04/04/2017,"1,620.00",73373-RESIDENTIAL & NURSING CARE PLACEMENTS,OP COMMISSIONING,Third Party Payments,Revenue
Walsall Council,http://opendatacommunities.org/id/metropolitan-district-council/walsall,WC79-552,30/04/2017,Adult Social Care,C & V ORCHARD RESIDENTIAL LTD,04/04/2017,"1,799.96",73373-RESIDENTIAL & NURSING CARE PLACEMENTS,OP COMMISSIONING,Third Party Payments,Revenue
Walsall Council,http://opendatacommunities.org/id/metropolitan-district-council/walsall,WC79-553,30/04/2017,Adult Social Care,C & V ORCHARD RESIDENTIAL LTD,04/04/2017,"1,800.00",73373-RESIDENTIAL & NURSING CARE PLACEMENTS,OP COMMISSIONING,Third Party Payments,Revenue
Walsall Council,http://opendatacommunities.org/id/metropolitan-district-council/walsall,WC79-554,30/04/2017,Adult Social Care,C & V ORCHARD RESIDENTIAL LTD,04/04/2017,"1,800.00",73373-RESIDENTIAL & NURSING CARE PLACEMENTS,OP COMMISSIONING,Third Party Payments,Revenue
Walsall Council,http://opendatacommunities.org/id/metropolitan-district-council/walsall,WC79-555,30/04/2017,Adult Social Care,C & V ORCHARD RESIDENTIAL LTD,04/04/2017,"1,800.00",73373-RESIDENTIAL & NURSING CARE PLACEMENTS,OP COMMISSIONING,Third Party Payments,Revenue
Walsall Council,http://opendatacommunities.org/id/metropolitan-district-council/walsall,WC79-556,30/04/2017,Adult Social Care,C & V ORCHARD RESIDENTIAL LTD,04/04/2017,"1,800.00",73373-RESIDENTIAL & NURSING CARE PLACEMENTS,OP COMMISSIONING,Third Party Payments,Revenue
Walsall Council,http://opendatacommunities.org/id/metropolitan-district-council/walsall,WC79-557,30/04/2017,Adult Social Care,C & V ORCHARD RESIDENTIAL LTD,04/04/2017,"1,800.00",73373-RESIDENTIAL & NURSING CARE PLACEMENTS,OP COMMISSIONING,Third Party Payments,Revenue
Walsall Council,http://opendatacommunities.org/id/metropolitan-district-council/walsall,WC79-558,30/04/2017,Adult Social Care,C & V ORCHARD RESIDENTIAL LTD,04/04/2017,"1,800.00",73373-RESIDENTIAL & NURSING CARE PLACEMENTS,OP COMMISSIONING,Third Party Payments,Revenue
Walsall Council,http://opendatacommunities.org/id/metropolitan-district-council/walsall,WC79-559,30/04/2017,Adult Social Care,C & V ORCHARD RESIDENTIAL LTD,04/04/2017,"1,800.00",73373-RESIDENTIAL & NURSING CARE PLACEMENTS,OP COMMISSIONING,Third Party Payments,Revenue
Walsall Council,http://opendatacommunities.org/id/metropolitan-district-council/walsall,WC79-560,30/04/2017,Adult Social Care,C & V ORCHARD RESIDENTIAL LTD,04/04/2017,"1,800.00",73373-RESIDENTIAL & NURSING CARE PLACEMENTS,OP COMMISSIONING,Third Party Payments,Revenue
Walsall Council,http://opendatacommunities.org/id/metropolitan-district-council/walsall,WC79-561,30/04/2017,Adult Social Care,C & V ORCHARD RESIDENTIAL LTD,04/04/2017,"1,800.00",73373-RESIDENTIAL & NURSING CARE PLACEMENTS,MH COMMISSIONING,Third Party Payments,Revenue
Walsall Council,http://opendatacommunities.org/id/metropolitan-district-council/walsall,WC79-562,30/04/2017,Childrens,REDACTED,24/04/2017,9.24,60006-NEW-FURNITURE & EQUIPMENT,INTERNAL FOSTER CARE PROVISION,Supplies & Services,Revenue
Walsall Council,http://opendatacommunities.org/id/metropolitan-district-council/walsall,WC79-563,30/04/2017,Childrens,REDACTED,24/04/2017,810.32,74501-MAINTENANCE ALLOWANCE-FOSTER CARERS,INTERNAL FOSTER CARE PROVISION,Transfer Payments,Revenue
Walsall Council,http://opendatacommunities.org/id/metropolitan-district-council/walsall,WC79-564,30/04/2017,Childrens,REDACTED,24/04/2017,810.32,74501-MAINTENANCE ALLOWANCE-FOSTER CARERS,INTERNAL FOSTER CARE PROVISION,Transfer Payments,Revenue
Walsall Council,http://opendatacommunities.org/id/metropolitan-district-council/walsall,WC79-565,30/04/2017,Childrens,REDACTED,24/04/2017,810.32,74501-MAINTENANCE ALLOWANCE-FOSTER CARERS,INTERNAL FOSTER CARE PROVISION,Transfer Payments,Revenue
Walsall Council,http://opendatacommunities.org/id/metropolitan-district-council/walsall,WC79-566,30/04/2017,Childrens,REDACTED,24/04/2017,810.32,74501-MAINTENANCE ALLOWANCE-FOSTER CARERS,INTERNAL FOSTER CARE PROVISION,Transfer Payments,Revenue
Walsall Council,http://opendatacommunities.org/id/metropolitan-district-council/walsall,WC79-567,30/04/2017,Childrens,REDACTED,24/04/2017,985.76,74501-MAINTENANCE ALLOWANCE-FOSTER CARERS,INTERNAL FOSTER CARE PROVISION,Transfer Payments,Revenue
Walsall Council,http://opendatacommunities.org/id/metropolitan-district-council/walsall,WC79-568,30/04/2017,Childrens,REDACTED,24/04/2017,985.76,74501-MAINTENANCE ALLOWANCE-FOSTER CARERS,INTERNAL FOSTER CARE PROVISION,Transfer Payments,Revenue
Walsall Council,http://opendatacommunities.org/id/metropolitan-district-council/walsall,WC79-569,30/04/2017,Childrens,REDACTED,24/04/2017,"4,308.40",74508-INTERNAL FOSTER CARERS-CARER FEES,INTERNAL FOSTER CARE PROVISION,Transfer Payments,Revenue
Walsall Council,http://opendatacommunities.org/id/metropolitan-district-council/walsall,WC79-570,30/04/2017,Childrens,REDACTED,24/04/2017,9.24,60006-NEW-FURNITURE & EQUIPMENT,INTERNAL FOSTER CARE PROVISION,Supplies & Services,Revenue
Walsall Council,http://opendatacommunities.org/id/metropolitan-district-council/walsall,WC79-571,30/04/2017,Childrens,REDACTED,24/04/2017,810.32,74501-MAINTENANCE ALLOWANCE-FOSTER CARERS,INTERNAL FOSTER CARE PROVISION,Transfer Payments,Revenue
Walsall Council,http://opendatacommunities.org/id/metropolitan-district-council/walsall,WC79-572,30/04/2017,Childrens,REDACTED,24/04/2017,810.32,74501-MAINTENANCE ALLOWANCE-FOSTER CARERS,INTERNAL FOSTER CARE PROVISION,Transfer Payments,Revenue
Walsall Council,http://opendatacommunities.org/id/metropolitan-district-council/walsall,WC79-573,30/04/2017,Childrens,REDACTED,24/04/2017,"1,436.08",74508-INTERNAL FOSTER CARERS-CARER FEES,INTERNAL FOSTER CARE PROVISION,Transfer Payments,Revenue
Walsall Council,http://opendatacommunities.org/id/metropolitan-district-council/walsall,WC79-574,30/04/2017,Childrens,REDACTED,07/04/2017,571.44,74501-MAINTENANCE ALLOWANCE-FOSTER CARERS,FAMILY & FRIENDS FOSTER CARE PROVISION,Transfer Payments,Revenue
Walsall Council,http://opendatacommunities.org/id/metropolitan-district-council/walsall,WC79-575,30/04/2017,Childrens,REDACTED,07/04/2017,650.92,74501-MAINTENANCE ALLOWANCE-FOSTER CARERS,FAMILY & FRIENDS FOSTER CARE PROVISION,Transfer Payments,Revenue
Walsall Council,http://opendatacommunities.org/id/metropolitan-district-council/walsall,WC79-576,30/04/2017,Change and Governance,CAE TECHNOLOGY SERVICES LTD,04/04/2017,600.18,63800-COMPUTER EQUIPMENT AND SUPPLIES,RECHARGEABLE EQUIPMENT,Supplies & Services,Revenue
Walsall Council,http://opendatacommunities.org/id/metropolitan-district-council/walsall,WC79-577,30/04/2017,Change and Governance,CAE TECHNOLOGY SERVICES LTD,26/04/2017,"1,896.95",63800-COMPUTER EQUIPMENT AND SUPPLIES,RECHARGEABLE EQUIPMENT,Supplies & Services,Revenue
Walsall Council,http://opendatacommunities.org/id/metropolitan-district-council/walsall,WC79-578,30/04/2017,Adult Social Care,CALDENE  REST HOME,13/04/2017,"1,330.72",73373-RESIDENTIAL & NURSING CARE PLACEMENTS,OP COMMISSIONING,Third Party Payments,Revenue
Walsall Council,http://opendatacommunities.org/id/metropolitan-district-council/walsall,WC79-579,30/04/2017,Adult Social Care,CALDMORE AREA HOUSING ASS LTD,10/04/2017,418.19,73372-DOMICILIARY CARE,MH COMMISSIONING,Third Party Payments,Revenue
Walsall Council,http://opendatacommunities.org/id/metropolitan-district-council/walsall,WC79-580,30/04/2017,Adult Social Care,CALDMORE AREA HOUSING ASS LTD,12/04/2017,542.79,73373-RESIDENTIAL & NURSING CARE PLACEMENTS,MH COMMISSIONING,Third Party Payments,Revenue
Walsall Council,http://opendatacommunities.org/id/metropolitan-district-council/walsall,WC79-581,30/04/2017,Adult Social Care,CALDMORE AREA HOUSING ASS LTD,12/04/2017,542.79,73373-RESIDENTIAL & NURSING CARE PLACEMENTS,MH COMMISSIONING,Third Party Payments,Revenue
Walsall Council,http://opendatacommunities.org/id/metropolitan-district-council/walsall,WC79-582,30/04/2017,Adult Social Care,CALDMORE AREA HOUSING ASS LTD,12/04/2017,542.79,73373-RESIDENTIAL & NURSING CARE PLACEMENTS,MH COMMISSIONING,Third Party Payments,Revenue
Walsall Council,http://opendatacommunities.org/id/metropolitan-district-council/walsall,WC79-583,30/04/2017,Adult Social Care,CALDMORE AREA HOUSING ASS LTD,04/04/2017,633.26,73373-RESIDENTIAL & NURSING CARE PLACEMENTS,MH COMMISSIONING,Third Party Payments,Revenue
Walsall Council,http://opendatacommunities.org/id/metropolitan-district-council/walsall,WC79-584,30/04/2017,Adult Social Care,CALDMORE AREA HOUSING ASS LTD,10/04/2017,717.82,73374-SUPPORTED & OTHER ACCOMMODATION,MH COMMISSIONING,Third Party Payments,Revenue
Walsall Council,http://opendatacommunities.org/id/metropolitan-district-council/walsall,WC79-585,30/04/2017,Adult Social Care,CALDMORE AREA HOUSING ASS LTD,26/04/2017,904.66,73373-RESIDENTIAL & NURSING CARE PLACEMENTS,MH COMMISSIONING,Third Party Payments,Revenue
Walsall Council,http://opendatacommunities.org/id/metropolitan-district-council/walsall,WC79-586,30/04/2017,Adult Social Care,CALDMORE AREA HOUSING ASS LTD,10/04/2017,"1,001.15",73374-SUPPORTED & OTHER ACCOMMODATION,MH COMMISSIONING,Third Party Payments,Revenue
Walsall Council,http://opendatacommunities.org/id/metropolitan-district-council/walsall,WC79-587,30/04/2017,Adult Social Care,CALDMORE AREA HOUSING ASS LTD,10/04/2017,"1,057.85",73374-SUPPORTED & OTHER ACCOMMODATION,MH COMMISSIONING,Third Party Payments,Revenue
Walsall Council,http://opendatacommunities.org/id/metropolitan-district-council/walsall,WC79-588,30/04/2017,Adult Social Care,CALDMORE AREA HOUSING ASS LTD,10/04/2017,"1,175.87",73374-SUPPORTED & OTHER ACCOMMODATION,MH COMMISSIONING,Third Party Payments,Revenue
Walsall Council,http://opendatacommunities.org/id/metropolitan-district-council/walsall,WC79-589,30/04/2017,Adult Social Care,CALDMORE AREA HOUSING ASS LTD,26/04/2017,"1,447.45",73373-RESIDENTIAL & NURSING CARE PLACEMENTS,MH COMMISSIONING,Third Party Payments,Revenue
Walsall Council,http://opendatacommunities.org/id/metropolitan-district-council/walsall,WC79-590,30/04/2017,Adult Social Care,CALDMORE AREA HOUSING ASS LTD,10/04/2017,"1,530.06",73374-SUPPORTED & OTHER ACCOMMODATION,MH COMMISSIONING,Third Party Payments,Revenue
Walsall Council,http://opendatacommunities.org/id/metropolitan-district-council/walsall,WC79-591,30/04/2017,Adult Social Care,CALDMORE AREA HOUSING ASS LTD,10/04/2017,"1,563.12",73374-SUPPORTED & OTHER ACCOMMODATION,MH COMMISSIONING,Third Party Payments,Revenue
Walsall Council,http://opendatacommunities.org/id/metropolitan-district-council/walsall,WC79-592,30/04/2017,Adult Social Care,CALDMORE AREA HOUSING ASS LTD,12/04/2017,"1,718.85",73373-RESIDENTIAL & NURSING CARE PLACEMENTS,MH COMMISSIONING,Third Party Payments,Revenue
Walsall Council,http://opendatacommunities.org/id/metropolitan-district-council/walsall,WC79-593,30/04/2017,Adult Social Care,CALDMORE AREA HOUSING ASS LTD,10/04/2017,"1,733.13",73374-SUPPORTED & OTHER ACCOMMODATION,MH COMMISSIONING,Third Party Payments,Revenue
Walsall Council,http://opendatacommunities.org/id/metropolitan-district-council/walsall,WC79-594,30/04/2017,Adult Social Care,CALDMORE AREA HOUSING ASS LTD,10/04/2017,"1,832.23",73374-SUPPORTED & OTHER ACCOMMODATION,MH COMMISSIONING,Third Party Payments,Revenue
Walsall Council,http://opendatacommunities.org/id/metropolitan-district-council/walsall,WC79-595,30/04/2017,Adult Social Care,CALDMORE AREA HOUSING ASS LTD,12/04/2017,"2,261.64",73373-RESIDENTIAL & NURSING CARE PLACEMENTS,MH COMMISSIONING,Third Party Payments,Revenue
Walsall Council,http://opendatacommunities.org/id/metropolitan-district-council/walsall,WC79-596,30/04/2017,Adult Social Care,CALDMORE AREA HOUSING ASS LTD,04/04/2017,"2,804.44",73373-RESIDENTIAL & NURSING CARE PLACEMENTS,MH COMMISSIONING,Third Party Payments,Revenue
Walsall Council,http://opendatacommunities.org/id/metropolitan-district-council/walsall,WC79-597,30/04/2017,Adult Social Care,CALDMORE AREA HOUSING ASS LTD,12/04/2017,"2,985.37",73373-RESIDENTIAL & NURSING CARE PLACEMENTS,MH COMMISSIONING,Third Party Payments,Revenue
Walsall Council,http://opendatacommunities.org/id/metropolitan-district-council/walsall,WC79-598,30/04/2017,Adult Social Care,CALDMORE AREA HOUSING ASS LTD,12/04/2017,"2,985.37",73373-RESIDENTIAL & NURSING CARE PLACEMENTS,MH COMMISSIONING,Third Party Payments,Revenue
Walsall Council,http://opendatacommunities.org/id/metropolitan-district-council/walsall,WC79-599,30/04/2017,Adult Social Care,CALDMORE AREA HOUSING ASS LTD,12/04/2017,"2,985.37",73373-RESIDENTIAL & NURSING CARE PLACEMENTS,MH COMMISSIONING,Third Party Payments,Revenue
Walsall Council,http://opendatacommunities.org/id/metropolitan-district-council/walsall,WC79-600,30/04/2017,Adult Social Care,CALDMORE AREA HOUSING ASS LTD,12/04/2017,"2,985.37",73373-RESIDENTIAL & NURSING CARE PLACEMENTS,MH COMMISSIONING,Third Party Payments,Revenue
Walsall Council,http://opendatacommunities.org/id/metropolitan-district-council/walsall,WC79-601,30/04/2017,Adult Social Care,CALDMORE AREA HOUSING ASS LTD,12/04/2017,"2,985.37",73373-RESIDENTIAL & NURSING CARE PLACEMENTS,OP COMMISSIONING,Third Party Payments,Revenue
Walsall Council,http://opendatacommunities.org/id/metropolitan-district-council/walsall,WC79-602,30/04/2017,Adult Social Care,CALDMORE AREA HOUSING ASS LTD,12/04/2017,"2,985.37",73373-RESIDENTIAL & NURSING CARE PLACEMENTS,MH COMMISSIONING,Third Party Payments,Revenue
Walsall Council,http://opendatacommunities.org/id/metropolitan-district-council/walsall,WC79-603,30/04/2017,Adult Social Care,CALDMORE AREA HOUSING ASS LTD,12/04/2017,"2,985.37",73373-RESIDENTIAL & NURSING CARE PLACEMENTS,MH COMMISSIONING,Third Party Payments,Revenue
Walsall Council,http://opendatacommunities.org/id/metropolitan-district-council/walsall,WC79-604,30/04/2017,Adult Social Care,CALDMORE AREA HOUSING ASS LTD,12/04/2017,"2,985.37",73373-RESIDENTIAL & NURSING CARE PLACEMENTS,MH COMMISSIONING,Third Party Payments,Revenue
Walsall Council,http://opendatacommunities.org/id/metropolitan-district-council/walsall,WC79-605,30/04/2017,Adult Social Care,CALDMORE AREA HOUSING ASS LTD,12/04/2017,"2,985.37",73373-RESIDENTIAL & NURSING CARE PLACEMENTS,MH COMMISSIONING,Third Party Payments,Revenue
Walsall Council,http://opendatacommunities.org/id/metropolitan-district-council/walsall,WC79-606,30/04/2017,Change and Governance,CALDMORE AREA HOUSING ASS LTD,05/04/2017,"138,379.00",01046-OTHER GRANTS,CFR 1108 OFF GAS SCHEME-DECC,Capital,Capital
Walsall Council,http://opendatacommunities.org/id/metropolitan-district-council/walsall,WC79-607,30/04/2017,Childrens,CALDMORE PRIMARY ACADEMY,12/04/2017,"53,505.00",66505-OTHER-GRANTS TO OTHER ORGS,EARLY YEARS - 3 YR OLDS,Third Party Payments,Revenue
Walsall Council,http://opendatacommunities.org/id/metropolitan-district-council/walsall,WC79-608,30/04/2017,Childrens,REDACTED,07/04/2017,374.57,74510-RESIDENTS ORDERS,ADOPTION ALLOWANCES,Third Party Payments,Revenue
Walsall Council,http://opendatacommunities.org/id/metropolitan-district-council/walsall,WC79-609,30/04/2017,Childrens,REDACTED,10/04/2017,315.00,76422-DIRECT PAYMENTS TO SOCIAL SERVICES CLIENTS,FAMILY SUPPORT - DIRECT PAYMENTS,Transfer Payments,Revenue
Walsall Council,http://opendatacommunities.org/id/metropolitan-district-council/walsall,WC79-610,30/04/2017,Childrens,CAMBIAN CHILDCARE LIMITED,24/04/2017,"13,400.00",74036-EXTERNAL RESIDENTIAL CARE-OTH AGENCY PROVISION,INDEPENDENT RESIDENTIAL HOMES,Third Party Payments,Revenue
Walsall Council,http://opendatacommunities.org/id/metropolitan-district-council/walsall,WC79-611,30/04/2017,Childrens,CAMBIAN WHINFELL SCHOOLS LTD,07/04/2017,"13,807.73",66502-TOP UP FUNDING -GRANTS TO SCHOOLS,INDEPENDENT PROVIDERS - SPECIAL & AP,Third Party Payments,Revenue
Walsall Council,http://opendatacommunities.org/id/metropolitan-district-council/walsall,WC79-612,30/04/2017,Childrens,CAMBIAN WHINFELL SCHOOLS LTD,07/04/2017,"13,807.73",66502-TOP UP FUNDING -GRANTS TO SCHOOLS,INDEPENDENT PROVIDERS - SPECIAL & AP,Third Party Payments,Revenue
Walsall Council,http://opendatacommunities.org/id/metropolitan-district-council/walsall,WC79-613,30/04/2017,Childrens,CAMBIAN WHINFELL SCHOOLS LTD,07/04/2017,"22,666.67",66502-TOP UP FUNDING -GRANTS TO SCHOOLS,INDEPENDENT PROVIDERS - SPECIAL & AP,Third Party Payments,Revenue
Walsall Council,http://opendatacommunities.org/id/metropolitan-district-council/walsall,WC79-614,30/04/2017,Childrens,CAMBIAN WHINFELL SCHOOLS LTD,07/04/2017,"26,508.77",66502-TOP UP FUNDING -GRANTS TO SCHOOLS,INDEPENDENT PROVIDERS - SPECIAL & AP,Third Party Payments,Revenue
Walsall Council,http://opendatacommunities.org/id/metropolitan-district-council/walsall,WC79-615,30/04/2017,Economy & Environment,CANAL & RIVER TRUST,26/04/2017,"1,302.75",43000-RENTS,ENVIRONMENTAL IMPROVEMENT SERVICE,Premises,Revenue
Walsall Council,http://opendatacommunities.org/id/metropolitan-district-council/walsall,WC79-616,30/04/2017,Economy & Environment,CANNOCK CHASE TRAINING CENTRE,03/04/2017,720.00,63800-COMPUTER EQUIPMENT AND SUPPLIES,ENGINEERING MANAGEMENT,Supplies & Services,Revenue
Walsall Council,http://opendatacommunities.org/id/metropolitan-district-council/walsall,WC79-617,30/04/2017,Change and Governance,CAPITA BUSINESS SERVICES LTD 001,04/04/2017,"5,897.50",63800-COMPUTER EQUIPMENT AND SUPPLIES,RECHARGEABLE EQUIPMENT,Supplies & Services,Revenue
Walsall Council,http://opendatacommunities.org/id/metropolitan-district-council/walsall,WC79-618,30/04/2017,Economy & Environment,CAPITA TREASURY SOLUTIONS LIMITED,24/04/2017,392.12,52003-OPERATING LEASES-VEHICLES,LEASING,Central,Revenue
Walsall Council,http://opendatacommunities.org/id/metropolitan-district-council/walsall,WC79-619,30/04/2017,Economy & Environment,CAPITA TREASURY SOLUTIONS LIMITED,24/04/2017,"1,427.87",52003-OPERATING LEASES-VEHICLES,LEASING,Central,Revenue
Walsall Council,http://opendatacommunities.org/id/metropolitan-district-council/walsall,WC79-620,30/04/2017,Capital Financing,CAPITA TREASURY SOLUTIONS LIMITED,20/04/2017,"4,625.00",63000-PROFESSIONAL FEES AND SERVICES,TREASURY MANAGEMENT COSTS,Supplies & Services,Revenue
Walsall Council,http://opendatacommunities.org/id/metropolitan-district-council/walsall,WC79-621,30/04/2017,Leasing,CAPITA TREASURY SOLUTIONS LIMITED,24/04/2017,"11,200.00",01018-VEHICLES LEASING,VEHICLE MAINTENANCE VEHICLES,Capital,Capital
Walsall Council,http://opendatacommunities.org/id/metropolitan-district-council/walsall,WC79-622,30/04/2017,Childrens,CAPSTONE FOSTER CARE (SOUTH EAST) LIMITED,24/04/2017,"2,855.68",74037-INDEPENDENT FOSTER CARE-OTH AGENCY PROVISION,EXTERNAL FOSTER CARE PROVISION,Third Party Payments,Revenue
Walsall Council,http://opendatacommunities.org/id/metropolitan-district-council/walsall,WC79-623,30/04/2017,Childrens,CAPSTONE FOSTER CARE (SOUTH EAST) LIMITED,24/04/2017,"3,005.64",74037-INDEPENDENT FOSTER CARE-OTH AGENCY PROVISION,EXTERNAL FOSTER CARE PROVISION,Third Party Payments,Revenue
Walsall Council,http://opendatacommunities.org/id/metropolitan-district-council/walsall,WC79-624,30/04/2017,Childrens,CAPSTONE FOSTER CARE (SOUTH EAST) LIMITED,24/04/2017,"3,194.04",74037-INDEPENDENT FOSTER CARE-OTH AGENCY PROVISION,EXTERNAL FOSTER CARE PROVISION,Third Party Payments,Revenue
Walsall Council,http://opendatacommunities.org/id/metropolitan-district-council/walsall,WC79-625,30/04/2017,Childrens,CAPSTONE FOSTER CARE (SOUTH EAST) LIMITED,24/04/2017,"3,194.04",74037-INDEPENDENT FOSTER CARE-OTH AGENCY PROVISION,EXTERNAL FOSTER CARE PROVISION,Third Party Payments,Revenue
Walsall Council,http://opendatacommunities.org/id/metropolitan-district-council/walsall,WC79-626,30/04/2017,Childrens,CAPSTONE FOSTER CARE (SOUTH EAST) LIMITED,24/04/2017,"3,260.04",74037-INDEPENDENT FOSTER CARE-OTH AGENCY PROVISION,EXTERNAL FOSTER CARE PROVISION,Third Party Payments,Revenue
Walsall Council,http://opendatacommunities.org/id/metropolitan-district-council/walsall,WC79-627,30/04/2017,Adult Social Care,CARE 2 U LIMITED,25/04/2017,"37,484.15",73372-DOMICILIARY CARE,OP COMMISSIONING,Third Party Payments,Revenue
Walsall Council,http://opendatacommunities.org/id/metropolitan-district-council/walsall,WC79-628,30/04/2017,Childrens,CARE 4 CHILDREN RESIDENTIAL SERVICES LTD,24/04/2017,"7,200.00",74037-INDEPENDENT FOSTER CARE-OTH AGENCY PROVISION,EXTERNAL FOSTER CARE PROVISION,Third Party Payments,Revenue
Walsall Council,http://opendatacommunities.org/id/metropolitan-district-council/walsall,WC79-629,30/04/2017,Adult Social Care,CARE AVENUES LTD,19/04/2017,"1,547.00",73372-DOMICILIARY CARE,OP COMMISSIONING,Third Party Payments,Revenue
Walsall Council,http://opendatacommunities.org/id/metropolitan-district-council/walsall,WC79-630,30/04/2017,Adult Social Care,CARE AVENUES LTD,26/04/2017,"6,448.00",73372-DOMICILIARY CARE,OP COMMISSIONING,Third Party Payments,Revenue
Walsall Council,http://opendatacommunities.org/id/metropolitan-district-council/walsall,WC79-631,30/04/2017,Adult Social Care,CARE FIRST MANAGEMENT SERVICES LTD,10/04/2017,780.00,73372-DOMICILIARY CARE,PD COMMISSIONING,Third Party Payments,Revenue
Walsall Council,http://opendatacommunities.org/id/metropolitan-district-council/walsall,WC79-632,30/04/2017,Childrens,CARE LEAVERS,07/04/2017,596.57,76000-TRANSFER PAYMENTS - SOCIAL SERVICES CLIENTS,TRANSITION AND LEAVING CARE,Transfer Payments,Revenue
Walsall Council,http://opendatacommunities.org/id/metropolitan-district-council/walsall,WC79-633,30/04/2017,Childrens,CARE LEAVERS,07/04/2017,"2,612.14",64002-OTHER EXPENSES-EXPENSES,TRANSITION AND LEAVING CARE,Supplies & Services,Revenue
Walsall Council,http://opendatacommunities.org/id/metropolitan-district-council/walsall,WC79-634,30/04/2017,Childrens,CARE LEAVERS,07/04/2017,"3,090.15",76010-ACCOMMODATION AND RELATED COSTS-ASSISTANCE TO S/S CLIENTS,TRANSITION AND LEAVING CARE,Transfer Payments,Revenue
Walsall Council,http://opendatacommunities.org/id/metropolitan-district-council/walsall,WC79-635,30/04/2017,Childrens,CARE LEAVERS,07/04/2017,"4,093.62",76400-RESIDENTS PERSONAL EXPENSES-ALLOWANCES TO S/S CLIENTS,TRANSITION AND LEAVING CARE,Transfer Payments,Revenue
Walsall Council,http://opendatacommunities.org/id/metropolitan-district-council/walsall,WC79-636,30/04/2017,Childrens,CARE LEAVERS,07/04/2017,"6,777.74",74500-CARE LEAVERS MTCE PAYMENTS,TRANSITION AND LEAVING CARE,Third Party Payments,Revenue
Walsall Council,http://opendatacommunities.org/id/metropolitan-district-council/walsall,WC79-637,30/04/2017,Adult Social Care,CARE SHOP,24/04/2017,466.80,60539-CLEANING MATERIALS,COMMUNITY INTERMEDIATE CARE,Supplies & Services,Revenue
Walsall Council,http://opendatacommunities.org/id/metropolitan-district-council/walsall,WC79-638,30/04/2017,Adult Social Care,CARE SHOP,05/04/2017,951.45,60539-CLEANING MATERIALS,REABLEMENT TEAM - HOLLY BANK,Supplies & Services,Revenue
Walsall Council,http://opendatacommunities.org/id/metropolitan-district-council/walsall,WC79-639,30/04/2017,Childrens,CARE TODAY CHILDRENS SERVICES,24/04/2017,"12,732.00",74036-EXTERNAL RESIDENTIAL CARE-OTH AGENCY PROVISION,INDEPENDENT RESIDENTIAL HOMES,Third Party Payments,Revenue
Walsall Council,http://opendatacommunities.org/id/metropolitan-district-council/walsall,WC79-640,30/04/2017,Childrens,CARE TODAY CHILDRENS SERVICES,04/04/2017,"14,096.01",74036-EXTERNAL RESIDENTIAL CARE-OTH AGENCY PROVISION,INDEPENDENT RESIDENTIAL HOMES,Third Party Payments,Revenue
Walsall Council,http://opendatacommunities.org/id/metropolitan-district-council/walsall,WC79-641,30/04/2017,Adult Social Care,CARE XY LIMITED,05/04/2017,263.25,73025-PROFESSIONAL SERVICES-PRIV CONTRACTOR & OTHER AGENCIES,COMMUNITY INTERMEDIATE CARE,Third Party Payments,Revenue
Walsall Council,http://opendatacommunities.org/id/metropolitan-district-council/walsall,WC79-642,30/04/2017,Adult Social Care,CARE XY LIMITED,19/04/2017,286.00,73025-PROFESSIONAL SERVICES-PRIV CONTRACTOR & OTHER AGENCIES,COMMUNITY INTERMEDIATE CARE,Third Party Payments,Revenue
Walsall Council,http://opendatacommunities.org/id/metropolitan-district-council/walsall,WC79-643,30/04/2017,Adult Social Care,CARE XY LIMITED,19/04/2017,656.50,73025-PROFESSIONAL SERVICES-PRIV CONTRACTOR & OTHER AGENCIES,COMMUNITY INTERMEDIATE CARE,Third Party Payments,Revenue
Walsall Council,http://opendatacommunities.org/id/metropolitan-district-council/walsall,WC79-644,30/04/2017,Adult Social Care,CARE XY LIMITED,19/04/2017,828.75,73025-PROFESSIONAL SERVICES-PRIV CONTRACTOR & OTHER AGENCIES,COMMUNITY INTERMEDIATE CARE,Third Party Payments,Revenue
Walsall Council,http://opendatacommunities.org/id/metropolitan-district-council/walsall,WC79-645,30/04/2017,Adult Social Care,CARE XY LIMITED,20/04/2017,"2,145.00",73025-PROFESSIONAL SERVICES-PRIV CONTRACTOR & OTHER AGENCIES,COMMUNITY INTERMEDIATE CARE,Third Party Payments,Revenue
Walsall Council,http://opendatacommunities.org/id/metropolitan-district-council/walsall,WC79-646,30/04/2017,Adult Social Care,CARE XY LIMITED,20/04/2017,"2,213.25",73025-PROFESSIONAL SERVICES-PRIV CONTRACTOR & OTHER AGENCIES,COMMUNITY INTERMEDIATE CARE,Third Party Payments,Revenue
Walsall Council,http://opendatacommunities.org/id/metropolitan-district-council/walsall,WC79-647,30/04/2017,Adult Social Care,CARE XY LIMITED,07/04/2017,"2,252.25",73025-PROFESSIONAL SERVICES-PRIV CONTRACTOR & OTHER AGENCIES,COMMUNITY INTERMEDIATE CARE,Third Party Payments,Revenue
Walsall Council,http://opendatacommunities.org/id/metropolitan-district-council/walsall,WC79-648,30/04/2017,Adult Social Care,CARE XY LIMITED,20/04/2017,"2,606.50",73025-PROFESSIONAL SERVICES-PRIV CONTRACTOR & OTHER AGENCIES,COMMUNITY INTERMEDIATE CARE,Third Party Payments,Revenue
Walsall Council,http://opendatacommunities.org/id/metropolitan-district-council/walsall,WC79-649,30/04/2017,Adult Social Care,CARE XY LIMITED,07/04/2017,"2,762.50",73025-PROFESSIONAL SERVICES-PRIV CONTRACTOR & OTHER AGENCIES,COMMUNITY INTERMEDIATE CARE,Third Party Payments,Revenue
Walsall Council,http://opendatacommunities.org/id/metropolitan-district-council/walsall,WC79-650,30/04/2017,Adult Social Care,CARE4HEALTH LTD.,10/04/2017,"1,010.05",73025-PROFESSIONAL SERVICES-PRIV CONTRACTOR & OTHER AGENCIES,COMMUNITY INTERMEDIATE CARE,Third Party Payments,Revenue
Walsall Council,http://opendatacommunities.org/id/metropolitan-district-council/walsall,WC79-651,30/04/2017,Adult Social Care,CARE4HEALTH LTD.,03/04/2017,"1,044.80",73025-PROFESSIONAL SERVICES-PRIV CONTRACTOR & OTHER AGENCIES,COMMUNITY INTERMEDIATE CARE,Third Party Payments,Revenue
Walsall Council,http://opendatacommunities.org/id/metropolitan-district-council/walsall,WC79-652,30/04/2017,Adult Social Care,CARE4HEALTH LTD.,03/04/2017,"1,224.05",73025-PROFESSIONAL SERVICES-PRIV CONTRACTOR & OTHER AGENCIES,COMMUNITY INTERMEDIATE CARE,Third Party Payments,Revenue
Walsall Council,http://opendatacommunities.org/id/metropolitan-district-council/walsall,WC79-653,30/04/2017,Childrens,CAREFIRST SERVICES LIMITED,24/04/2017,"2,399.88",76010-ACCOMMODATION AND RELATED COSTS-ASSISTANCE TO S/S CLIENTS,TRANSITION AND LEAVING CARE,Transfer Payments,Revenue
Walsall Council,http://opendatacommunities.org/id/metropolitan-district-council/walsall,WC79-654,30/04/2017,Childrens,CAREFIRST SERVICES LIMITED,24/04/2017,"2,657.01",76010-ACCOMMODATION AND RELATED COSTS-ASSISTANCE TO S/S CLIENTS,TRANSITION AND LEAVING CARE,Transfer Payments,Revenue
Walsall Council,http://opendatacommunities.org/id/metropolitan-district-council/walsall,WC79-655,30/04/2017,Childrens,CAREFIRST SERVICES LIMITED,24/04/2017,"2,828.43",76010-ACCOMMODATION AND RELATED COSTS-ASSISTANCE TO S/S CLIENTS,TRANSITION AND LEAVING CARE,Transfer Payments,Revenue
Walsall Council,http://opendatacommunities.org/id/metropolitan-district-council/walsall,WC79-656,30/04/2017,Adult Social Care,CARETECH COMMUNITY SERVICE,19/04/2017,"4,617.00",73374-SUPPORTED & OTHER ACCOMMODATION,LD COMMISSIONING,Third Party Payments,Revenue
Walsall Council,http://opendatacommunities.org/id/metropolitan-district-council/walsall,WC79-657,30/04/2017,Adult Social Care,CARETECH COMMUNITY SERVICE,07/04/2017,"4,882.50",73374-SUPPORTED & OTHER ACCOMMODATION,LD COMMISSIONING,Third Party Payments,Revenue
Walsall Council,http://opendatacommunities.org/id/metropolitan-district-council/walsall,WC79-658,30/04/2017,Adult Social Care,CARETECH COMMUNITY SERVICE,07/04/2017,"5,048.57",73374-SUPPORTED & OTHER ACCOMMODATION,OP COMMISSIONING,Third Party Payments,Revenue
Walsall Council,http://opendatacommunities.org/id/metropolitan-district-council/walsall,WC79-659,30/04/2017,Adult Social Care,CAREVIEW SERVICES LTD,12/04/2017,"6,583.36",73373-RESIDENTIAL & NURSING CARE PLACEMENTS,LD COMMISSIONING,Third Party Payments,Revenue
Walsall Council,http://opendatacommunities.org/id/metropolitan-district-council/walsall,WC79-660,30/04/2017,Adult Social Care,CARING CARE LIMITED,03/04/2017,390.00,73025-PROFESSIONAL SERVICES-PRIV CONTRACTOR & OTHER AGENCIES,COMMUNITY INTERMEDIATE CARE,Third Party Payments,Revenue
Walsall Council,http://opendatacommunities.org/id/metropolitan-district-council/walsall,WC79-661,30/04/2017,Adult Social Care,CARING CARE LIMITED,03/04/2017,455.00,73025-PROFESSIONAL SERVICES-PRIV CONTRACTOR & OTHER AGENCIES,COMMUNITY INTERMEDIATE CARE,Third Party Payments,Revenue
Walsall Council,http://opendatacommunities.org/id/metropolitan-district-council/walsall,WC79-662,30/04/2017,Adult Social Care,CARING CARE LIMITED,04/04/2017,936.00,73019-PSE'S-PRIV CONTRACTOR FEES,TRANSITIONAL CARE SUPPORT TEAM,Third Party Payments,Revenue
Walsall Council,http://opendatacommunities.org/id/metropolitan-district-council/walsall,WC79-663,30/04/2017,Adult Social Care,CARING CARE LIMITED,25/04/2017,"64,806.75",73372-DOMICILIARY CARE,OP COMMISSIONING,Third Party Payments,Revenue
Walsall Council,http://opendatacommunities.org/id/metropolitan-district-council/walsall,WC79-664,30/04/2017,Adult Social Care,CARING HANDS LIMITED,25/04/2017,"45,996.78",73372-DOMICILIARY CARE,OP COMMISSIONING,Third Party Payments,Revenue
Walsall Council,http://opendatacommunities.org/id/metropolitan-district-council/walsall,WC79-665,30/04/2017,Adult Social Care,REDACTED,25/04/2017,"1,637.40",73374-SUPPORTED & OTHER ACCOMMODATION,LD COMMISSIONING,Third Party Payments,Revenue
Walsall Council,http://opendatacommunities.org/id/metropolitan-district-council/walsall,WC79-666,30/04/2017,Adult Social Care,REDACTED,25/04/2017,"1,637.40",73374-SUPPORTED & OTHER ACCOMMODATION,LD COMMISSIONING,Third Party Payments,Revenue
Walsall Council,http://opendatacommunities.org/id/metropolitan-district-council/walsall,WC79-667,30/04/2017,Adult Social Care,REDACTED,10/04/2017,450.00,76422-DIRECT PAYMENTS TO SOCIAL SERVICES CLIENTS,PD COMMISSIONING,Transfer Payments,Revenue
Walsall Council,http://opendatacommunities.org/id/metropolitan-district-council/walsall,WC79-668,30/04/2017,Childrens,REDACTED,24/04/2017,9.24,60006-NEW-FURNITURE & EQUIPMENT,INTERNAL FOSTER CARE PROVISION,Supplies & Services,Revenue
Walsall Council,http://opendatacommunities.org/id/metropolitan-district-council/walsall,WC79-669,30/04/2017,Childrens,REDACTED,24/04/2017,473.00,74510-RESIDENTS ORDERS,ADOPTION ALLOWANCES,Third Party Payments,Revenue
Walsall Council,http://opendatacommunities.org/id/metropolitan-district-council/walsall,WC79-670,30/04/2017,Childrens,REDACTED,24/04/2017,530.96,74508-INTERNAL FOSTER CARERS-CARER FEES,INTERNAL FOSTER CARE PROVISION,Transfer Payments,Revenue
Walsall Council,http://opendatacommunities.org/id/metropolitan-district-council/walsall,WC79-671,30/04/2017,Childrens,REDACTED,10/04/2017,450.00,73014-LEGAL FEES-PRIV CONTRACTOR FEES,GENERAL MANAGEMENT SUPPORT (INC LEGAL),Third Party Payments,Revenue
Walsall Council,http://opendatacommunities.org/id/metropolitan-district-council/walsall,WC79-672,30/04/2017,Childrens,REDACTED,07/04/2017,361.12,74509-SPECIAL GUARDIANSHIP ORDERS,ADOPTION ALLOWANCES,Transfer Payments,Revenue
Walsall Council,http://opendatacommunities.org/id/metropolitan-district-council/walsall,WC79-673,30/04/2017,Change and Governance,CARROLL & WILLIAMS LLP,24/04/2017,"1,850.00",73025-PROFESSIONAL SERVICES-PRIV CONTRACTOR & OTHER AGENCIES,CENTRALISED MAINTENANCE,Third Party Payments,Revenue
Walsall Council,http://opendatacommunities.org/id/metropolitan-district-council/walsall,WC79-674,30/04/2017,Economy & Environment,CARTER SYNERGY LTD,10/04/2017,"4,727.80",40216-OTHER-PLAN MTCE,NAG - MAINTENANCE,Premises,Revenue
Walsall Council,http://opendatacommunities.org/id/metropolitan-district-council/walsall,WC79-675,30/04/2017,Economy & Environment,CARTER SYNERGY LTD,26/04/2017,"8,250.00",40216-OTHER-PLAN MTCE,NAG - MAINTENANCE,Premises,Revenue
Walsall Council,http://opendatacommunities.org/id/metropolitan-district-council/walsall,WC79-676,30/04/2017,Economy & Environment,CARTER SYNERGY LTD,26/04/2017,"10,250.00",40216-OTHER-PLAN MTCE,NAG - MAINTENANCE,Premises,Revenue
Walsall Council,http://opendatacommunities.org/id/metropolitan-district-council/walsall,WC79-677,30/04/2017,Economy & Environment,CARTER SYNERGY LTD,26/04/2017,"16,500.00",40216-OTHER-PLAN MTCE,NAG - MAINTENANCE,Premises,Revenue
Walsall Council,http://opendatacommunities.org/id/metropolitan-district-council/walsall,WC79-678,30/04/2017,Childrens,CATCH 22 CHARITY LTD,12/04/2017,"2,995.00",64500-PUBLICATIONS/ORGANISATIONS-SUBSCRIPTIONS,TRANSITION AND LEAVING CARE,Supplies & Services,Revenue
Walsall Council,http://opendatacommunities.org/id/metropolitan-district-council/walsall,WC79-679,30/04/2017,Adult Social Care,REDACTED,10/04/2017,653.40,76422-DIRECT PAYMENTS TO SOCIAL SERVICES CLIENTS,LD COMMISSIONING,Transfer Payments,Revenue
Walsall Council,http://opendatacommunities.org/id/metropolitan-district-council/walsall,WC79-680,30/04/2017,Adult Social Care,REDACTED,10/04/2017,756.00,76422-DIRECT PAYMENTS TO SOCIAL SERVICES CLIENTS,MH COMMISSIONING,Transfer Payments,Revenue
Walsall Council,http://opendatacommunities.org/id/metropolitan-district-council/walsall,WC79-681,30/04/2017,Childrens,REDACTED,07/04/2017,425.08,74009-ADOPTION ALLOWANCE,ADOPTION ALLOWANCES,Transfer Payments,Revenue
Walsall Council,http://opendatacommunities.org/id/metropolitan-district-council/walsall,WC79-682,30/04/2017,Adult Social Care,REDACTED,10/04/2017,414.00,76422-DIRECT PAYMENTS TO SOCIAL SERVICES CLIENTS,LD COMMISSIONING,Transfer Payments,Revenue
Walsall Council,http://opendatacommunities.org/id/metropolitan-district-council/walsall,WC79-683,30/04/2017,Childrens,REDACTED,10/04/2017,"1,014.27",76422-DIRECT PAYMENTS TO SOCIAL SERVICES CLIENTS,FAMILY SUPPORT - DIRECT PAYMENTS,Transfer Payments,Revenue
Walsall Council,http://opendatacommunities.org/id/metropolitan-district-council/walsall,WC79-684,30/04/2017,Childrens,REDACTED,07/04/2017,425.08,74510-RESIDENTS ORDERS,ADOPTION ALLOWANCES,Third Party Payments,Revenue
Walsall Council,http://opendatacommunities.org/id/metropolitan-district-council/walsall,WC79-685,30/04/2017,Adult Social Care,REDACTED,10/04/2017,606.48,76422-DIRECT PAYMENTS TO SOCIAL SERVICES CLIENTS,OP COMMISSIONING,Transfer Payments,Revenue
Walsall Council,http://opendatacommunities.org/id/metropolitan-district-council/walsall,WC79-686,30/04/2017,Adult Social Care,CEDER LODGE NURSING HOME,26/04/2017,"3,545.48",73373-RESIDENTIAL & NURSING CARE PLACEMENTS,OP COMMISSIONING,Third Party Payments,Revenue
Walsall Council,http://opendatacommunities.org/id/metropolitan-district-council/walsall,WC79-687,30/04/2017,Economy & Environment,CELTIC TECHNOLOGIES LIMITED,07/04/2017,"4,001.40",01006-SITE WORKS MAIN CONTRACTORS,CFR 1072 LEX - GROWTH DEAL,Capital,Capital
Walsall Council,http://opendatacommunities.org/id/metropolitan-district-council/walsall,WC79-688,30/04/2017,Change and Governance,CENTRAL MAILING SERVICES,24/04/2017,258.00,63500-POSTAGES AND COURIER SERVICES,PROCESSING,Supplies & Services,Revenue
Walsall Council,http://opendatacommunities.org/id/metropolitan-district-council/walsall,WC79-689,30/04/2017,Change and Governance,CENTRAL MAILING SERVICES,24/04/2017,636.00,63500-POSTAGES AND COURIER SERVICES,REVENUES,Supplies & Services,Revenue
Walsall Council,http://opendatacommunities.org/id/metropolitan-district-council/walsall,WC79-690,30/04/2017,Change and Governance,CENTRAL MAILING SERVICES,24/04/2017,"4,078.89",63500-POSTAGES AND COURIER SERVICES,REVENUES,Supplies & Services,Revenue
Walsall Council,http://opendatacommunities.org/id/metropolitan-district-council/walsall,WC79-691,30/04/2017,Childrens,REDACTED,24/04/2017,9.24,60006-NEW-FURNITURE & EQUIPMENT,INTERNAL FOSTER CARE PROVISION,Supplies & Services,Revenue
Walsall Council,http://opendatacommunities.org/id/metropolitan-district-council/walsall,WC79-692,30/04/2017,Childrens,REDACTED,24/04/2017,345.24,74508-INTERNAL FOSTER CARERS-CARER FEES,INTERNAL FOSTER CARE PROVISION,Transfer Payments,Revenue
Walsall Council,http://opendatacommunities.org/id/metropolitan-district-council/walsall,WC79-693,30/04/2017,Childrens,REDACTED,24/04/2017,571.44,74501-MAINTENANCE ALLOWANCE-FOSTER CARERS,INTERNAL FOSTER CARE PROVISION,Transfer Payments,Revenue
Walsall Council,http://opendatacommunities.org/id/metropolitan-district-council/walsall,WC79-694,30/04/2017,Economy & Environment,CERTAS ENERGY UK LIMITED,03/04/2017,482.50,50301-FUEL-TRANSPORT RUN COSTS,TARMAC,Transport,Revenue
Walsall Council,http://opendatacommunities.org/id/metropolitan-district-council/walsall,WC79-695,30/04/2017,Economy & Environment,CERTAS ENERGY UK LIMITED,24/04/2017,692.70,50301-FUEL-TRANSPORT RUN COSTS,FUEL STOCK ACCOUNT,Transport,Revenue
Walsall Council,http://opendatacommunities.org/id/metropolitan-district-council/walsall,WC79-696,30/04/2017,Economy & Environment,CERTAS ENERGY UK LIMITED,24/04/2017,"1,429.80",50301-FUEL-TRANSPORT RUN COSTS,FUEL STOCK ACCOUNT,Transport,Revenue
Walsall Council,http://opendatacommunities.org/id/metropolitan-district-council/walsall,WC79-697,30/04/2017,Economy & Environment,CERTAS ENERGY UK LIMITED,12/04/2017,"2,292.00",50301-FUEL-TRANSPORT RUN COSTS,FUEL STOCK ACCOUNT,Transport,Revenue
Walsall Council,http://opendatacommunities.org/id/metropolitan-district-council/walsall,WC79-698,30/04/2017,Economy & Environment,CERTAS ENERGY UK LIMITED,05/04/2017,"16,224.35",50301-FUEL-TRANSPORT RUN COSTS,FUEL STOCK ACCOUNT,Transport,Revenue
Walsall Council,http://opendatacommunities.org/id/metropolitan-district-council/walsall,WC79-699,30/04/2017,Economy & Environment,CERTAS ENERGY UK LIMITED,21/04/2017,"18,592.63",50301-FUEL-TRANSPORT RUN COSTS,FUEL STOCK ACCOUNT,Transport,Revenue
Walsall Council,http://opendatacommunities.org/id/metropolitan-district-council/walsall,WC79-700,30/04/2017,Adult Social Care,REDACTED,10/04/2017,324.00,76422-DIRECT PAYMENTS TO SOCIAL SERVICES CLIENTS,LD COMMISSIONING,Transfer Payments,Revenue
Walsall Council,http://opendatacommunities.org/id/metropolitan-district-council/walsall,WC79-701,30/04/2017,Change and Governance,CHAPMAN SAFETY SERVICES,10/04/2017,250.00,63000-PROFESSIONAL FEES AND SERVICES,CORE SKILLS,Supplies & Services,Revenue
Walsall Council,http://opendatacommunities.org/id/metropolitan-district-council/walsall,WC79-702,30/04/2017,Childrens,CHARACTER COACHING LTD,21/04/2017,480.00,63000-PROFESSIONAL FEES AND SERVICES,VIRTUAL SCHOOL CENTRAL PUPIL PREMIUM,Supplies & Services,Revenue
Walsall Council,http://opendatacommunities.org/id/metropolitan-district-council/walsall,WC79-703,30/04/2017,Economy & Environment,CHARANGA,07/04/2017,"4,500.00",63124-FEES & LICENCES-SERVICES,MUSIC HUB FOREST ARTS,Supplies & Services,Revenue
Walsall Council,http://opendatacommunities.org/id/metropolitan-district-council/walsall,WC79-704,30/04/2017,Adult Social Care,REDACTED,10/04/2017,792.00,76422-DIRECT PAYMENTS TO SOCIAL SERVICES CLIENTS,OP COMMISSIONING,Transfer Payments,Revenue
Walsall Council,http://opendatacommunities.org/id/metropolitan-district-council/walsall,WC79-705,30/04/2017,Childrens,REDACTED,07/04/2017,368.51,74509-SPECIAL GUARDIANSHIP ORDERS,ADOPTION ALLOWANCES,Transfer Payments,Revenue
Walsall Council,http://opendatacommunities.org/id/metropolitan-district-council/walsall,WC79-706,30/04/2017,Childrens,CHARLIE CATERPILLAR'S DAY NURSERY,03/04/2017,"23,705.60",66505-OTHER-GRANTS TO OTHER ORGS,EARLY YEARS - 2 YR OLDS,Third Party Payments,Revenue
Walsall Council,http://opendatacommunities.org/id/metropolitan-district-council/walsall,WC79-707,30/04/2017,Childrens,CHARLIE CATERPILLAR'S DAY NURSERY,03/04/2017,"27,588.00",66505-OTHER-GRANTS TO OTHER ORGS,EARLY YEARS - 3 YR OLDS,Third Party Payments,Revenue
Walsall Council,http://opendatacommunities.org/id/metropolitan-district-council/walsall,WC79-708,30/04/2017,Childrens,REDACTED,10/04/2017,258.96,76422-DIRECT PAYMENTS TO SOCIAL SERVICES CLIENTS,FAMILY SUPPORT - DIRECT PAYMENTS,Transfer Payments,Revenue
Walsall Council,http://opendatacommunities.org/id/metropolitan-district-council/walsall,WC79-709,30/04/2017,Adult Social Care,CHARTER CARE,25/04/2017,"52,954.22",73372-DOMICILIARY CARE,OP COMMISSIONING,Third Party Payments,Revenue
Walsall Council,http://opendatacommunities.org/id/metropolitan-district-council/walsall,WC79-710,30/04/2017,Adult Social Care,CHASEVIEW CARE HOME,13/04/2017,589.21,73373-RESIDENTIAL & NURSING CARE PLACEMENTS,OP COMMISSIONING,Third Party Payments,Revenue
Walsall Council,http://opendatacommunities.org/id/metropolitan-district-council/walsall,WC79-711,30/04/2017,Adult Social Care,CHASEVIEW CARE HOME,13/04/2017,"1,060.59",73373-RESIDENTIAL & NURSING CARE PLACEMENTS,OP COMMISSIONING,Third Party Payments,Revenue
Walsall Council,http://opendatacommunities.org/id/metropolitan-district-council/walsall,WC79-712,30/04/2017,Adult Social Care,CHASEVIEW CARE HOME,13/04/2017,"1,472.96",73373-RESIDENTIAL & NURSING CARE PLACEMENTS,OP COMMISSIONING,Third Party Payments,Revenue
Walsall Council,http://opendatacommunities.org/id/metropolitan-district-council/walsall,WC79-713,30/04/2017,Adult Social Care,CHASEVIEW CARE HOME,13/04/2017,"1,649.72",73373-RESIDENTIAL & NURSING CARE PLACEMENTS,OP COMMISSIONING,Third Party Payments,Revenue
Walsall Council,http://opendatacommunities.org/id/metropolitan-district-council/walsall,WC79-714,30/04/2017,Adult Social Care,CHASEVIEW CARE HOME,13/04/2017,"1,649.72",73373-RESIDENTIAL & NURSING CARE PLACEMENTS,OP COMMISSIONING,Third Party Payments,Revenue
Walsall Council,http://opendatacommunities.org/id/metropolitan-district-council/walsall,WC79-715,30/04/2017,Adult Social Care,CHASEVIEW CARE HOME,13/04/2017,"1,649.72",73373-RESIDENTIAL & NURSING CARE PLACEMENTS,OP COMMISSIONING,Third Party Payments,Revenue
Walsall Council,http://opendatacommunities.org/id/metropolitan-district-council/walsall,WC79-716,30/04/2017,Adult Social Care,CHASEVIEW CARE HOME,13/04/2017,"1,649.72",73373-RESIDENTIAL & NURSING CARE PLACEMENTS,OP COMMISSIONING,Third Party Payments,Revenue
Walsall Council,http://opendatacommunities.org/id/metropolitan-district-council/walsall,WC79-717,30/04/2017,Adult Social Care,CHASEVIEW CARE HOME,13/04/2017,"1,649.72",73373-RESIDENTIAL & NURSING CARE PLACEMENTS,OP COMMISSIONING,Third Party Payments,Revenue
Walsall Council,http://opendatacommunities.org/id/metropolitan-district-council/walsall,WC79-718,30/04/2017,Adult Social Care,CHASEVIEW CARE HOME,13/04/2017,"1,649.80",73373-RESIDENTIAL & NURSING CARE PLACEMENTS,OP COMMISSIONING,Third Party Payments,Revenue
Walsall Council,http://opendatacommunities.org/id/metropolitan-district-council/walsall,WC79-719,30/04/2017,Adult Social Care,CHASEVIEW CARE HOME,13/04/2017,"1,649.80",73373-RESIDENTIAL & NURSING CARE PLACEMENTS,OP COMMISSIONING,Third Party Payments,Revenue
Walsall Council,http://opendatacommunities.org/id/metropolitan-district-council/walsall,WC79-720,30/04/2017,Adult Social Care,CHASEVIEW CARE HOME,13/04/2017,"1,649.80",73373-RESIDENTIAL & NURSING CARE PLACEMENTS,OP COMMISSIONING,Third Party Payments,Revenue
Walsall Council,http://opendatacommunities.org/id/metropolitan-district-council/walsall,WC79-721,30/04/2017,Adult Social Care,CHASEVIEW CARE HOME,13/04/2017,"1,649.80",73373-RESIDENTIAL & NURSING CARE PLACEMENTS,OP COMMISSIONING,Third Party Payments,Revenue
Walsall Council,http://opendatacommunities.org/id/metropolitan-district-council/walsall,WC79-722,30/04/2017,Adult Social Care,CHASEVIEW CARE HOME,26/04/2017,"1,800.00",73373-RESIDENTIAL & NURSING CARE PLACEMENTS,OP COMMISSIONING,Third Party Payments,Revenue
Walsall Council,http://opendatacommunities.org/id/metropolitan-district-council/walsall,WC79-723,30/04/2017,Adult Social Care,CHERISH HOME CARE,24/04/2017,312.00,73372-DOMICILIARY CARE,OP COMMISSIONING,Third Party Payments,Revenue
Walsall Council,http://opendatacommunities.org/id/metropolitan-district-council/walsall,WC79-724,30/04/2017,Adult Social Care,CHERISH HOME CARE,24/04/2017,409.50,73372-DOMICILIARY CARE,OP COMMISSIONING,Third Party Payments,Revenue
Walsall Council,http://opendatacommunities.org/id/metropolitan-district-council/walsall,WC79-725,30/04/2017,Adult Social Care,CHERISH HOME CARE,10/04/2017,"2,366.00",73372-DOMICILIARY CARE,OP COMMISSIONING,Third Party Payments,Revenue
Walsall Council,http://opendatacommunities.org/id/metropolitan-district-council/walsall,WC79-726,30/04/2017,Adult Social Care,CHERISH HOME CARE,10/04/2017,"2,470.00",73372-DOMICILIARY CARE,OP COMMISSIONING,Third Party Payments,Revenue
Walsall Council,http://opendatacommunities.org/id/metropolitan-district-council/walsall,WC79-727,30/04/2017,Childrens,REDACTED,26/04/2017,"1,854.93",66505-OTHER-GRANTS TO OTHER ORGS,EARLY YEARS - 2 YR OLDS,Third Party Payments,Revenue
Walsall Council,http://opendatacommunities.org/id/metropolitan-district-council/walsall,WC79-728,30/04/2017,Adult Social Care,REDACTED,10/04/2017,"1,629.60",76422-DIRECT PAYMENTS TO SOCIAL SERVICES CLIENTS,LD COMMISSIONING,Transfer Payments,Revenue
Walsall Council,http://opendatacommunities.org/id/metropolitan-district-council/walsall,WC79-729,30/04/2017,Childrens,CHILDCARE BUREAU LTD,13/04/2017,"3,226.44",74037-INDEPENDENT FOSTER CARE-OTH AGENCY PROVISION,EXTERNAL FOSTER CARE PROVISION,Third Party Payments,Revenue
Walsall Council,http://opendatacommunities.org/id/metropolitan-district-council/walsall,WC79-730,30/04/2017,Childrens,CHILDCARE BUREAU LTD,24/04/2017,"3,228.00",74037-INDEPENDENT FOSTER CARE-OTH AGENCY PROVISION,EXTERNAL FOSTER CARE PROVISION,Third Party Payments,Revenue
Walsall Council,http://opendatacommunities.org/id/metropolitan-district-council/walsall,WC79-731,30/04/2017,Childrens,CHILDREN ALWAYS FIRST LTD,05/04/2017,"1,457.86",74037-INDEPENDENT FOSTER CARE-OTH AGENCY PROVISION,EXTERNAL FOSTER CARE PROVISION,Third Party Payments,Revenue
Walsall Council,http://opendatacommunities.org/id/metropolitan-district-council/walsall,WC79-732,30/04/2017,Childrens,CHILDREN ALWAYS FIRST LTD,24/04/2017,"2,500.00",74037-INDEPENDENT FOSTER CARE-OTH AGENCY PROVISION,EXTERNAL FOSTER CARE PROVISION,Third Party Payments,Revenue
Walsall Council,http://opendatacommunities.org/id/metropolitan-district-council/walsall,WC79-733,30/04/2017,Childrens,CHILDREN ALWAYS FIRST LTD,24/04/2017,"2,566.64",74037-INDEPENDENT FOSTER CARE-OTH AGENCY PROVISION,EXTERNAL FOSTER CARE PROVISION,Third Party Payments,Revenue
Walsall Council,http://opendatacommunities.org/id/metropolitan-district-council/walsall,WC79-734,30/04/2017,Childrens,CHILDREN ALWAYS FIRST LTD,24/04/2017,"2,646.00",74037-INDEPENDENT FOSTER CARE-OTH AGENCY PROVISION,EXTERNAL FOSTER CARE PROVISION,Third Party Payments,Revenue
Walsall Council,http://opendatacommunities.org/id/metropolitan-district-council/walsall,WC79-735,30/04/2017,Childrens,CHILDREN ALWAYS FIRST LTD,24/04/2017,"2,741.20",74037-INDEPENDENT FOSTER CARE-OTH AGENCY PROVISION,EXTERNAL FOSTER CARE PROVISION,Third Party Payments,Revenue
Walsall Council,http://opendatacommunities.org/id/metropolitan-district-council/walsall,WC79-736,30/04/2017,Childrens,CHILDREN ALWAYS FIRST LTD,24/04/2017,"2,741.20",74037-INDEPENDENT FOSTER CARE-OTH AGENCY PROVISION,EXTERNAL FOSTER CARE PROVISION,Third Party Payments,Revenue
Walsall Council,http://opendatacommunities.org/id/metropolitan-district-council/walsall,WC79-737,30/04/2017,Childrens,CHILDREN ALWAYS FIRST LTD,24/04/2017,"2,826.00",74037-INDEPENDENT FOSTER CARE-OTH AGENCY PROVISION,EXTERNAL FOSTER CARE PROVISION,Third Party Payments,Revenue
Walsall Council,http://opendatacommunities.org/id/metropolitan-district-council/walsall,WC79-738,30/04/2017,Childrens,CHILDREN ALWAYS FIRST LTD,24/04/2017,"2,952.00",74037-INDEPENDENT FOSTER CARE-OTH AGENCY PROVISION,EXTERNAL FOSTER CARE PROVISION,Third Party Payments,Revenue
Walsall Council,http://opendatacommunities.org/id/metropolitan-district-council/walsall,WC79-739,30/04/2017,Childrens,CHILDREN ALWAYS FIRST LTD,24/04/2017,"3,180.00",74037-INDEPENDENT FOSTER CARE-OTH AGENCY PROVISION,EXTERNAL FOSTER CARE PROVISION,Third Party Payments,Revenue
Walsall Council,http://opendatacommunities.org/id/metropolitan-district-council/walsall,WC79-740,30/04/2017,Childrens,CHILDREN ALWAYS FIRST LTD,11/04/2017,"15,996.44",74037-INDEPENDENT FOSTER CARE-OTH AGENCY PROVISION,EXTERNAL FOSTER CARE PROVISION,Third Party Payments,Revenue
Walsall Council,http://opendatacommunities.org/id/metropolitan-district-council/walsall,WC79-741,30/04/2017,Childrens,CHILDREN WITH DISABILITIES TEAM,21/04/2017,270.00,42000-GAS-ENERGY COSTS,DIRECTLY COMMISSIONED NURSING SERVICES,Premises,Revenue
Walsall Council,http://opendatacommunities.org/id/metropolitan-district-council/walsall,WC79-742,30/04/2017,Adult Social Care,CHOICECARE 2000 LIMITED,26/04/2017,"1,443.28",73373-RESIDENTIAL & NURSING CARE PLACEMENTS,MH COMMISSIONING,Third Party Payments,Revenue
Walsall Council,http://opendatacommunities.org/id/metropolitan-district-council/walsall,WC79-743,30/04/2017,Adult Social Care,CHOICECARE 2000 LIMITED,26/04/2017,"1,519.46",73373-RESIDENTIAL & NURSING CARE PLACEMENTS,MH COMMISSIONING,Third Party Payments,Revenue
Walsall Council,http://opendatacommunities.org/id/metropolitan-district-council/walsall,WC79-744,30/04/2017,Adult Social Care,CHOICECARE 2000 LIMITED,26/04/2017,"1,665.34",73373-RESIDENTIAL & NURSING CARE PLACEMENTS,MH COMMISSIONING,Third Party Payments,Revenue
Walsall Council,http://opendatacommunities.org/id/metropolitan-district-council/walsall,WC79-745,30/04/2017,Adult Social Care,CHOICECARE 2000 LIMITED,26/04/2017,"1,753.24",73373-RESIDENTIAL & NURSING CARE PLACEMENTS,MH COMMISSIONING,Third Party Payments,Revenue
Walsall Council,http://opendatacommunities.org/id/metropolitan-district-council/walsall,WC79-746,30/04/2017,Adult Social Care,CHOICECARE 2000 LIMITED,04/04/2017,"3,108.64",73373-RESIDENTIAL & NURSING CARE PLACEMENTS,MH COMMISSIONING,Third Party Payments,Revenue
Walsall Council,http://opendatacommunities.org/id/metropolitan-district-council/walsall,WC79-747,30/04/2017,Adult Social Care,CHOICECARE 2000 LIMITED,04/04/2017,"3,272.72",73373-RESIDENTIAL & NURSING CARE PLACEMENTS,MH COMMISSIONING,Third Party Payments,Revenue
Walsall Council,http://opendatacommunities.org/id/metropolitan-district-council/walsall,WC79-748,30/04/2017,Childrens,CHRIS DENNISON CONSULTING LTD,11/04/2017,372.95,63000-PROFESSIONAL FEES AND SERVICES,FAMILY PLACEMENTS,Supplies & Services,Revenue
Walsall Council,http://opendatacommunities.org/id/metropolitan-district-council/walsall,WC79-749,30/04/2017,Adult Social Care,REDACTED,10/04/2017,489.60,76422-DIRECT PAYMENTS TO SOCIAL SERVICES CLIENTS,PD COMMISSIONING,Transfer Payments,Revenue
Walsall Council,http://opendatacommunities.org/id/metropolitan-district-council/walsall,WC79-750,30/04/2017,Adult Social Care,REDACTED,10/04/2017,"2,232.00",76422-DIRECT PAYMENTS TO SOCIAL SERVICES CLIENTS,OP COMMISSIONING,Transfer Payments,Revenue
Walsall Council,http://opendatacommunities.org/id/metropolitan-district-council/walsall,WC79-751,30/04/2017,Childrens,REDACTED,07/04/2017,375.16,74509-SPECIAL GUARDIANSHIP ORDERS,ADOPTION ALLOWANCES,Transfer Payments,Revenue
Walsall Council,http://opendatacommunities.org/id/metropolitan-district-council/walsall,WC79-752,30/04/2017,Childrens,REDACTED,07/04/2017,375.18,74509-SPECIAL GUARDIANSHIP ORDERS,ADOPTION ALLOWANCES,Transfer Payments,Revenue
Walsall Council,http://opendatacommunities.org/id/metropolitan-district-council/walsall,WC79-753,30/04/2017,Adult Social Care,REDACTED,10/04/2017,862.16,76422-DIRECT PAYMENTS TO SOCIAL SERVICES CLIENTS,PD COMMISSIONING,Transfer Payments,Revenue
Walsall Council,http://opendatacommunities.org/id/metropolitan-district-council/walsall,WC79-754,30/04/2017,Adult Social Care,REDACTED,10/04/2017,"1,256.00",76422-DIRECT PAYMENTS TO SOCIAL SERVICES CLIENTS,LD COMMISSIONING,Transfer Payments,Revenue
Walsall Council,http://opendatacommunities.org/id/metropolitan-district-council/walsall,WC79-755,30/04/2017,Adult Social Care,REDACTED,10/04/2017,588.00,76422-DIRECT PAYMENTS TO SOCIAL SERVICES CLIENTS,OP COMMISSIONING,Transfer Payments,Revenue
Walsall Council,http://opendatacommunities.org/id/metropolitan-district-council/walsall,WC79-756,30/04/2017,Childrens,REDACTED,24/04/2017,9.24,60006-NEW-FURNITURE & EQUIPMENT,INTERNAL FOSTER CARE PROVISION,Supplies & Services,Revenue
Walsall Council,http://opendatacommunities.org/id/metropolitan-district-council/walsall,WC79-757,30/04/2017,Childrens,REDACTED,24/04/2017,650.92,74501-MAINTENANCE ALLOWANCE-FOSTER CARERS,INTERNAL FOSTER CARE PROVISION,Transfer Payments,Revenue
Walsall Council,http://opendatacommunities.org/id/metropolitan-district-council/walsall,WC79-758,30/04/2017,Childrens,REDACTED,24/04/2017,656.50,74508-INTERNAL FOSTER CARERS-CARER FEES,INTERNAL FOSTER CARE PROVISION,Transfer Payments,Revenue
Walsall Council,http://opendatacommunities.org/id/metropolitan-district-council/walsall,WC79-759,30/04/2017,Change and Governance,CHUBB ELECTRONIC SECURITY SYSTEMS LTD,24/04/2017,654.93,73002-SECURITY-PRIV CONTRACTOR FEES,CENTRALISED MAINTENANCE,Third Party Payments,Revenue
Walsall Council,http://opendatacommunities.org/id/metropolitan-district-council/walsall,WC79-760,30/04/2017,Change and Governance,CHUBB ELECTRONIC SECURITY SYSTEMS LTD,21/04/2017,"1,006.35",73002-SECURITY-PRIV CONTRACTOR FEES,CENTRALISED MAINTENANCE,Third Party Payments,Revenue
Walsall Council,http://opendatacommunities.org/id/metropolitan-district-council/walsall,WC79-761,30/04/2017,Economy & Environment,CHUBB FIRE & SECURITY LTD,05/04/2017,284.50,63000-PROFESSIONAL FEES AND SERVICES,FOREST ARTS CENTRE,Supplies & Services,Revenue
Walsall Council,http://opendatacommunities.org/id/metropolitan-district-council/walsall,WC79-762,30/04/2017,Change and Governance,CHUBB FIRE & SECURITY LTD,13/04/2017,953.80,73002-SECURITY-PRIV CONTRACTOR FEES,CENTRALISED MAINTENANCE,Third Party Payments,Revenue
Walsall Council,http://opendatacommunities.org/id/metropolitan-district-council/walsall,WC79-763,30/04/2017,Childrens,CHUBB FIRE & SECURITY LTD,13/04/2017,"1,104.55",63239-EXTERNAL WORKS-PAYMENT TO CONTRACTOR,CONTACT SESSIONAL STAFF,Third Party Payments,Revenue
Walsall Council,http://opendatacommunities.org/id/metropolitan-district-council/walsall,WC79-764,30/04/2017,Change and Governance,CHUBB FIRE & SECURITY LTD,13/04/2017,"1,164.83",73002-SECURITY-PRIV CONTRACTOR FEES,CENTRALISED MAINTENANCE,Third Party Payments,Revenue
Walsall Council,http://opendatacommunities.org/id/metropolitan-district-council/walsall,WC79-765,30/04/2017,Change and Governance,CHUBB FIRE & SECURITY LTD,13/04/2017,"1,222.09",73002-SECURITY-PRIV CONTRACTOR FEES,CENTRAL OFFICE ACCOMMODATION,Third Party Payments,Revenue
Walsall Council,http://opendatacommunities.org/id/metropolitan-district-council/walsall,WC79-766,30/04/2017,Adult Social Care,REDACTED,25/04/2017,"1,600.00",73374-SUPPORTED & OTHER ACCOMMODATION,LD COMMISSIONING,Third Party Payments,Revenue
Walsall Council,http://opendatacommunities.org/id/metropolitan-district-council/walsall,WC79-767,30/04/2017,Change and Governance,CIPFA 001,19/04/2017,500.00,63802-SOFTWARE ACQ-COMPUTER,FINANCE,Supplies & Services,Revenue
Walsall Council,http://opendatacommunities.org/id/metropolitan-district-council/walsall,WC79-768,30/04/2017,Change and Governance,CIPFA 001,19/04/2017,"4,150.00",64500-PUBLICATIONS/ORGANISATIONS-SUBSCRIPTIONS,FINANCE,Supplies & Services,Revenue
Walsall Council,http://opendatacommunities.org/id/metropolitan-district-council/walsall,WC79-769,30/04/2017,Change and Governance,CITY ELECTRICAL FACTORS LTD (BIRMINGHAM & NORTH WALES),13/04/2017,931.20,01006-SITE WORKS MAIN CONTRACTORS,CFR 804 FIRE SAFETY WORKS,Capital,Capital
Walsall Council,http://opendatacommunities.org/id/metropolitan-district-council/walsall,WC79-770,30/04/2017,Adult Social Care,CIVICARE MIDLANDS LTD,04/04/2017,448.50,73365-BLOCK GROSS-SUPPORTING PEOPLE,OLDER PEOPLES CONTRACTS/SLA,Third Party Payments,Revenue
Walsall Council,http://opendatacommunities.org/id/metropolitan-district-council/walsall,WC79-771,30/04/2017,Adult Social Care,CIVICARE MIDLANDS LTD,04/04/2017,661.25,73365-BLOCK GROSS-SUPPORTING PEOPLE,OLDER PEOPLES CONTRACTS/SLA,Third Party Payments,Revenue
Walsall Council,http://opendatacommunities.org/id/metropolitan-district-council/walsall,WC79-772,30/04/2017,Adult Social Care,CIVICARE MIDLANDS LTD,25/04/2017,"31,335.10",73372-DOMICILIARY CARE,OP COMMISSIONING,Third Party Payments,Revenue
Walsall Council,http://opendatacommunities.org/id/metropolitan-district-council/walsall,WC79-773,30/04/2017,Adult Social Care,REDACTED,10/04/2017,"1,152.00",76422-DIRECT PAYMENTS TO SOCIAL SERVICES CLIENTS,LD COMMISSIONING,Transfer Payments,Revenue
Walsall Council,http://opendatacommunities.org/id/metropolitan-district-council/walsall,WC79-774,30/04/2017,Adult Social Care,REDACTED,10/04/2017,"1,535.08",76422-DIRECT PAYMENTS TO SOCIAL SERVICES CLIENTS,PD COMMISSIONING,Transfer Payments,Revenue
Walsall Council,http://opendatacommunities.org/id/metropolitan-district-council/walsall,WC79-775,30/04/2017,Economy & Environment,REDACTED,10/04/2017,375.00,63000-PROFESSIONAL FEES AND SERVICES,FOREST ARTS CENTRE,Supplies & Services,Revenue
Walsall Council,http://opendatacommunities.org/id/metropolitan-district-council/walsall,WC79-776,30/04/2017,Adult Social Care,REDACTED,10/04/2017,534.60,76422-DIRECT PAYMENTS TO SOCIAL SERVICES CLIENTS,PD COMMISSIONING,Transfer Payments,Revenue
Walsall Council,http://opendatacommunities.org/id/metropolitan-district-council/walsall,WC79-777,30/04/2017,Childrens,REDACTED,10/04/2017,393.20,52000-WITH DRIVER-HIRE OF VEHICLES,SCHOOL TRANSPORT,Transport,Revenue
Walsall Council,http://opendatacommunities.org/id/metropolitan-district-council/walsall,WC79-778,30/04/2017,Childrens,REDACTED,03/04/2017,817.44,66505-OTHER-GRANTS TO OTHER ORGS,EARLY YEARS - 2 YR OLDS,Third Party Payments,Revenue
Walsall Council,http://opendatacommunities.org/id/metropolitan-district-council/walsall,WC79-779,30/04/2017,Childrens,REDACTED,07/04/2017,-774.05,74009-ADOPTION ALLOWANCE,ADOPTION ALLOWANCES,Transfer Payments,Revenue
